Workbook

Sheet Introduction
G1: =RIGHT(CELL("filename",A1), LEN(CELL("filename",A1)) - SEARCH("]", CELL("filename",A1))) -> Introduction | Q1: =CELL("filename",A1) -> C:\Users\Hugo\Documents\HP ACAD\tns\[HPtn Risk - CreditMetrics & the Gaussian Copula.xlsm]Introduction | R1: =IFERROR(MID(Q1,FIND(CHAR(127),SUBSTITUTE(Q1,"-",CHAR(127), LEN(Q1)-LEN(SUBSTITUTE(Q1,"-",""))))+2,1024),MID(Q1,SEARCH("[",Q1)+1,SEARCH(".",Q1)-SEARCH("[",Q1)-1)) -> CreditMetrics & the Gaussian Copula.xlsm]Introduction
G2: by Hugues Pirotte
D4: Below is a list of the worksheets of the file, by order of appearance: (CTRL+h = back to "Introduction") | H4: =IFERROR(LEFT(R1,SEARCH(".",R1)-1),R1) -> CreditMetrics & the Gaussian Copula
C5: 1 | D5: Introduction
C6: 2 | D6: CreditMetrics Copula Idea
C7: 3 | D7: Bivariate normal example

Sheet CreditMetrics Copula Idea
A1: =IFERROR(LEFT(R1,SEARCH(".",R1)-1),R1) & " > " & RIGHT(Q1, LEN(Q1) - SEARCH("]", Q1)) -> CreditMetrics & the Gaussian Copula > CreditMetrics Copula Idea | Q1: =CELL("filename",A1) -> C:\Users\Hugo\Documents\HP ACAD\tns\[HPtn Risk - CreditMetrics & the Gaussian Copula.xlsm]CreditMetrics Copula Idea | R1: =IFERROR(MID(Q1,FIND(CHAR(127),SUBSTITUTE(Q1,"-",CHAR(127), LEN(Q1)-LEN(SUBSTITUTE(Q1,"-",""))))+2,1024),MID(Q1,SEARCH("[",Q1)+1,SEARCH(".",Q1)-SEARCH("[",Q1)-1)) -> CreditMetrics & the Gaussian Copula.xlsm]CreditMetrics Copula Idea
B5: 1 | G5: From A to… | H5: AAA | I5: AA | J5: A | K5: BBB | L5: BB | M5: B | N5: CCC | O5: Default
H6: 0.0009 | I6: 0.0227 | J6: 0.9105 | K6: 0.0552 | L6: 0.0074 | M6: 0.0026 | N6: 0.0001 | O6: 0.0006
H7: 0.9999999 | I7: =J7+I6 -> 0.9991 | J7: =K7+J6 -> 0.9764 | K7: =L7+K6 -> 0.0659 | L7: =M7+L6 -> 0.0107 | M7: =N7+M6 -> 0.0033 | N7: =O7+N6 -> 0.0007 | O7: =O6 -> 0.0006
D8: From BBB to… | G8: 0 | H8: 100 | I8: =NORMSINV(I7) -> 3.121389149 | J8: 1.98450115 | K8: -1.507041578 | L8: -2.300851965 | M8: -2.716380583 | N8: -3.194651054 | O8: =NORMSINV(O7) -> -3.238880118
D9: AAA | E9: 0.0002 | F9: =F10+E9 -> 1 | G9: 100 | H9: =bivar($G9,H$8,$G$8)+IF(AND(H$18>1,$Q9>1),bivar($G10,I$8,$G$8),0)-IF($Q9>1,bivar($G10,H$8,$G$8),0)-IF(H$18>1,bivar($G9,I$8,$G$8),0) -> 1.778551417e-07 | I9: =bivar($G9,I$8,$G$8)+IF(AND(I$18>1,$Q9>1),bivar($G10,J$8,$G$8),0)-IF($Q9>1,bivar($G10,I$8,$G$8),0)-IF(I$18>1,bivar($G9,J$8,$G$8),0) -> 4.503824652e-06 | J9: =bivar($G9,J$8,$G$8)+IF(AND(J$18>1,$Q9>1),bivar($G10,K$8,$G$8),0)-IF($Q9>1,bivar($G10,J$8,$G$8),0)-IF(J$18>1,bivar($G9,K$8,$G$8),0) -> 0.0001822832873 | K9: =bivar($G9,K$8,$G$8)+IF(AND(K$18>1,$Q9>1),bivar($G10,L$8,$G$8),0)-IF($Q9>1,bivar($G10,K$8,$G$8),0)-IF(K$18>1,bivar($G9,L$8,$G$8),0) -> 1.09547621e-05 | L9: =bivar($G9,L$8,$G$8)+IF(AND(L$18>1,$Q9>1),bivar($G10,M$8,$G$8),0)-IF($Q9>1,bivar($G10,L$8,$G$8),0)-IF(L$18>1,bivar($G9,M$8,$G$8),0) -> 1.4681087e-06 | M9: =bivar($G9,M$8,$G$8)+IF(AND(M$18>1,$Q9>1),bivar($G10,N$8,$G$8),0)-IF($Q9>1,bivar($G10,M$8,$G$8),0)-IF(M$18>1,bivar($G9,N$8,$G$8),0) -> 5.152983688e-07 | N9: =bivar($G9,N$8,$G$8)+IF(AND(N$18>1,$Q9>1),bivar($G10,O$8,$G$8),0)-IF($Q9>1,bivar($G10,N$8,$G$8),0)-IF(N$18>1,bivar($G9,O$8,$G$8),0) -> 1.979169216e-08 | O9: =bivar($G9,O$8,$G$8)+IF(AND(O$18>1,$Q9>1),bivar($G10,P$8,$G$8),0)-IF($Q9>1,bivar($G10,O$8,$G$8),0)-IF(O$18>1,bivar($G9,P$8,$G$8),0) -> 1.184670168e-07 | P9: =SUM(H9:O9) -> 0.000200041395 | Q9: 8
D10: AA | E10: 0.0033 | F10: =F11+E10 -> 0.9998 | G10: =NORMSINV(F10) -> 3.540083799 | H10: =bivar($G10,H$8,$G$8)+IF(AND(H$18>1,$Q10>1),bivar($G11,I$8,$G$8),0)-IF($Q10>1,bivar($G11,H$8,$G$8),0)-IF(H$18>1,bivar($G10,I$8,$G$8),0) -> 2.95313746e-06 | I10: =bivar($G10,I$8,$G$8)+IF(AND(I$18>1,$Q10>1),bivar($G11,J$8,$G$8),0)-IF($Q10>1,bivar($G11,I$8,$G$8),0)-IF(I$18>1,bivar($G10,J$8,$G$8),0) -> 7.478228152e-05 | J10: =bivar($G10,J$8,$G$8)+IF(AND(J$18>1,$Q10>1),bivar($G11,K$8,$G$8),0)-IF($Q10>1,bivar($G11,J$8,$G$8),0)-IF(J$18>1,bivar($G10,K$8,$G$8),0) -> 0.003005148918 | K10: =bivar($G10,K$8,$G$8)+IF(AND(K$18>1,$Q10>1),bivar($G11,L$8,$G$8),0)-IF($Q10>1,bivar($G11,K$8,$G$8),0)-IF(K$18>1,bivar($G10,L$8,$G$8),0) -> 0.0001818947599 | L10: =bivar($G10,L$8,$G$8)+IF(AND(L$18>1,$Q10>1),bivar($G11,M$8,$G$8),0)-IF($Q10>1,bivar($G11,L$8,$G$8),0)-IF(L$18>1,bivar($G10,M$8,$G$8),0) -> 2.437673013e-05 | M10: =bivar($G10,M$8,$G$8)+IF(AND(M$18>1,$Q10>1),bivar($G11,N$8,$G$8),0)-IF($Q10>1,bivar($G11,M$8,$G$8),0)-IF(M$18>1,bivar($G10,N$8,$G$8),0) -> 8.556103015e-06 | N10: =bivar($G10,N$8,$G$8)+IF(AND(N$18>1,$Q10>1),bivar($G11,O$8,$G$8),0)-IF($Q10>1,bivar($G11,N$8,$G$8),0)-IF(N$18>1,bivar($G10,O$8,$G$8),0) -> 3.286246711e-07 | O10: =bivar($G10,O$8,$G$8)+IF(AND(O$18>1,$Q10>1),bivar($G11,P$8,$G$8),0)-IF($Q10>1,bivar($G11,O$8,$G$8),0)-IF(O$18>1,bivar($G10,P$8,$G$8),0) -> 1.967046785e-06 | P10: =SUM(H10:O10) -> 0.003300007601 | Q10: 7
D11: A | E11: 0.0595 | F11: =F12+E11 -> 0.9965 | G11: =NORMSINV(F11) -> 2.696844261 | H11: =bivar($G11,H$8,$G$8)+IF(AND(H$18>1,$Q11>1),bivar($G12,I$8,$G$8),0)-IF($Q11>1,bivar($G12,H$8,$G$8),0)-IF(H$18>1,bivar($G11,I$8,$G$8),0) -> 5.333054727e-05 | I11: =bivar($G11,I$8,$G$8)+IF(AND(I$18>1,$Q11>1),bivar($G12,J$8,$G$8),0)-IF($Q11>1,bivar($G12,I$8,$G$8),0)-IF(I$18>1,bivar($G11,J$8,$G$8),0) -> 0.001350489117 | J11: =bivar($G11,J$8,$G$8)+IF(AND(J$18>1,$Q11>1),bivar($G12,K$8,$G$8),0)-IF($Q11>1,bivar($G12,J$8,$G$8),0)-IF(J$18>1,bivar($G11,K$8,$G$8),0) -> 0.05417513608 | K11: =bivar($G11,K$8,$G$8)+IF(AND(K$18>1,$Q11>1),bivar($G12,L$8,$G$8),0)-IF($Q11>1,bivar($G12,K$8,$G$8),0)-IF(K$18>1,bivar($G11,L$8,$G$8),0) -> 0.003284827483 | L11: =bivar($G11,L$8,$G$8)+IF(AND(L$18>1,$Q11>1),bivar($G12,M$8,$G$8),0)-IF($Q11>1,bivar($G12,L$8,$G$8),0)-IF(L$18>1,bivar($G11,M$8,$G$8),0) -> 0.0004402180313 | M11: =bivar($G11,M$8,$G$8)+IF(AND(M$18>1,$Q11>1),bivar($G12,N$8,$G$8),0)-IF($Q11>1,bivar($G12,M$8,$G$8),0)-IF(M$18>1,bivar($G11,N$8,$G$8),0) -> 0.0001545141946 | N11: =bivar($G11,N$8,$G$8)+IF(AND(N$18>1,$Q11>1),bivar($G12,O$8,$G$8),0)-IF($Q11>1,bivar($G12,N$8,$G$8),0)-IF(N$18>1,bivar($G11,O$8,$G$8),0) -> 5.934614894e-06 | O11: =bivar($G11,O$8,$G$8)+IF(AND(O$18>1,$Q11>1),bivar($G12,P$8,$G$8),0)-IF($Q11>1,bivar($G12,O$8,$G$8),0)-IF(O$18>1,bivar($G11,P$8,$G$8),0) -> 3.55227899e-05 | P11: =SUM(H11:O11) -> 0.05949997286 | Q11: 6
D12: BBB | E12: 0.8693 | F12: =F13+E12 -> 0.937 | G12: =NORMSINV(F12) -> 1.530067588 | H12: =bivar($G12,H$8,$G$8)+IF(AND(H$18>1,$Q12>1),bivar($G13,I$8,$G$8),0)-IF($Q12>1,bivar($G13,H$8,$G$8),0)-IF(H$18>1,bivar($G12,I$8,$G$8),0) -> 0.0007829315961 | I12: =bivar($G12,I$8,$G$8)+IF(AND(I$18>1,$Q12>1),bivar($G13,J$8,$G$8),0)-IF($Q12>1,bivar($G13,I$8,$G$8),0)-IF(I$18>1,bivar($G12,J$8,$G$8),0) -> 0.01973363345 | J12: =bivar($G12,J$8,$G$8)+IF(AND(J$18>1,$Q12>1),bivar($G13,K$8,$G$8),0)-IF($Q12>1,bivar($G13,J$8,$G$8),0)-IF(J$18>1,bivar($G12,K$8,$G$8),0) -> 0.7914955197 | K12: =bivar($G12,K$8,$G$8)+IF(AND(K$18>1,$Q12>1),bivar($G13,L$8,$G$8),0)-IF($Q12>1,bivar($G13,K$8,$G$8),0)-IF(K$18>1,bivar($G12,L$8,$G$8),0) -> 0.04798522337 | L12: =bivar($G12,L$8,$G$8)+IF(AND(L$18>1,$Q12>1),bivar($G13,M$8,$G$8),0)-IF($Q12>1,bivar($G13,L$8,$G$8),0)-IF(L$18>1,bivar($G12,M$8,$G$8),0) -> 0.006433020158 | M12: =bivar($G12,M$8,$G$8)+IF(AND(M$18>1,$Q12>1),bivar($G13,N$8,$G$8),0)-IF($Q12>1,bivar($G13,M$8,$G$8),0)-IF(M$18>1,bivar($G12,N$8,$G$8),0) -> 0.002260610307 | N12: =bivar($G12,N$8,$G$8)+IF(AND(N$18>1,$Q12>1),bivar($G13,O$8,$G$8),0)-IF($Q12>1,bivar($G13,N$8,$G$8),0)-IF(N$18>1,bivar($G12,O$8,$G$8),0) -> 8.696746733e-05 | O12: =bivar($G12,O$8,$G$8)+IF(AND(O$18>1,$Q12>1),bivar($G13,P$8,$G$8),0)-IF($Q12>1,bivar($G13,O$8,$G$8),0)-IF(O$18>1,bivar($G12,P$8,$G$8),0) -> 0.0005220394419 | P12: =SUM(H12:O12) -> 0.8692999454 | Q12: 5
D13: BB | E13: 0.053 | F13: =F14+E13 -> 0.0677 | G13: =NORMSINV(F13) -> -1.493142078 | H13: =bivar($G13,H$8,$G$8)+IF(AND(H$18>1,$Q13>1),bivar($G14,I$8,$G$8),0)-IF($Q13>1,bivar($G14,H$8,$G$8),0)-IF(H$18>1,bivar($G13,I$8,$G$8),0) -> 4.750647762e-05 | I13: =bivar($G13,I$8,$G$8)+IF(AND(I$18>1,$Q13>1),bivar($G14,J$8,$G$8),0)-IF($Q13>1,bivar($G14,I$8,$G$8),0)-IF(I$18>1,bivar($G13,J$8,$G$8),0) -> 0.001203006237 | J13: =bivar($G13,J$8,$G$8)+IF(AND(J$18>1,$Q13>1),bivar($G14,K$8,$G$8),0)-IF($Q13>1,bivar($G14,J$8,$G$8),0)-IF(J$18>1,bivar($G13,K$8,$G$8),0) -> 0.04825675705 | K13: =bivar($G13,K$8,$G$8)+IF(AND(K$18>1,$Q13>1),bivar($G14,L$8,$G$8),0)-IF($Q13>1,bivar($G14,K$8,$G$8),0)-IF(K$18>1,bivar($G13,L$8,$G$8),0) -> 0.002926101294 | L13: =bivar($G13,L$8,$G$8)+IF(AND(L$18>1,$Q13>1),bivar($G14,M$8,$G$8),0)-IF($Q13>1,bivar($G14,L$8,$G$8),0)-IF(L$18>1,bivar($G13,M$8,$G$8),0) -> 0.0003921431361 | M13: =bivar($G13,M$8,$G$8)+IF(AND(M$18>1,$Q13>1),bivar($G14,N$8,$G$8),0)-IF($Q13>1,bivar($G14,M$8,$G$8),0)-IF(M$18>1,bivar($G13,N$8,$G$8),0) -> 0.0001376401613 | N13: =bivar($G13,N$8,$G$8)+IF(AND(N$18>1,$Q13>1),bivar($G14,O$8,$G$8),0)-IF($Q13>1,bivar($G14,N$8,$G$8),0)-IF(N$18>1,bivar($G13,O$8,$G$8),0) -> 5.286513343e-06 | O13: =bivar($G13,O$8,$G$8)+IF(AND(O$18>1,$Q13>1),bivar($G14,P$8,$G$8),0)-IF($Q13>1,bivar($G14,O$8,$G$8),0)-IF(O$18>1,bivar($G13,P$8,$G$8),0) -> 3.164345221e-05 | P13: =SUM(H13:O13) -> 0.05300008432 | Q13: 4
D14: B | E14: 0.0117 | F14: =F15+E14 -> 0.0147 | G14: =NORMSINV(F14) -> -2.178081092 | H14: =bivar($G14,H$8,$G$8)+IF(AND(H$18>1,$Q14>1),bivar($G15,I$8,$G$8),0)-IF($Q14>1,bivar($G15,H$8,$G$8),0)-IF(H$18>1,bivar($G14,I$8,$G$8),0) -> 1.04846654e-05 | I14: =bivar($G14,I$8,$G$8)+IF(AND(I$18>1,$Q14>1),bivar($G15,J$8,$G$8),0)-IF($Q14>1,bivar($G15,I$8,$G$8),0)-IF(I$18>1,bivar($G14,J$8,$G$8),0) -> 0.0002655031166 | J14: =bivar($G14,J$8,$G$8)+IF(AND(J$18>1,$Q14>1),bivar($G15,K$8,$G$8),0)-IF($Q14>1,bivar($G15,J$8,$G$8),0)-IF(J$18>1,bivar($G14,K$8,$G$8),0) -> 0.01065304222 | K14: =bivar($G14,K$8,$G$8)+IF(AND(K$18>1,$Q14>1),bivar($G15,L$8,$G$8),0)-IF($Q14>1,bivar($G15,K$8,$G$8),0)-IF(K$18>1,bivar($G14,L$8,$G$8),0) -> 0.0006457896799 | L14: =bivar($G14,L$8,$G$8)+IF(AND(L$18>1,$Q14>1),bivar($G15,M$8,$G$8),0)-IF($Q14>1,bivar($G15,L$8,$G$8),0)-IF(L$18>1,bivar($G14,M$8,$G$8),0) -> 8.654587278e-05 | M14: =bivar($G14,M$8,$G$8)+IF(AND(M$18>1,$Q14>1),bivar($G15,N$8,$G$8),0)-IF($Q14>1,bivar($G15,M$8,$G$8),0)-IF(M$18>1,bivar($G14,N$8,$G$8),0) -> 3.037714242e-05 | N14: =bivar($G14,N$8,$G$8)+IF(AND(N$18>1,$Q14>1),bivar($G15,O$8,$G$8),0)-IF($Q14>1,bivar($G15,N$8,$G$8),0)-IF(N$18>1,bivar($G14,O$8,$G$8),0) -> 1.166731913e-06 | O14: =bivar($G14,O$8,$G$8)+IF(AND(O$18>1,$Q14>1),bivar($G15,P$8,$G$8),0)-IF($Q14>1,bivar($G15,O$8,$G$8),0)-IF(O$18>1,bivar($G14,P$8,$G$8),0) -> 6.983700432e-06 | P14: =SUM(H14:O14) -> 0.01169989313 | Q14: 3
D15: CCC | E15: 0.0012 | F15: =F16+E15 -> 0.003 | G15: =NORMSINV(F15) -> -2.747781385 | H15: =bivar($G15,H$8,$G$8)+IF(AND(H$18>1,$Q15>1),bivar($G16,I$8,$G$8),0)-IF($Q15>1,bivar($G16,H$8,$G$8),0)-IF(H$18>1,bivar($G15,I$8,$G$8),0) -> 1.074505611e-06 | I15: =bivar($G15,I$8,$G$8)+IF(AND(I$18>1,$Q15>1),bivar($G16,J$8,$G$8),0)-IF($Q15>1,bivar($G16,I$8,$G$8),0)-IF(I$18>1,bivar($G15,J$8,$G$8),0) -> 2.720969891e-05 | J15: =bivar($G15,J$8,$G$8)+IF(AND(J$18>1,$Q15>1),bivar($G16,K$8,$G$8),0)-IF($Q15>1,bivar($G16,J$8,$G$8),0)-IF(J$18>1,bivar($G15,K$8,$G$8),0) -> 0.001092702876 | K15: =bivar($G15,K$8,$G$8)+IF(AND(K$18>1,$Q15>1),bivar($G16,L$8,$G$8),0)-IF($Q15>1,bivar($G16,K$8,$G$8),0)-IF(K$18>1,bivar($G15,L$8,$G$8),0) -> 6.618281162e-05 | L15: =bivar($G15,L$8,$G$8)+IF(AND(L$18>1,$Q15>1),bivar($G16,M$8,$G$8),0)-IF($Q15>1,bivar($G16,L$8,$G$8),0)-IF(L$18>1,bivar($G15,M$8,$G$8),0) -> 8.869527298e-06 | M15: =bivar($G15,M$8,$G$8)+IF(AND(M$18>1,$Q15>1),bivar($G16,N$8,$G$8),0)-IF($Q15>1,bivar($G16,M$8,$G$8),0)-IF(M$18>1,bivar($G15,N$8,$G$8),0) -> 3.113157049e-06 | N15: =bivar($G15,N$8,$G$8)+IF(AND(N$18>1,$Q15>1),bivar($G16,O$8,$G$8),0)-IF($Q15>1,bivar($G16,N$8,$G$8),0)-IF(N$18>1,bivar($G15,O$8,$G$8),0) -> 1.195708151e-07 | O15: =bivar($G15,O$8,$G$8)+IF(AND(O$18>1,$Q15>1),bivar($G16,P$8,$G$8),0)-IF($Q15>1,bivar($G16,O$8,$G$8),0)-IF(O$18>1,bivar($G15,P$8,$G$8),0) -> 7.157143332e-07 | P15: =SUM(H15:O15) -> 0.001199987862 | Q15: 2
D16: Default | E16: 0.0018 | F16: =E16 -> 0.0018 | G16: =NORMSINV(F16) -> -2.911237726 | H16: =bivar($G16,H$8,$G$8)+IF(AND(H$18>1,$Q16>1),bivar($G17,I$8,$G$8),0)-IF($Q16>1,bivar($G17,H$8,$G$8),0)-IF(H$18>1,bivar($G16,I$8,$G$8),0) -> 1.608650545e-06 | I16: =bivar($G16,I$8,$G$8)+IF(AND(I$18>1,$Q16>1),bivar($G17,J$8,$G$8),0)-IF($Q16>1,bivar($G17,I$8,$G$8),0)-IF(I$18>1,bivar($G16,J$8,$G$8),0) -> 4.073584776e-05 | J16: =bivar($G16,J$8,$G$8)+IF(AND(J$18>1,$Q16>1),bivar($G17,K$8,$G$8),0)-IF($Q16>1,bivar($G17,J$8,$G$8),0)-IF(J$18>1,bivar($G16,K$8,$G$8),0) -> 0.001639450219 | K16: =bivar($G16,K$8,$G$8)+IF(AND(K$18>1,$Q16>1),bivar($G17,L$8,$G$8),0)-IF($Q16>1,bivar($G17,K$8,$G$8),0)-IF(K$18>1,bivar($G16,L$8,$G$8),0) -> 9.908279202e-05 | L16: =bivar($G16,L$8,$G$8)+IF(AND(L$18>1,$Q16>1),bivar($G17,M$8,$G$8),0)-IF($Q16>1,bivar($G17,L$8,$G$8),0)-IF(L$18>1,bivar($G16,M$8,$G$8),0) -> 1.327863696e-05 | M16: =bivar($G16,M$8,$G$8)+IF(AND(M$18>1,$Q16>1),bivar($G17,N$8,$G$8),0)-IF($Q16>1,bivar($G17,M$8,$G$8),0)-IF(M$18>1,bivar($G16,N$8,$G$8),0) -> 4.660731161e-06 | N16: =bivar($G16,N$8,$G$8)+IF(AND(N$18>1,$Q16>1),bivar($G17,O$8,$G$8),0)-IF($Q16>1,bivar($G17,N$8,$G$8),0)-IF(N$18>1,bivar($G16,O$8,$G$8),0) -> 1.790103792e-07 | O16: =bivar($G16,O$8,$G$8)+IF(AND(O$18>1,$Q16>1),bivar($G17,P$8,$G$8),0)-IF($Q16>1,bivar($G17,O$8,$G$8),0)-IF(O$18>1,bivar($G16,P$8,$G$8),0) -> 1.071501387e-06 | P16: =SUM(H16:O16) -> 0.00180006739 | Q16: 1
H17: =SUM(H9:H16) -> 0.0009000674351 | I17: =SUM(I9:I16) -> 0.02269986358 | J17: =SUM(J9:J16) -> 0.9105000403 | K17: =SUM(K9:K16) -> 0.05520005695 | L17: =SUM(L9:L16) -> 0.007399920201 | M17: =SUM(M9:M16) -> 0.002599987095 | N17: =SUM(N9:N16) -> 0.000100002325 | O17: =SUM(O9:O16) -> 0.0006000621139 | P17: =SUM(P9:P16) -> 1
H18: 8 | I18: 7 | J18: 6 | K18: 5 | L18: 4 | M18: 3 | N18: 2 | O18: 1
B20: 2 | G20: From A to… | H20: AAA | I20: AA | J20: A | K20: BBB | L20: BB | M20: B | N20: CCC | O20: Default
H21: 0.0009 | I21: 0.0227 | J21: 0.9105 | K21: 0.0552 | L21: 0.0074 | M21: 0.0026 | N21: 0.0001 | O21: 0.0006
H22: 0.9999999 | I22: =J22+I21 -> 0.9991 | J22: =K22+J21 -> 0.9764 | K22: =L22+K21 -> 0.0659 | L22: =M22+L21 -> 0.0107 | M22: =N22+M21 -> 0.0033 | N22: =O22+N21 -> 0.0007 | O22: =O21 -> 0.0006
D23: From BBB to… | G23: 0.2 | H23: 100 | I23: =NORMSINV(I22) -> 3.121389149 | J23: =NORMSINV(J22) -> 1.98450115 | K23: =NORMSINV(K22) -> -1.507041578 | L23: =NORMSINV(L22) -> -2.300851965 | M23: =NORMSINV(M22) -> -2.716380583 | N23: =NORMSINV(N22) -> -3.194651054 | O23: =NORMSINV(O22) -> -3.238880118
D24: AAA | E24: 0.0002 | F24: =F25+E24 -> 1 | G24: 100 | H24: =bivar($G24,H$23,$G$23)+IF(AND(H$33>1,$Q24>1),bivar($G25,I$23,$G$23),0)-IF($Q24>1,bivar($G25,H$23,$G$23),0)-IF(H$33>1,bivar($G24,I$23,$G$23),0) -> 1.55648265e-06 | I24: =bivar($G24,I$23,$G$23)+IF(AND(I$33>1,$Q24>1),bivar($G25,J$23,$G$23),0)-IF($Q24>1,bivar($G25,I$23,$G$23),0)-IF(I$33>1,bivar($G24,J$23,$G$23),0) -> 1.924707839e-05 | J24: =bivar($G24,J$23,$G$23)+IF(AND(J$33>1,$Q24>1),bivar($G25,K$23,$G$23),0)-IF($Q24>1,bivar($G25,J$23,$G$23),0)-IF(J$33>1,bivar($G24,K$23,$G$23),0) -> 0.0001771740424 | K24: =bivar($G24,K$23,$G$23)+IF(AND(K$33>1,$Q24>1),bivar($G25,L$23,$G$23),0)-IF($Q24>1,bivar($G25,K$23,$G$23),0)-IF(K$33>1,bivar($G24,L$23,$G$23),0) -> 1.88563782e-06 | L24: =bivar($G24,L$23,$G$23)+IF(AND(L$33>1,$Q24>1),bivar($G25,M$23,$G$23),0)-IF($Q24>1,bivar($G25,L$23,$G$23),0)-IF(L$33>1,bivar($G24,M$23,$G$23),0) -> 1.394604899e-07 | M24: =bivar($G24,M$23,$G$23)+IF(AND(M$33>1,$Q24>1),bivar($G25,N$23,$G$23),0)-IF($Q24>1,bivar($G25,M$23,$G$23),0)-IF(M$33>1,bivar($G24,N$23,$G$23),0) -> 3.329653617e-08 | N24: =bivar($G24,N$23,$G$23)+IF(AND(N$33>1,$Q24>1),bivar($G25,O$23,$G$23),0)-IF($Q24>1,bivar($G25,N$23,$G$23),0)-IF(N$33>1,bivar($G24,O$23,$G$23),0) -> 9.505346783e-10 | O24: =bivar($G24,O$23,$G$23)+IF(AND(O$33>1,$Q24>1),bivar($G25,P$23,$G$23),0)-IF($Q24>1,bivar($G25,O$23,$G$23),0)-IF(O$33>1,bivar($G24,P$23,$G$23),0) -> 4.446165907e-09 | P24: =SUM(H24:O24) -> 0.000200041395 | Q24: 8
D25: AA | E25: 0.0033 | F25: =F26+E25 -> 0.9998 | G25: =NORMSINV(F25) -> 3.540083799 | H25: =bivar($G25,H$23,$G$23)+IF(AND(H$33>1,$Q25>1),bivar($G26,I$23,$G$23),0)-IF($Q25>1,bivar($G26,H$23,$G$23),0)-IF(H$33>1,bivar($G25,I$23,$G$23),0) -> 1.606686761e-05 | I25: =bivar($G25,I$23,$G$23)+IF(AND(I$33>1,$Q25>1),bivar($G26,J$23,$G$23),0)-IF($Q25>1,bivar($G26,I$23,$G$23),0)-IF(I$33>1,bivar($G25,J$23,$G$23),0) -> 0.0002388380996 | J25: =bivar($G25,J$23,$G$23)+IF(AND(J$33>1,$Q25>1),bivar($G26,K$23,$G$23),0)-IF($Q25>1,bivar($G26,J$23,$G$23),0)-IF(J$33>1,bivar($G25,K$23,$G$23),0) -> 0.002991880945 | K25: =bivar($G25,K$23,$G$23)+IF(AND(K$33>1,$Q25>1),bivar($G26,L$23,$G$23),0)-IF($Q25>1,bivar($G26,K$23,$G$23),0)-IF(K$33>1,bivar($G25,L$23,$G$23),0) -> 4.800337456e-05 | L25: =bivar($G25,L$23,$G$23)+IF(AND(L$33>1,$Q25>1),bivar($G26,M$23,$G$23),0)-IF($Q25>1,bivar($G26,L$23,$G$23),0)-IF(L$33>1,bivar($G25,M$23,$G$23),0) -> 4.004708492e-06 | M25: =bivar($G25,M$23,$G$23)+IF(AND(M$33>1,$Q25>1),bivar($G26,N$23,$G$23),0)-IF($Q25>1,bivar($G26,M$23,$G$23),0)-IF(M$33>1,bivar($G25,N$23,$G$23),0) -> 1.030275764e-06 | N25: =bivar($G25,N$23,$G$23)+IF(AND(N$33>1,$Q25>1),bivar($G26,O$23,$G$23),0)-IF($Q25>1,bivar($G26,N$23,$G$23),0)-IF(N$33>1,bivar($G25,O$23,$G$23),0) -> 3.116398644e-08 | O25: =bivar($G25,O$23,$G$23)+IF(AND(O$33>1,$Q25>1),bivar($G26,P$23,$G$23),0)-IF($Q25>1,bivar($G26,O$23,$G$23),0)-IF(O$33>1,bivar($G25,P$23,$G$23),0) -> 1.521660544e-07 | P25: =SUM(H25:O25) -> 0.003300007601 | Q25: 7
D26: A | E26: 0.0595 | F26: =F27+E26 -> 0.9965 | G26: =NORMSINV(F26) -> 2.696844261 | H26: =bivar($G26,H$23,$G$23)+IF(AND(H$33>1,$Q26>1),bivar($G27,I$23,$G$23),0)-IF($Q26>1,bivar($G27,H$23,$G$23),0)-IF(H$33>1,bivar($G26,I$23,$G$23),0) -> 0.0001547044582 | I26: =bivar($G26,I$23,$G$23)+IF(AND(I$33>1,$Q26>1),bivar($G27,J$23,$G$23),0)-IF($Q26>1,bivar($G27,I$23,$G$23),0)-IF(I$33>1,bivar($G26,J$23,$G$23),0) -> 0.002883348801 | J26: =bivar($G26,J$23,$G$23)+IF(AND(J$33>1,$Q26>1),bivar($G27,K$23,$G$23),0)-IF($Q26>1,bivar($G27,J$23,$G$23),0)-IF(J$33>1,bivar($G26,K$23,$G$23),0) -> 0.05484301719 | K26: =bivar($G26,K$23,$G$23)+IF(AND(K$33>1,$Q26>1),bivar($G27,L$23,$G$23),0)-IF($Q26>1,bivar($G27,K$23,$G$23),0)-IF(K$33>1,bivar($G26,L$23,$G$23),0) -> 0.001432168299 | L26: =bivar($G26,L$23,$G$23)+IF(AND(L$33>1,$Q26>1),bivar($G27,M$23,$G$23),0)-IF($Q26>1,bivar($G27,L$23,$G$23),0)-IF(L$33>1,bivar($G26,M$23,$G$23),0) -> 0.0001393141373 | M26: =bivar($G26,M$23,$G$23)+IF(AND(M$33>1,$Q26>1),bivar($G27,N$23,$G$23),0)-IF($Q26>1,bivar($G27,M$23,$G$23),0)-IF(M$33>1,bivar($G26,N$23,$G$23),0) -> 3.947854969e-05 | N26: =bivar($G26,N$23,$G$23)+IF(AND(N$33>1,$Q26>1),bivar($G27,O$23,$G$23),0)-IF($Q26>1,bivar($G27,N$23,$G$23),0)-IF(N$33>1,bivar($G26,O$23,$G$23),0) -> 1.286203046e-06 | O26: =bivar($G26,O$23,$G$23)+IF(AND(O$33>1,$Q26>1),bivar($G27,P$23,$G$23),0)-IF($Q26>1,bivar($G27,O$23,$G$23),0)-IF(O$33>1,bivar($G26,P$23,$G$23),0) -> 6.655217956e-06 | P26: =SUM(H26:O26) -> 0.05949997286 | Q26: 6
D27: BBB | E27: 0.8693 | F27: =F28+E27 -> 0.937 | G27: =NORMSINV(F27) -> 1.530067588 | H27: =bivar($G27,H$23,$G$23)+IF(AND(H$33>1,$Q27>1),bivar($G28,I$23,$G$23),0)-IF($Q27>1,bivar($G28,H$23,$G$23),0)-IF(H$33>1,bivar($G27,I$23,$G$23),0) -> 0.0007157786057 | I27: =bivar($G27,I$23,$G$23)+IF(AND(I$33>1,$Q27>1),bivar($G28,J$23,$G$23),0)-IF($Q27>1,bivar($G28,I$23,$G$23),0)-IF(I$33>1,bivar($G27,J$23,$G$23),0) -> 0.01903549391 | J27: =bivar($G27,J$23,$G$23)+IF(AND(J$33>1,$Q27>1),bivar($G28,K$23,$G$23),0)-IF($Q27>1,bivar($G28,J$23,$G$23),0)-IF(J$33>1,bivar($G27,K$23,$G$23),0) -> 0.7939235483 | K27: =bivar($G27,K$23,$G$23)+IF(AND(K$33>1,$Q27>1),bivar($G28,L$23,$G$23),0)-IF($Q27>1,bivar($G28,K$23,$G$23),0)-IF(K$33>1,bivar($G27,L$23,$G$23),0) -> 0.04685591371 | L27: =bivar($G27,L$23,$G$23)+IF(AND(L$33>1,$Q27>1),bivar($G28,M$23,$G$23),0)-IF($Q27>1,bivar($G28,L$23,$G$23),0)-IF(L$33>1,bivar($G27,M$23,$G$23),0) -> 0.006117465174 | M27: =bivar($G27,M$23,$G$23)+IF(AND(M$33>1,$Q27>1),bivar($G28,N$23,$G$23),0)-IF($Q27>1,bivar($G28,M$23,$G$23),0)-IF(M$33>1,bivar($G27,N$23,$G$23),0) -> 0.002103799816 | N27: =bivar($G27,N$23,$G$23)+IF(AND(N$33>1,$Q27>1),bivar($G28,O$23,$G$23),0)-IF($Q27>1,bivar($G28,N$23,$G$23),0)-IF(N$33>1,bivar($G27,O$23,$G$23),0) -> 7.950011528e-05 | O27: =bivar($G27,O$23,$G$23)+IF(AND(O$33>1,$Q27>1),bivar($G28,P$23,$G$23),0)-IF($Q27>1,bivar($G28,O$23,$G$23),0)-IF(O$33>1,bivar($G27,P$23,$G$23),0) -> 0.0004684458538 | P27: =SUM(H27:O27) -> 0.8692999454 | Q27: 5
D28: BB | E28: 0.053 | F28: =F29+E28 -> 0.0677 | G28: =NORMSINV(F28) -> -1.493142078 | H28: =bivar($G28,H$23,$G$23)+IF(AND(H$33>1,$Q28>1),bivar($G29,I$23,$G$23),0)-IF($Q28>1,bivar($G29,H$23,$G$23),0)-IF(H$33>1,bivar($G28,I$23,$G$23),0) -> 1.036735001e-05 | I28: =bivar($G28,I$23,$G$23)+IF(AND(I$33>1,$Q28>1),bivar($G29,J$23,$G$23),0)-IF($Q28>1,bivar($G29,I$23,$G$23),0)-IF(I$33>1,bivar($G28,J$23,$G$23),0) -> 0.0004426427165 | J28: =bivar($G28,J$23,$G$23)+IF(AND(J$33>1,$Q28>1),bivar($G29,K$23,$G$23),0)-IF($Q28>1,bivar($G29,J$23,$G$23),0)-IF(J$33>1,bivar($G28,K$23,$G$23),0) -> 0.04620640079 | K28: =bivar($G28,K$23,$G$23)+IF(AND(K$33>1,$Q28>1),bivar($G29,L$23,$G$23),0)-IF($Q28>1,bivar($G29,K$23,$G$23),0)-IF(K$33>1,bivar($G28,L$23,$G$23),0) -> 0.005096883797 | L28: =bivar($G28,L$23,$G$23)+IF(AND(L$33>1,$Q28>1),bivar($G29,M$23,$G$23),0)-IF($Q28>1,bivar($G29,L$23,$G$23),0)-IF(L$33>1,bivar($G28,M$23,$G$23),0) -> 0.000822366497 | M28: =bivar($G28,M$23,$G$23)+IF(AND(M$33>1,$Q28>1),bivar($G29,N$23,$G$23),0)-IF($Q28>1,bivar($G29,M$23,$G$23),0)-IF(M$33>1,bivar($G28,N$23,$G$23),0) -> 0.0003224385933 | N28: =bivar($G28,N$23,$G$23)+IF(AND(N$33>1,$Q28>1),bivar($G29,O$23,$G$23),0)-IF($Q28>1,bivar($G29,N$23,$G$23),0)-IF(N$33>1,bivar($G28,O$23,$G$23),0) -> 1.337075162e-05 | O28: =bivar($G28,O$23,$G$23)+IF(AND(O$33>1,$Q28>1),bivar($G29,P$23,$G$23),0)-IF($Q28>1,bivar($G29,O$23,$G$23),0)-IF(O$33>1,bivar($G28,P$23,$G$23),0) -> 8.561381959e-05 | P28: =SUM(H28:O28) -> 0.05300008432 | Q28: 4
D29: B | E29: 0.0117 | F29: =F30+E29 -> 0.0147 | G29: =NORMSINV(F29) -> -2.178081092 | H29: =bivar($G29,H$23,$G$23)+IF(AND(H$33>1,$Q29>1),bivar($G30,I$23,$G$23),0)-IF($Q29>1,bivar($G30,H$23,$G$23),0)-IF(H$33>1,bivar($G29,I$23,$G$23),0) -> 1.382829799e-06 | I29: =bivar($G29,I$23,$G$23)+IF(AND(I$33>1,$Q29>1),bivar($G30,J$23,$G$23),0)-IF($Q29>1,bivar($G30,I$23,$G$23),0)-IF(I$33>1,bivar($G29,J$23,$G$23),0) -> 6.829550259e-05 | J29: =bivar($G29,J$23,$G$23)+IF(AND(J$33>1,$Q29>1),bivar($G30,K$23,$G$23),0)-IF($Q29>1,bivar($G30,J$23,$G$23),0)-IF(J$33>1,bivar($G29,K$23,$G$23),0) -> 0.00990863718 | K29: =bivar($G29,K$23,$G$23)+IF(AND(K$33>1,$Q29>1),bivar($G30,L$23,$G$23),0)-IF($Q29>1,bivar($G30,K$23,$G$23),0)-IF(K$33>1,bivar($G29,L$23,$G$23),0) -> 0.001353063303 | L29: =bivar($G29,L$23,$G$23)+IF(AND(L$33>1,$Q29>1),bivar($G30,M$23,$G$23),0)-IF($Q29>1,bivar($G30,L$23,$G$23),0)-IF(L$33>1,bivar($G29,M$23,$G$23),0) -> 0.0002375541507 | M29: =bivar($G29,M$23,$G$23)+IF(AND(M$33>1,$Q29>1),bivar($G30,N$23,$G$23),0)-IF($Q29>1,bivar($G30,M$23,$G$23),0)-IF(M$33>1,bivar($G29,N$23,$G$23),0) -> 9.843014057e-05 | N29: =bivar($G29,N$23,$G$23)+IF(AND(N$33>1,$Q29>1),bivar($G30,O$23,$G$23),0)-IF($Q29>1,bivar($G30,N$23,$G$23),0)-IF(N$33>1,bivar($G29,O$23,$G$23),0) -> 4.246915903e-06 | O29: =bivar($G29,O$23,$G$23)+IF(AND(O$33>1,$Q29>1),bivar($G30,P$23,$G$23),0)-IF($Q29>1,bivar($G30,O$23,$G$23),0)-IF(O$33>1,bivar($G29,P$23,$G$23),0) -> 2.828310622e-05 | P29: =SUM(H29:O29) -> 0.01169989313 | Q29: 3
D30: CCC | E30: 0.0012 | F30: =F31+E30 -> 0.003 | G30: =NORMSINV(F30) -> -2.747781385 | H30: =bivar($G30,H$23,$G$23)+IF(AND(H$33>1,$Q30>1),bivar($G31,I$23,$G$23),0)-IF($Q30>1,bivar($G31,H$23,$G$23),0)-IF(H$33>1,bivar($G30,I$23,$G$23),0) -> 9.96073221e-08 | I30: =bivar($G30,I$23,$G$23)+IF(AND(I$33>1,$Q30>1),bivar($G31,J$23,$G$23),0)-IF($Q30>1,bivar($G31,I$23,$G$23),0)-IF(I$33>1,bivar($G30,J$23,$G$23),0) -> 5.439791361e-06 | J30: =bivar($G30,J$23,$G$23)+IF(AND(J$33>1,$Q30>1),bivar($G31,K$23,$G$23),0)-IF($Q30>1,bivar($G31,J$23,$G$23),0)-IF(J$33>1,bivar($G30,K$23,$G$23),0) -> 0.0009933358598 | K30: =bivar($G30,K$23,$G$23)+IF(AND(K$33>1,$Q30>1),bivar($G31,L$23,$G$23),0)-IF($Q30>1,bivar($G31,K$23,$G$23),0)-IF(K$33>1,bivar($G30,L$23,$G$23),0) -> 0.0001555335219 | L30: =bivar($G30,L$23,$G$23)+IF(AND(L$33>1,$Q30>1),bivar($G31,M$23,$G$23),0)-IF($Q30>1,bivar($G31,L$23,$G$23),0)-IF(L$33>1,bivar($G30,M$23,$G$23),0) -> 2.886682385e-05 | M30: =bivar($G30,M$23,$G$23)+IF(AND(M$33>1,$Q30>1),bivar($G31,N$23,$G$23),0)-IF($Q30>1,bivar($G31,M$23,$G$23),0)-IF(M$33>1,bivar($G30,N$23,$G$23),0) -> 1.240593978e-05 | N30: =bivar($G30,N$23,$G$23)+IF(AND(N$33>1,$Q30>1),bivar($G31,O$23,$G$23),0)-IF($Q30>1,bivar($G31,N$23,$G$23),0)-IF(N$33>1,bivar($G30,O$23,$G$23),0) -> 5.493904693e-07 | O30: =bivar($G30,O$23,$G$23)+IF(AND(O$33>1,$Q30>1),bivar($G31,P$23,$G$23),0)-IF($Q30>1,bivar($G31,O$23,$G$23),0)-IF(O$33>1,bivar($G30,P$23,$G$23),0) -> 3.756927514e-06 | P30: =SUM(H30:O30) -> 0.001199987862 | Q30: 2
D31: Default | E31: 0.0018 | F31: =E31 -> 0.0018 | G31: =NORMSINV(F31) -> -2.911237726 | H31: =bivar($G31,H$23,$G$23)+IF(AND(H$33>1,$Q31>1),bivar($G32,I$23,$G$23),0)-IF($Q31>1,bivar($G32,H$23,$G$23),0)-IF(H$33>1,bivar($G31,I$23,$G$23),0) -> 1.112337799e-07 | I31: =bivar($G31,I$23,$G$23)+IF(AND(I$33>1,$Q31>1),bivar($G32,J$23,$G$23),0)-IF($Q31>1,bivar($G32,I$23,$G$23),0)-IF(I$33>1,bivar($G31,J$23,$G$23),0) -> 6.557673626e-06 | J31: =bivar($G31,J$23,$G$23)+IF(AND(J$33>1,$Q31>1),bivar($G32,K$23,$G$23),0)-IF($Q31>1,bivar($G32,J$23,$G$23),0)-IF(J$33>1,bivar($G31,K$23,$G$23),0) -> 0.001456046032 | K31: =bivar($G31,K$23,$G$23)+IF(AND(K$33>1,$Q31>1),bivar($G32,L$23,$G$23),0)-IF($Q31>1,bivar($G32,K$23,$G$23),0)-IF(K$33>1,bivar($G31,L$23,$G$23),0) -> 0.000256605307 | L31: =bivar($G31,L$23,$G$23)+IF(AND(L$33>1,$Q31>1),bivar($G32,M$23,$G$23),0)-IF($Q31>1,bivar($G32,L$23,$G$23),0)-IF(L$33>1,bivar($G31,M$23,$G$23),0) -> 5.020924892e-05 | M31: =bivar($G31,M$23,$G$23)+IF(AND(M$33>1,$Q31>1),bivar($G32,N$23,$G$23),0)-IF($Q31>1,bivar($G32,M$23,$G$23),0)-IF(M$33>1,bivar($G31,N$23,$G$23),0) -> 2.237048366e-05 | N31: =bivar($G31,N$23,$G$23)+IF(AND(N$33>1,$Q31>1),bivar($G32,O$23,$G$23),0)-IF($Q31>1,bivar($G32,N$23,$G$23),0)-IF(N$33>1,bivar($G31,O$23,$G$23),0) -> 1.016834202e-06 | O31: =bivar($G31,O$23,$G$23)+IF(AND(O$33>1,$Q31>1),bivar($G32,P$23,$G$23),0)-IF($Q31>1,bivar($G32,O$23,$G$23),0)-IF(O$33>1,bivar($G31,P$23,$G$23),0) -> 7.150576581e-06 | P31: =SUM(H31:O31) -> 0.00180006739 | Q31: 1
H32: =SUM(H24:H31) -> 0.0009000674351 | I32: =SUM(I24:I31) -> 0.02269986358 | J32: =SUM(J24:J31) -> 0.9105000403 | K32: =SUM(K24:K31) -> 0.05520005695 | L32: =SUM(L24:L31) -> 0.007399920201 | M32: =SUM(M24:M31) -> 0.002599987095 | N32: =SUM(N24:N31) -> 0.000100002325 | O32: =SUM(O24:O31) -> 0.0006000621139 | P32: =SUM(P24:P31) -> 1
H33: 8 | I33: 7 | J33: 6 | K33: 5 | L33: 4 | M33: 3 | N33: 2 | O33: 1

Sheet Bivariate normal example
A1: =IFERROR(LEFT(R1,SEARCH(".",R1)-1),R1) & " > " & RIGHT(Q1, LEN(Q1) - SEARCH("]", Q1)) -> CreditMetrics & the Gaussian Copula > Bivariate normal example | Q1: =CELL("filename",A1) -> C:\Users\Hugo\Documents\HP ACAD\tns\[HPtn Risk - CreditMetrics & the Gaussian Copula.xlsm]Bivariate normal example | R1: =IFERROR(MID(Q1,FIND(CHAR(127),SUBSTITUTE(Q1,"-",CHAR(127), LEN(Q1)-LEN(SUBSTITUTE(Q1,"-",""))))+2,1024),MID(Q1,SEARCH("[",Q1)+1,SEARCH(".",Q1)-SEARCH("[",Q1)-1)) -> CreditMetrics & the Gaussian Copula.xlsm]Bivariate normal example
B3: A | D3: The table in section B is produced thanks to the "bivarpdf" function.
D4: Specify here the correlation, and the graph will adjust automatically its shape based on the calculations of the table.
D6: Correlation | G6: 0.2
B23: B | F23: -3 | G23: -2.9 | H23: -2.8 | I23: -2.7 | J23: -2.6 | K23: -2.5 | L23: -2.4 | M23: -2.3 | N23: -2.2 | O23: -2.1 | P23: -2 | Q23: -1.9 | R23: -1.8 | S23: -1.7 | T23: -1.6 | U23: -1.5 | V23: -1.4 | W23: -1.3 | X23: -1.2 | Y23: -1.1 | Z23: -1 | AA23: -0.9 | AB23: -0.8 | AC23: -0.7 | AD23: -0.6 | AE23: -0.5 | AF23: -0.4 | AG23: -0.3 | AH23: -0.2 | AI23: -0.1 | AJ23: 0 | AK23: 0.1 | AL23: 0.2 | AM23: 0.3 | AN23: 0.4 | AO23: 0.5 | AP23: 0.6 | AQ23: 0.7 | AR23: 0.8 | AS23: 0.9 | AT23: 1 | AU23: 1.1 | AV23: 1.2 | AW23: 1.3 | AX23: 1.4 | AY23: 1.5 | AZ23: 1.6 | BA23: 1.7 | BB23: 1.8 | BC23: 1.9 | BD23: 2 | BE23: 2.1 | BF23: 2.2 | BG23: 2.3 | BH23: 2.4 | BI23: 2.5 | BJ23: 2.6 | BK23: 2.7 | BL23: 2.8 | BM23: 2.9 | BN23: 3
E24: 3 | F24: =bivarpdf($E24,F$23,$G$6) -> 2.112864244e-06 | G24: =bivarpdf($E24,G$23,$G$6) -> 3.058229505e-06 | H24: =bivarpdf($E24,H$23,$G$6) -> 4.380711506e-06 | I24: =bivarpdf($E24,I$23,$G$6) -> 6.210053362e-06 | J24: =bivarpdf($E24,J$23,$G$6) -> 8.712085115e-06 | K24: =bivarpdf($E24,K$23,$G$6) -> 1.209553233e-05 | L24: =bivarpdf($E24,L$23,$G$6) -> 1.66189646e-05 | M24: =bivarpdf($E24,M$23,$G$6) -> 2.259742938e-05 | N24: =bivarpdf($E24,N$23,$G$6) -> 3.040816493e-05 | O24: =bivarpdf($E24,O$23,$G$6) -> 4.04946347e-05 | P24: =bivarpdf($E24,P$23,$G$6) -> 5.336799147e-05 | Q24: =bivarpdf($E24,Q$23,$G$6) -> 6.960498271e-05 | R24: =bivarpdf($E24,R$23,$G$6) -> 8.98412738e-05 | S24: =bivarpdf($E24,S$23,$G$6) -> 0.0001147592155 | T24: =bivarpdf($E24,T$23,$G$6) -> 0.0001450692414 | U24: =bivarpdf($E24,U$23,$G$6) -> 0.0001814843617 | V24: =bivarpdf($E24,V$23,$G$6) -> 0.0002246876365 | W24: =bivarpdf($E24,W$23,$G$6) -> 0.0002752930469 | X24: =bivarpdf($E24,X$23,$G$6) -> 0.000333800827 | Y24: =bivarpdf($E24,Y$23,$G$6) -> 0.0004005490198 | Z24: =bivarpdf($E24,Z$23,$G$6) -> 0.0004756637302 | AA24: =bivarpdf($E24,AA$23,$G$6) -> 0.0005590111889 | AB24: =bivarpdf($E24,AB$23,$G$6) -> 0.0006501552337 | AC24: =bivarpdf($E24,AC$23,$G$6) -> 0.000748324087 | AD24: =bivarpdf($E24,AD$23,$G$6) -> 0.000852390273 | AE24: =bivarpdf($E24,AE$23,$G$6) -> 0.0009608671476 | AF24: =bivarpdf($E24,AF$23,$G$6) -> 0.001071924763 | AG24: =bivarpdf($E24,AG$23,$G$6) -> 0.001183426696 | AH24: =bivarpdf($E24,AH$23,$G$6) -> 0.001292988074 | AI24: =bivarpdf($E24,AI$23,$G$6) -> 0.00139805345 | AJ24: =bivarpdf($E24,AJ$23,$G$6) -> 0.001495991518 | AK24: =bivarpdf($E24,AK$23,$G$6) -> 0.001584202105 | AL24: =bivarpdf($E24,AL$23,$G$6) -> 0.001660229551 | AM24: =bivarpdf($E24,AM$23,$G$6) -> 0.001721875683 | AN24: =bivarpdf($E24,AN$23,$G$6) -> 0.001767305157 | AO24: =bivarpdf($E24,AO$23,$G$6) -> 0.001795136164 | AP24: =bivarpdf($E24,AP$23,$G$6) -> 0.001804510222 | AQ24: =bivarpdf($E24,AQ$23,$G$6) -> 0.001795136164 | AR24: =bivarpdf($E24,AR$23,$G$6) -> 0.001767305157 | AS24: =bivarpdf($E24,AS$23,$G$6) -> 0.001721875683 | AT24: =bivarpdf($E24,AT$23,$G$6) -> 0.001660229551 | AU24: =bivarpdf($E24,AU$23,$G$6) -> 0.001584202105 | AV24: =bivarpdf($E24,AV$23,$G$6) -> 0.001495991518 | AW24: =bivarpdf($E24,AW$23,$G$6) -> 0.00139805345 | AX24: =bivarpdf($E24,AX$23,$G$6) -> 0.001292988074 | AY24: =bivarpdf($E24,AY$23,$G$6) -> 0.001183426696 | AZ24: =bivarpdf($E24,AZ$23,$G$6) -> 0.001071924763 | BA24: =bivarpdf($E24,BA$23,$G$6) -> 0.0009608671476 | BB24: =bivarpdf($E24,BB$23,$G$6) -> 0.000852390273 | BC24: =bivarpdf($E24,BC$23,$G$6) -> 0.000748324087 | BD24: =bivarpdf($E24,BD$23,$G$6) -> 0.0006501552337 | BE24: =bivarpdf($E24,BE$23,$G$6) -> 0.0005590111889 | BF24: =bivarpdf($E24,BF$23,$G$6) -> 0.0004756637302 | BG24: =bivarpdf($E24,BG$23,$G$6) -> 0.0004005490198 | BH24: =bivarpdf($E24,BH$23,$G$6) -> 0.000333800827 | BI24: =bivarpdf($E24,BI$23,$G$6) -> 0.0002752930469 | BJ24: =bivarpdf($E24,BJ$23,$G$6) -> 0.0002246876365 | BK24: =bivarpdf($E24,BK$23,$G$6) -> 0.0001814843617 | BL24: =bivarpdf($E24,BL$23,$G$6) -> 0.0001450692414 | BM24: =bivarpdf($E24,BM$23,$G$6) -> 0.0001147592155 | BN24: =bivarpdf($E24,BN$23,$G$6) -> 8.98412738e-05
E25: 2.9 | F25: =bivarpdf($E25,F$23,$G$6) -> 3.058229505e-06 | G25: =bivarpdf($E25,G$23,$G$6) -> 4.417369967e-06 | H25: =bivarpdf($E25,H$23,$G$6) -> 6.31442157e-06 | I25: =bivarpdf($E25,I$23,$G$6) -> 8.9326326e-06 | J25: =bivarpdf($E25,J$23,$G$6) -> 1.250551177e-05 | K25: =bivarpdf($E25,K$23,$G$6) -> 1.732605011e-05 | L25: =bivarpdf($E25,L$23,$G$6) -> 2.375602436e-05 | M25: =bivarpdf($E25,M$23,$G$6) -> 3.223473149e-05 | N25: =bivarpdf($E25,N$23,$G$6) -> 4.32862986e-05 | O25: =bivarpdf($E25,O$23,$G$6) -> 5.752451216e-05 | P25: =bivarpdf($E25,P$23,$G$6) -> 7.565393758e-05 | Q25: =bivarpdf($E25,Q$23,$G$6) -> 9.846598469e-05 | R25: =bivarpdf($E25,R$23,$G$6) -> 0.0001268285476 | S25: =bivarpdf($E25,S$23,$G$6) -> 0.0001616679417 | T25: =bivarpdf($E25,T$23,$G$6) -> 0.0002039421052 | U25: =bivarpdf($E25,U$23,$G$6) -> 0.0002546044477 | V25: =bivarpdf($E25,V$23,$G$6) -> 0.0003145583177 | W25: =bivarpdf($E25,W$23,$G$6) -> 0.0003846028162 | X25: =bivarpdf($E25,X$23,$G$6) -> 0.0004653715671 | Y25: =bivarpdf($E25,Y$23,$G$6) -> 0.0005572670056 | Z25: =bivarpdf($E25,Z$23,$G$6) -> 0.0006603936889 | AA25: =bivarpdf($E25,AA$23,$G$6) -> 0.0007744949624 | AB25: =bivarpdf($E25,AB$23,$G$6) -> 0.0008988979282 | AC25: =bivarpdf($E25,AC$23,$G$6) -> 0.001032471948 | AD25: =bivarpdf($E25,AD$23,$G$6) -> 0.001173605784 | AE25: =bivarpdf($E25,AE$23,$G$6) -> 0.001320207881 | AF25: =bivarpdf($E25,AF$23,$G$6) -> 0.001469733184 | AG25: =bivarpdf($E25,AG$23,$G$6) -> 0.001619238337 | AH25: =bivarpdf($E25,AH$23,$G$6) -> 0.001765465173 | AI25: =bivarpdf($E25,AI$23,$G$6) -> 0.001904950219 | AJ25: =bivarpdf($E25,AJ$23,$G$6) -> 0.002034155767 | AK25: =bivarpdf($E25,AK$23,$G$6) -> 0.002149615975 | AL25: =bivarpdf($E25,AL$23,$G$6) -> 0.002248089797 | AM25: =bivarpdf($E25,AM$23,$G$6) -> 0.002326711452 | AN25: =bivarpdf($E25,AN$23,$G$6) -> 0.002383128713 | AO25: =bivarpdf($E25,AO$23,$G$6) -> 0.002415619743 | AP25: =bivarpdf($E25,AP$23,$G$6) -> 0.002423180362 | AQ25: =bivarpdf($E25,AQ$23,$G$6) -> 0.0024055756 | AR25: =bivarpdf($E25,AR$23,$G$6) -> 0.002363351826 | AS25: =bivarpdf($E25,AS$23,$G$6) -> 0.002297808578 | AT25: =bivarpdf($E25,AT$23,$G$6) -> 0.002210932141 | AU25: =bivarpdf($E25,AU$23,$G$6) -> 0.002105295582 | AV25: =bivarpdf($E25,AV$23,$G$6) -> 0.001983932283 | AW25: =bivarpdf($E25,AW$23,$G$6) -> 0.001850191616 | AX25: =bivarpdf($E25,AX$23,$G$6) -> 0.00170758634 | AY25: =bivarpdf($E25,AY$23,$G$6) -> 0.001559641327 | AZ25: =bivarpdf($E25,AZ$23,$G$6) -> 0.001409752574 | BA25: =bivarpdf($E25,BA$23,$G$6) -> 0.001261064085 | BB25: =bivarpdf($E25,BB$23,$G$6) -> 0.001116368355 | BC25: =bivarpdf($E25,BC$23,$G$6) -> 0.0009780340534 | BD25: =bivarpdf($E25,BD$23,$G$6) -> 0.0008479622815 | BE25: =bivarpdf($E25,BE$23,$G$6) -> 0.0007275706847 | BF25: =bivarpdf($E25,BF$23,$G$6) -> 0.0006178029088 | BG25: =bivarpdf($E25,BG$23,$G$6) -> 0.0005191594988 | BH25: =bivarpdf($E25,BH$23,$G$6) -> 0.0004317454401 | BI25: =bivarpdf($E25,BI$23,$G$6) -> 0.0003553291307 | BJ25: =bivarpdf($E25,BJ$23,$G$6) -> 0.0002894076233 | BK25: =bivarpdf($E25,BK$23,$G$6) -> 0.0002332733998 | BL25: =bivarpdf($E25,BL$23,$G$6) -> 0.0001860786602 | BM25: =bivarpdf($E25,BM$23,$G$6) -> 0.0001468939878 | BN25: =bivarpdf($E25,BN$23,$G$6) -> 0.0001147592155
E26: 2.8 | F26: =bivarpdf($E26,F$23,$G$6) -> 4.380711506e-06 | G26: =bivarpdf($E26,G$23,$G$6) -> 6.31442157e-06 | H26: =bivarpdf($E26,H$23,$G$6) -> 9.007382229e-06 | I26: =bivarpdf($E26,I$23,$G$6) -> 1.271568353e-05 | J26: =bivarpdf($E26,J$23,$G$6) -> 1.776466115e-05 | K26: =bivarpdf($E26,K$23,$G$6) -> 2.45612375e-05 | L26: =bivarpdf($E26,L$23,$G$6) -> 3.360621955e-05 | M26: =bivarpdf($E26,M$23,$G$6) -> 4.550563459e-05 | N26: =bivarpdf($E26,N$23,$G$6) -> 6.097991141e-05 | O26: =bivarpdf($E26,O$23,$G$6) -> 8.086945238e-05 | P26: =bivarpdf($E26,P$23,$G$6) -> 0.0001061349243 | Q26: =bivarpdf($E26,Q$23,$G$6) -> 0.000137850462 | R26: =bivarpdf($E26,R$23,$G$6) -> 0.0001771879716 | S26: =bivarpdf($E26,S$23,$G$6) -> 0.0002253908836 | T26: =bivarpdf($E26,T$23,$G$6) -> 0.0002837360739 | U26: =bivarpdf($E26,U$23,$G$6) -> 0.0003534832693 | V26: =bivarpdf($E26,V$23,$G$6) -> 0.0004358120862 | W26: =bivarpdf($E26,W$23,$G$6) -> 0.0005317478915 | X26: =bivarpdf($E26,X$23,$G$6) -> 0.0006420788757 | Y26: =bivarpdf($E26,Y$23,$G$6) -> 0.0007672680014 | Z26: =bivarpdf($E26,Z$23,$G$6) -> 0.0009073647224 | AA26: =bivarpdf($E26,AA$23,$G$6) -> 0.001061922428 | AB26: =bivarpdf($E26,AB$23,$G$6) -> 0.001229928302 | AC26: =bivarpdf($E26,AC$23,$G$6) -> 0.001409752574 | AD26: =bivarpdf($E26,AD$23,$G$6) -> 0.001599123836 | AE26: =bivarpdf($E26,AE$23,$G$6) -> 0.001795136164 | AF26: =bivarpdf($E26,AF$23,$G$6) -> 0.001994292219 | AG26: =bivarpdf($E26,AG$23,$G$6) -> 0.002192584262 | AH26: =bivarpdf($E26,AH$23,$G$6) -> 0.002385612433 | AI26: =bivarpdf($E26,AI$23,$G$6) -> 0.00256873667 | AJ26: =bivarpdf($E26,AJ$23,$G$6) -> 0.002737255775 | AK26: =bivarpdf($E26,AK$23,$G$6) -> 0.002886604438 | AL26: =bivarpdf($E26,AL$23,$G$6) -> 0.00301255697 | AM26: =bivarpdf($E26,AM$23,$G$6) -> 0.003111425174 | AN26: =bivarpdf($E26,AN$23,$G$6) -> 0.00318023749 | AO26: =bivarpdf($E26,AO$23,$G$6) -> 0.003216887283 | AP26: =bivarpdf($E26,AP$23,$G$6) -> 0.003220239953 | AQ26: =bivarpdf($E26,AQ$23,$G$6) -> 0.003190191277 | AR26: =bivarpdf($E26,AR$23,$G$6) -> 0.003127672788 | AS26: =bivarpdf($E26,AS$23,$G$6) -> 0.003034603813 | AT26: =bivarpdf($E26,AT$23,$G$6) -> 0.002913793605 | AU26: =bivarpdf($E26,AU$23,$G$6) -> 0.002768800544 | AV26: =bivarpdf($E26,AV$23,$G$6) -> 0.002603758235 | AW26: =bivarpdf($E26,AW$23,$G$6) -> 0.002423180362 | AX26: =bivarpdf($E26,AX$23,$G$6) -> 0.002231757094 | AY26: =bivarpdf($E26,AY$23,$G$6) -> 0.002034155767 | AZ26: =bivarpdf($E26,AZ$23,$G$6) -> 0.001834837417 | BA26: =bivarpdf($E26,BA$23,$G$6) -> 0.001637898815 | BB26: =bivarpdf($E26,BB$23,$G$6) -> 0.001446947083 | BC26: =bivarpdf($E26,BC$23,$G$6) -> 0.001265011074 | BD26: =bivarpdf($E26,BD$23,$G$6) -> 0.001094490775 | BE26: =bivarpdf($E26,BE$23,$G$6) -> 0.0009371432532 | BF26: =bivarpdf($E26,BF$23,$G$6) -> 0.0007941013957 | BG26: =bivarpdf($E26,BG$23,$G$6) -> 0.0006659199638 | BH26: =bivarpdf($E26,BH$23,$G$6) -> 0.0005526424098 | BI26: =bivarpdf($E26,BI$23,$G$6) -> 0.0004538815021 | BJ26: =bivarpdf($E26,BJ$23,$G$6) -> 0.0003689069665 | BK26: =bivarpdf($E26,BK$23,$G$6) -> 0.0002967340121 | BL26: =bivarpdf($E26,BL$23,$G$6) -> 0.000236207618 | BM26: =bivarpdf($E26,BM$23,$G$6) -> 0.0001860786602 | BN26: =bivarpdf($E26,BN$23,$G$6) -> 0.0001450692414
E27: 2.7 | F27: =bivarpdf($E27,F$23,$G$6) -> 6.210053362e-06 | G27: =bivarpdf($E27,G$23,$G$6) -> 8.9326326e-06 | H27: =bivarpdf($E27,H$23,$G$6) -> 1.271568353e-05 | I27: =bivarpdf($E27,I$23,$G$6) -> 1.791331854e-05 | J27: =bivarpdf($E27,J$23,$G$6) -> 2.497402177e-05 | K27: =bivarpdf($E27,K$23,$G$6) -> 3.445696505e-05 | L27: =bivarpdf($E27,L$23,$G$6) -> 4.704805324e-05 | M27: =bivarpdf($E27,M$23,$G$6) -> 6.357441792e-05 | N27: =bivarpdf($E27,N$23,$G$6) -> 8.501571787e-05 | O27: =bivarpdf($E27,O$23,$G$6) -> 0.000112510268 | P27: =bivarpdf($E27,P$23,$G$6) -> 0.0001473537496 | Q27: =bivarpdf($E27,Q$23,$G$6) -> 0.0001909881063 | R27: =bivarpdf($E27,R$23,$G$6) -> 0.0002449782641 | S27: =bivarpdf($E27,S$23,$G$6) -> 0.0003109745747 | T27: =bivarpdf($E27,T$23,$G$6) -> 0.0003906594292 | U27: =bivarpdf($E27,U$23,$G$6) -> 0.0004856773375 | V27: =bivarpdf($E27,V$23,$G$6) -> 0.0005975489203 | W27: =bivarpdf($E27,W$23,$G$6) -> 0.0007275706847 | X27: =bivarpdf($E27,X$23,$G$6) -> 0.0008767040593 | Y27: =bivarpdf($E27,Y$23,$G$6) -> 0.001045458846 | Z27: =bivarpdf($E27,Z$23,$G$6) -> 0.00123377784 | AA27: =bivarpdf($E27,AA$23,$G$6) -> 0.001440930679 | AB27: =bivarpdf($E27,AB$23,$G$6) -> 0.001665425883 | AC27: =bivarpdf($E27,AC$23,$G$6) -> 0.001904950219 | AD27: =bivarpdf($E27,AD$23,$G$6) -> 0.002156344032 | AE27: =bivarpdf($E27,AE$23,$G$6) -> 0.002415619743 | AF27: =bivarpdf($E27,AF$23,$G$6) -> 0.002678028465 | AG27: =bivarpdf($E27,AG$23,$G$6) -> 0.002938176673 | AH27: =bivarpdf($E27,AH$23,$G$6) -> 0.003190191277 | AI27: =bivarpdf($E27,AI$23,$G$6) -> 0.003427927587 | AJ27: =bivarpdf($E27,AJ$23,$G$6) -> 0.003645210849 | AK27: =bivarpdf($E27,AK$23,$G$6) -> 0.003836098661 | AL27: =bivarpdf($E27,AL$23,$G$6) -> 0.003995149005 | AM27: =bivarpdf($E27,AM$23,$G$6) -> 0.004117677167 | AN27: =bivarpdf($E27,AN$23,$G$6) -> 0.004199984675 | AO27: =bivarpdf($E27,AO$23,$G$6) -> 0.004239544679 | AP27: =bivarpdf($E27,AP$23,$G$6) -> 0.004235130786 | AQ27: =bivarpdf($E27,AQ$23,$G$6) -> 0.004186880209 | AR27: =bivarpdf($E27,AR$23,$G$6) -> 0.004096286684 | AS27: =bivarpdf($E27,AS$23,$G$6) -> 0.003966123661 | AT27: =bivarpdf($E27,AT$23,$G$6) -> 0.003800303289 | AU27: =bivarpdf($E27,AU$23,$G$6) -> 0.003603681193 | AV27: =bivarpdf($E27,AV$23,$G$6) -> 0.003381820621 | AW27: =bivarpdf($E27,AW$23,$G$6) -> 0.003140731946 | AX27: =bivarpdf($E27,AX$23,$G$6) -> 0.002886604438 | AY27: =bivarpdf($E27,AY$23,$G$6) -> 0.002625546881 | AZ27: =bivarpdf($E27,AZ$23,$G$6) -> 0.002363351826 | BA27: =bivarpdf($E27,BA$23,$G$6) -> 0.002105295582 | BB27: =bivarpdf($E27,BB$23,$G$6) -> 0.001855982508 | BC27: =bivarpdf($E27,BC$23,$G$6) -> 0.001619238337 | BD27: =bivarpdf($E27,BD$23,$G$6) -> 0.00139805345 | BE27: =bivarpdf($E27,BE$23,$G$6) -> 0.00119457349 | BF27: =bivarpdf($E27,BF$23,$G$6) -> 0.00101013186 | BG27: =bivarpdf($E27,BG$23,$G$6) -> 0.0008453165355 | BH27: =bivarpdf($E27,BH$23,$G$6) -> 0.0007000624104 | BI27: =bivarpdf($E27,BI$23,$G$6) -> 0.00057375998 | BJ27: =bivarpdf($E27,BJ$23,$G$6) -> 0.0004653715671 | BK27: =bivarpdf($E27,BK$23,$G$6) -> 0.0003735472449 | BL27: =bivarpdf($E27,BL$23,$G$6) -> 0.0002967340121 | BM27: =bivarpdf($E27,BM$23,$G$6) -> 0.0002332733998 | BN27: =bivarpdf($E27,BN$23,$G$6) -> 0.0001814843617
E28: 2.6 | F28: =bivarpdf($E28,F$23,$G$6) -> 8.712085115e-06 | G28: =bivarpdf($E28,G$23,$G$6) -> 1.250551177e-05 | H28: =bivarpdf($E28,H$23,$G$6) -> 1.776466115e-05 | I28: =bivarpdf($E28,I$23,$G$6) -> 2.497402177e-05 | J28: =bivarpdf($E28,J$23,$G$6) -> 3.474530618e-05 | K28: =bivarpdf($E28,K$23,$G$6) -> 4.783875837e-05 | L28: =bivarpdf($E28,L$23,$G$6) -> 6.518381197e-05 | M28: =bivarpdf($E28,M$23,$G$6) -> 8.789733527e-05 | N28: =bivarpdf($E28,N$23,$G$6) -> 0.0001172972317 | O28: =bivarpdf($E28,O$23,$G$6) -> 0.0001549087379 | P28: =bivarpdf($E28,P$23,$G$6) -> 0.0002024604358 | Q28: =bivarpdf($E28,Q$23,$G$6) -> 0.0002618668466 | R28: =bivarpdf($E28,R$23,$G$6) -> 0.0003351945654 | S28: =bivarpdf($E28,S$23,$G$6) -> 0.0004246093156 | T28: =bivarpdf($E28,T$23,$G$6) -> 0.0005323020841 | U28: =bivarpdf($E28,U$23,$G$6) -> 0.0006603936889 | V28: =bivarpdf($E28,V$23,$G$6) -> 0.0008108187088 | W28: =bivarpdf($E28,W$23,$G$6) -> 0.0009851916152 | X28: =bivarpdf($E28,X$23,$G$6) -> 0.001184660075 | Y28: =bivarpdf($E28,Y$23,$G$6) -> 0.001409752574 | Z28: =bivarpdf($E28,Z$23,$G$6) -> 0.001660229551 | AA28: =bivarpdf($E28,AA$23,$G$6) -> 0.00193494882 | AB28: =bivarpdf($E28,AB$23,$G$6) -> 0.002231757094 | AC28: =bivarpdf($E28,AC$23,$G$6) -> 0.002547419476 | AD28: =bivarpdf($E28,AD$23,$G$6) -> 0.002877597879 | AE28: =bivarpdf($E28,AE$23,$G$6) -> 0.003216887283 | AF28: =bivarpdf($E28,AF$23,$G$6) -> 0.003558915546 | AG28: =bivarpdf($E28,AG$23,$G$6) -> 0.003896508425 | AH28: =bivarpdf($E28,AH$23,$G$6) -> 0.00422191666 | AI28: =bivarpdf($E28,AI$23,$G$6) -> 0.004527096915 | AJ28: =bivarpdf($E28,AJ$23,$G$6) -> 0.004804033495 | AK28: =bivarpdf($E28,AK$23,$G$6) -> 0.005045083526 | AL28: =bivarpdf($E28,AL$23,$G$6) -> 0.005243325196 | AM28: =bivarpdf($E28,AM$23,$G$6) -> 0.005392887073 | AN28: =bivarpdf($E28,AN$23,$G$6) -> 0.005489236692 | AO28: =bivarpdf($E28,AO$23,$G$6) -> 0.005529408659 | AP28: =bivarpdf($E28,AP$23,$G$6) -> 0.005512156228 | AQ28: =bivarpdf($E28,AQ$23,$G$6) -> 0.005438015572 | AR28: =bivarpdf($E28,AR$23,$G$6) -> 0.005309278108 | AS28: =bivarpdf($E28,AS$23,$G$6) -> 0.005129872866 | AT28: =bivarpdf($E28,AT$23,$G$6) -> 0.004905167346 | AU28: =bivarpdf($E28,AU$23,$G$6) -> 0.004641700919 | AV28: =bivarpdf($E28,AV$23,$G$6) -> 0.004346869264 | AW28: =bivarpdf($E28,AW$23,$G$6) -> 0.00402858102 | AX28: =bivarpdf($E28,AX$23,$G$6) -> 0.003694908816 | AY28: =bivarpdf($E28,AY$23,$G$6) -> 0.003353755882 | AZ28: =bivarpdf($E28,AZ$23,$G$6) -> 0.00301255697 | BA28: =bivarpdf($E28,BA$23,$G$6) -> 0.002678028465 | BB28: =bivarpdf($E28,BB$23,$G$6) -> 0.002355977879 | BC28: =bivarpdf($E28,BC$23,$G$6) -> 0.002051177892 | BD28: =bivarpdf($E28,BD$23,$G$6) -> 0.001767305157 | BE28: =bivarpdf($E28,BE$23,$G$6) -> 0.001506939656 | BF28: =bivarpdf($E28,BF$23,$G$6) -> 0.001271616861 | BG28: =bivarpdf($E28,BG$23,$G$6) -> 0.001061922428 | BH28: =bivarpdf($E28,BH$23,$G$6) -> 0.0008776177685 | BI28: =bivarpdf($E28,BI$23,$G$6) -> 0.0007177845747 | BJ28: =bivarpdf($E28,BJ$23,$G$6) -> 0.0005809769921 | BK28: =bivarpdf($E28,BK$23,$G$6) -> 0.0004653715671 | BL28: =bivarpdf($E28,BL$23,$G$6) -> 0.0003689069665 | BM28: =bivarpdf($E28,BM$23,$G$6) -> 0.0002894076233 | BN28: =bivarpdf($E28,BN$23,$G$6) -> 0.0002246876365
E29: 2.5 | F29: =bivarpdf($E29,F$23,$G$6) -> 1.209553233e-05 | G29: =bivarpdf($E29,G$23,$G$6) -> 1.732605011e-05 | H29: =bivarpdf($E29,H$23,$G$6) -> 2.45612375e-05 | I29: =bivarpdf($E29,I$23,$G$6) -> 3.445696505e-05 | J29: =bivarpdf($E29,J$23,$G$6) -> 4.783875837e-05 | K29: =bivarpdf($E29,K$23,$G$6) -> 6.572928003e-05 | L29: =bivarpdf($E29,L$23,$G$6) -> 8.937456693e-05 | M29: =bivarpdf($E29,M$23,$G$6) -> 0.0001202666253 | N29: =bivarpdf($E29,N$23,$G$6) -> 0.0001601593871 | O29: =bivarpdf($E29,O$23,$G$6) -> 0.0002110745008 | P29: =bivarpdf($E29,P$23,$G$6) -> 0.0002752930469 | Q29: =bivarpdf($E29,Q$23,$G$6) -> 0.0003553291307 | R29: =bivarpdf($E29,R$23,$G$6) -> 0.0004538815021 | S29: =bivarpdf($E29,S$23,$G$6) -> 0.00057375998 | T29: =bivarpdf($E29,T$23,$G$6) -> 0.0007177845747 | U29: =bivarpdf($E29,U$23,$G$6) -> 0.0008886568411 | V29: =bivarpdf($E29,V$23,$G$6) -> 0.001088805122 | W29: =bivarpdf($E29,W$23,$G$6) -> 0.001320207881 | X29: =bivarpdf($E29,X$23,$G$6) -> 0.001584202105 | Y29: =bivarpdf($E29,Y$23,$G$6) -> 0.001881286547 | Z29: =bivarpdf($E29,Z$23,$G$6) -> 0.002210932141 | AA29: =bivarpdf($E29,AA$23,$G$6) -> 0.002571413831 | AB29: =bivarpdf($E29,AB$23,$G$6) -> 0.002959679178 | AC29: =bivarpdf($E29,AC$23,$G$6) -> 0.003371268927 | AD29: =bivarpdf($E29,AD$23,$G$6) -> 0.003800303289 | AE29: =bivarpdf($E29,AE$23,$G$6) -> 0.004239544679 | AF29: =bivarpdf($E29,AF$23,$G$6) -> 0.004680543379 | AG29: =bivarpdf($E29,AG$23,$G$6) -> 0.005113867036 | AH29: =bivarpdf($E29,AH$23,$G$6) -> 0.005529408659 | AI29: =bivarpdf($E29,AI$23,$G$6) -> 0.005916761231 | AJ29: =bivarpdf($E29,AJ$23,$G$6) -> 0.006265640868 | AK29: =bivarpdf($E29,AK$23,$G$6) -> 0.006566335252 | AL29: =bivarpdf($E29,AL$23,$G$6) -> 0.006810150432 | AM29: =bivarpdf($E29,AM$23,$G$6) -> 0.006989827491 | AN29: =bivarpdf($E29,AN$23,$G$6) -> 0.007099901257 | AO29: =bivarpdf($E29,AO$23,$G$6) -> 0.007136976375 | AP29: =bivarpdf($E29,AP$23,$G$6) -> 0.007099901257 | AQ29: =bivarpdf($E29,AQ$23,$G$6) -> 0.006989827491 | AR29: =bivarpdf($E29,AR$23,$G$6) -> 0.006810150432 | AS29: =bivarpdf($E29,AS$23,$G$6) -> 0.006566335252 | AT29: =bivarpdf($E29,AT$23,$G$6) -> 0.006265640868 | AU29: =bivarpdf($E29,AU$23,$G$6) -> 0.005916761231 | AV29: =bivarpdf($E29,AV$23,$G$6) -> 0.005529408659 | AW29: =bivarpdf($E29,AW$23,$G$6) -> 0.005113867036 | AX29: =bivarpdf($E29,AX$23,$G$6) -> 0.004680543379 | AY29: =bivarpdf($E29,AY$23,$G$6) -> 0.004239544679 | AZ29: =bivarpdf($E29,AZ$23,$G$6) -> 0.003800303289 | BA29: =bivarpdf($E29,BA$23,$G$6) -> 0.003371268927 | BB29: =bivarpdf($E29,BB$23,$G$6) -> 0.002959679178 | BC29: =bivarpdf($E29,BC$23,$G$6) -> 0.002571413831 | BD29: =bivarpdf($E29,BD$23,$G$6) -> 0.002210932141 | BE29: =bivarpdf($E29,BE$23,$G$6) -> 0.001881286547 | BF29: =bivarpdf($E29,BF$23,$G$6) -> 0.001584202105 | BG29: =bivarpdf($E29,BG$23,$G$6) -> 0.001320207881 | BH29: =bivarpdf($E29,BH$23,$G$6) -> 0.001088805122 | BI29: =bivarpdf($E29,BI$23,$G$6) -> 0.0008886568411 | BJ29: =bivarpdf($E29,BJ$23,$G$6) -> 0.0007177845747 | BK29: =bivarpdf($E29,BK$23,$G$6) -> 0.00057375998 | BL29: =bivarpdf($E29,BL$23,$G$6) -> 0.0004538815021 | BM29: =bivarpdf($E29,BM$23,$G$6) -> 0.0003553291307 | BN29: =bivarpdf($E29,BN$23,$G$6) -> 0.0002752930469
E30: 2.4 | F30: =bivarpdf($E30,F$23,$G$6) -> 1.66189646e-05 | G30: =bivarpdf($E30,G$23,$G$6) -> 2.375602436e-05 | H30: =bivarpdf($E30,H$23,$G$6) -> 3.360621955e-05 | I30: =bivarpdf($E30,I$23,$G$6) -> 4.704805324e-05 | J30: =bivarpdf($E30,J$23,$G$6) -> 6.518381197e-05 | K30: =bivarpdf($E30,K$23,$G$6) -> 8.937456693e-05 | L30: =bivarpdf($E30,L$23,$G$6) -> 0.0001212730347 | M30: =bivarpdf($E30,M$23,$G$6) -> 0.0001628510787 | N30: =bivarpdf($E30,N$23,$G$6) -> 0.0002164178772 | O30: =bivarpdf($E30,O$23,$G$6) -> 0.000284624136 | P30: =bivarpdf($E30,P$23,$G$6) -> 0.0003704472856 | Q30: =bivarpdf($E30,Q$23,$G$6) -> 0.0004771525044 | R30: =bivarpdf($E30,R$23,$G$6) -> 0.0006082247625 | S30: =bivarpdf($E30,S$23,$G$6) -> 0.0007672680014 | T30: =bivarpdf($E30,T$23,$G$6) -> 0.0009578691246 | U30: =bivarpdf($E30,U$23,$G$6) -> 0.001183426696 | V30: =bivarpdf($E30,V$23,$G$6) -> 0.001446947083 | W30: =bivarpdf($E30,W$23,$G$6) -> 0.001750814094 | X30: =bivarpdf($E30,X$23,$G$6) -> 0.002096541767 | Y30: =bivarpdf($E30,Y$23,$G$6) -> 0.002484523465 | Z30: =bivarpdf($E30,Z$23,$G$6) -> 0.002913793605 | AA30: =bivarpdf($E30,AA$23,$G$6) -> 0.003381820621 | AB30: =bivarpdf($E30,AB$23,$G$6) -> 0.003884350842 | AC30: =bivarpdf($E30,AC$23,$G$6) -> 0.004415322494 | AD30: =bivarpdf($E30,AD$23,$G$6) -> 0.004966866756 | AE30: =bivarpdf($E30,AE$23,$G$6) -> 0.005529408659 | AF30: =bivarpdf($E30,AF$23,$G$6) -> 0.006091874759 | AG30: =bivarpdf($E30,AG$23,$G$6) -> 0.006642007219 | AH30: =bivarpdf($E30,AH$23,$G$6) -> 0.007166775816 | AI30: =bivarpdf($E30,AI$23,$G$6) -> 0.007652871038 | AJ30: =bivarpdf($E30,AJ$23,$G$6) -> 0.008087253739 | AK30: =bivarpdf($E30,AK$23,$G$6) -> 0.008457730511 | AL30: =bivarpdf($E30,AL$23,$G$6) -> 0.008753519749 | AM30: =bivarpdf($E30,AM$23,$G$6) -> 0.008965771945 | AN30: =bivarpdf($E30,AN$23,$G$6) -> 0.00908800922 | AO30: =bivarpdf($E30,AO$23,$G$6) -> 0.00911645367 | AP30: =bivarpdf($E30,AP$23,$G$6) -> 0.009050221294 | AQ30: =bivarpdf($E30,AQ$23,$G$6) -> 0.008891367627 | AR30: =bivarpdf($E30,AR$23,$G$6) -> 0.00864478178 | AS30: =bivarpdf($E30,AS$23,$G$6) -> 0.008317936522 | AT30: =bivarpdf($E30,AT$23,$G$6) -> 0.007920512208 | AU30: =bivarpdf($E30,AU$23,$G$6) -> 0.007463920979 | AV30: =bivarpdf($E30,AV$23,$G$6) -> 0.006960763801 | AW30: =bivarpdf($E30,AW$23,$G$6) -> 0.006424256322 | AX30: =bivarpdf($E30,AX$23,$G$6) -> 0.005867659761 | AY30: =bivarpdf($E30,AY$23,$G$6) -> 0.00530375049 | AZ30: =bivarpdf($E30,AZ$23,$G$6) -> 0.004744356832 | BA30: =bivarpdf($E30,BA$23,$G$6) -> 0.004199984675 | BB30: =bivarpdf($E30,BB$23,$G$6) -> 0.003679545392 | BC30: =bivarpdf($E30,BC$23,$G$6) -> 0.003190191277 | BD30: =bivarpdf($E30,BD$23,$G$6) -> 0.002737255775 | BE30: =bivarpdf($E30,BE$23,$G$6) -> 0.002324289056 | BF30: =bivarpdf($E30,BF$23,$G$6) -> 0.001953174263 | BG30: =bivarpdf($E30,BG$23,$G$6) -> 0.001624306372 | BH30: =bivarpdf($E30,BH$23,$G$6) -> 0.001336814052 | BI30: =bivarpdf($E30,BI$23,$G$6) -> 0.001088805122 | BJ30: =bivarpdf($E30,BJ$23,$G$6) -> 0.0008776177685 | BK30: =bivarpdf($E30,BK$23,$G$6) -> 0.0007000624104 | BL30: =bivarpdf($E30,BL$23,$G$6) -> 0.0005526424098 | BM30: =bivarpdf($E30,BM$23,$G$6) -> 0.0004317454401 | BN30: =bivarpdf($E30,BN$23,$G$6) -> 0.000333800827
E31: 2.3 | F31: =bivarpdf($E31,F$23,$G$6) -> 2.259742938e-05 | G31: =bivarpdf($E31,G$23,$G$6) -> 3.223473149e-05 | H31: =bivarpdf($E31,H$23,$G$6) -> 4.550563459e-05 | I31: =bivarpdf($E31,I$23,$G$6) -> 6.357441792e-05 | J31: =bivarpdf($E31,J$23,$G$6) -> 8.789733527e-05 | K31: =bivarpdf($E31,K$23,$G$6) -> 0.0001202666253 | L31: =bivarpdf($E31,L$23,$G$6) -> 0.0001628510787 | M31: =bivarpdf($E31,M$23,$G$6) -> 0.000218228895 | N31: =bivarpdf($E31,N$23,$G$6) -> 0.0002894076233 | O31: =bivarpdf($E31,O$23,$G$6) -> 0.0003798252033 | P31: =bivarpdf($E31,P$23,$G$6) -> 0.0004933256427 | Q31: =bivarpdf($E31,Q$23,$G$6) -> 0.0006341028438 | R31: =bivarpdf($E31,R$23,$G$6) -> 0.0008066066731 | S31: =bivarpdf($E31,S$23,$G$6) -> 0.001015406688 | T31: =bivarpdf($E31,T$23,$G$6) -> 0.001265011074 | U31: =bivarpdf($E31,U$23,$G$6) -> 0.001559641327 | V31: =bivarpdf($E31,V$23,$G$6) -> 0.001902966929 | W31: =bivarpdf($E31,W$23,$G$6) -> 0.002297808578 | X31: =bivarpdf($E31,X$23,$G$6) -> 0.002745823079 | Y31: =bivarpdf($E31,Y$23,$G$6) -> 0.003247187412 | Z31: =bivarpdf($E31,Z$23,$G$6) -> 0.003800303289 | AA31: =bivarpdf($E31,AA$23,$G$6) -> 0.004401546148 | AB31: =bivarpdf($E31,AB$23,$G$6) -> 0.005045083526 | AC31: =bivarpdf($E31,AC$23,$G$6) -> 0.005722786725 | AD31: =bivarpdf($E31,AD$23,$G$6) -> 0.006424256322 | AE31: =bivarpdf($E31,AE$23,$G$6) -> 0.007136976375 | AF31: =bivarpdf($E31,AF$23,$G$6) -> 0.007846604391 | AG31: =bivarpdf($E31,AG$23,$G$6) -> 0.008537394576 | AH31: =bivarpdf($E31,AH$23,$G$6) -> 0.009192741542 | AI31: =bivarpdf($E31,AI$23,$G$6) -> 0.009795821101 | AJ31: =bivarpdf($E31,AJ$23,$G$6) -> 0.01033029537 | AK31: =bivarpdf($E31,AK$23,$G$6) -> 0.01078104188 | AL31: =bivarpdf($E31,AL$23,$G$6) -> 0.01113486166 | AM31: =bivarpdf($E31,AM$23,$G$6) -> 0.01138112039 | AN31: =bivarpdf($E31,AN$23,$G$6) -> 0.01151227906 | AO31: =bivarpdf($E31,AO$23,$G$6) -> 0.01152427726 | AP31: =bivarpdf($E31,AP$23,$G$6) -> 0.01141674202 | AQ31: =bivarpdf($E31,AQ$23,$G$6) -> 0.01119300702 | AR31: =bivarpdf($E31,AR$23,$G$6) -> 0.01085994094 | AS31: =bivarpdf($E31,AS$23,$G$6) -> 0.01042759728 | AT31: =bivarpdf($E31,AT$23,$G$6) -> 0.009908710411 | AU31: =bivarpdf($E31,AU$23,$G$6) -> 0.009318073269 | AV31: =bivarpdf($E31,AV$23,$G$6) -> 0.008671838978 | AW31: =bivarpdf($E31,AW$23,$G$6) -> 0.00798679226 | AX31: =bivarpdf($E31,AX$23,$G$6) -> 0.007279636113 | AY31: =bivarpdf($E31,AY$23,$G$6) -> 0.006566335252 | AZ31: =bivarpdf($E31,AZ$23,$G$6) -> 0.005861550798 | BA31: =bivarpdf($E31,BA$23,$G$6) -> 0.005178191565 | BB31: =bivarpdf($E31,BB$23,$G$6) -> 0.004527096915 | BC31: =bivarpdf($E31,BC$23,$G$6) -> 0.003916855681 | BD31: =bivarpdf($E31,BD$23,$G$6) -> 0.003353755882 | BE31: =bivarpdf($E31,BE$23,$G$6) -> 0.002841851785 | BF31: =bivarpdf($E31,BF$23,$G$6) -> 0.002383128713 | BG31: =bivarpdf($E31,BG$23,$G$6) -> 0.001977742171 | BH31: =bivarpdf($E31,BH$23,$G$6) -> 0.001624306372 | BI31: =bivarpdf($E31,BI$23,$G$6) -> 0.001320207881 | BJ31: =bivarpdf($E31,BJ$23,$G$6) -> 0.001061922428 | BK31: =bivarpdf($E31,BK$23,$G$6) -> 0.0008453165355 | BL31: =bivarpdf($E31,BL$23,$G$6) -> 0.0006659199638 | BM31: =bivarpdf($E31,BM$23,$G$6) -> 0.0005191594988 | BN31: =bivarpdf($E31,BN$23,$G$6) -> 0.0004005490198
E32: 2.2 | F32: =bivarpdf($E32,F$23,$G$6) -> 3.040816493e-05 | G32: =bivarpdf($E32,G$23,$G$6) -> 4.32862986e-05 | H32: =bivarpdf($E32,H$23,$G$6) -> 6.097991141e-05 | I32: =bivarpdf($E32,I$23,$G$6) -> 8.501571787e-05 | J32: =bivarpdf($E32,J$23,$G$6) -> 0.0001172972317 | K32: =bivarpdf($E32,K$23,$G$6) -> 0.0001601593871 | L32: =bivarpdf($E32,L$23,$G$6) -> 0.0002164178772 | M32: =bivarpdf($E32,M$23,$G$6) -> 0.0002894076233 | N32: =bivarpdf($E32,N$23,$G$6) -> 0.0003830036384 | O32: =bivarpdf($E32,O$23,$G$6) -> 0.0005016166364 | P32: =bivarpdf($E32,P$23,$G$6) -> 0.0006501552337 | Q32: =bivarpdf($E32,Q$23,$G$6) -> 0.0008339466978 | R32: =bivarpdf($E32,R$23,$G$6) -> 0.0010586091 | S32: =bivarpdf($E32,S$23,$G$6) -> 0.001329869579 | T32: =bivarpdf($E32,T$23,$G$6) -> 0.00165332632 | U32: =bivarpdf($E32,U$23,$G$6) -> 0.002034155767 | V32: =bivarpdf($E32,V$23,$G$6) -> 0.002476771448 | W32: =bivarpdf($E32,W$23,$G$6) -> 0.002984446223 | X32: =bivarpdf($E32,X$23,$G$6) -> 0.003558915546 | Y32: =bivarpdf($E32,Y$23,$G$6) -> 0.004199984675 | Z32: =bivarpdf($E32,Z$23,$G$6) -> 0.004905167346 | AA32: =bivarpdf($E32,AA$23,$G$6) -> 0.005669386305 | AB32: =bivarpdf($E32,AB$23,$G$6) -> 0.006484766925 | AC32: =bivarpdf($E32,AC$23,$G$6) -> 0.007340553216 | AD32: =bivarpdf($E32,AD$23,$G$6) -> 0.008223170798 | AE32: =bivarpdf($E32,AE$23,$G$6) -> 0.00911645367 | AF32: =bivarpdf($E32,AF$23,$G$6) -> 0.01000204138 | AG32: =bivarpdf($E32,AG$23,$G$6) -> 0.01085994094 | AH32: =bivarpdf($E32,AH$23,$G$6) -> 0.01166923483 | AI32: =bivarpdf($E32,AI$23,$G$6) -> 0.01240890314 | AJ32: =bivarpdf($E32,AJ$23,$G$6) -> 0.01305871695 | AK32: =bivarpdf($E32,AK$23,$G$6) -> 0.01360015074 | AL32: =bivarpdf($E32,AL$23,$G$6) -> 0.01401725695 | AM32: =bivarpdf($E32,AM$23,$G$6) -> 0.01429744538 | AN32: =bivarpdf($E32,AN$23,$G$6) -> 0.0144321142 | AO32: =bivarpdf($E32,AO$23,$G$6) -> 0.01441708858 | AP32: =bivarpdf($E32,AP$23,$G$6) -> 0.0142528356 | AQ32: =bivarpdf($E32,AQ$23,$G$6) -> 0.0139444402 | AR32: =bivarpdf($E32,AR$23,$G$6) -> 0.01350134365 | AS32: =bivarpdf($E32,AS$23,$G$6) -> 0.01293686356 | AT32: =bivarpdf($E32,AT$23,$G$6) -> 0.01226752929 | AU32: =bivarpdf($E32,AU$23,$G$6) -> 0.01151227906 | AV32: =bivarpdf($E32,AV$23,$G$6) -> 0.01069157316 | AW32: =bivarpdf($E32,AW$23,$G$6) -> 0.009826480923 | AX32: =bivarpdf($E32,AX$23,$G$6) -> 0.00893779764 | AY32: =bivarpdf($E32,AY$23,$G$6) -> 0.008045242126 | AZ32: =bivarpdf($E32,AZ$23,$G$6) -> 0.007166775816 | BA32: =bivarpdf($E32,BA$23,$G$6) -> 0.006318072705 | BB32: =bivarpdf($E32,BB$23,$G$6) -> 0.005512156228 | BC32: =bivarpdf($E32,BC$23,$G$6) -> 0.004759206138 | BD32: =bivarpdf($E32,BD$23,$G$6) -> 0.004066526559 | BE32: =bivarpdf($E32,BE$23,$G$6) -> 0.003438656616 | BF32: =bivarpdf($E32,BF$23,$G$6) -> 0.002877597879 | BG32: =bivarpdf($E32,BG$23,$G$6) -> 0.002383128713 | BH32: =bivarpdf($E32,BH$23,$G$6) -> 0.001953174263 | BI32: =bivarpdf($E32,BI$23,$G$6) -> 0.001584202105 | BJ32: =bivarpdf($E32,BJ$23,$G$6) -> 0.001271616861 | BK32: =bivarpdf($E32,BK$23,$G$6) -> 0.00101013186 | BL32: =bivarpdf($E32,BL$23,$G$6) -> 0.0007941013957 | BM32: =bivarpdf($E32,BM$23,$G$6) -> 0.0006178029088 | BN32: =bivarpdf($E32,BN$23,$G$6) -> 0.0004756637302
E33: 2.1 | F33: =bivarpdf($E33,F$23,$G$6) -> 4.04946347e-05 | G33: =bivarpdf($E33,G$23,$G$6) -> 5.752451216e-05 | H33: =bivarpdf($E33,H$23,$G$6) -> 8.086945238e-05 | I33: =bivarpdf($E33,I$23,$G$6) -> 0.000112510268 | J33: =bivarpdf($E33,J$23,$G$6) -> 0.0001549087379 | K33: =bivarpdf($E33,K$23,$G$6) -> 0.0002110745008 | L33: =bivarpdf($E33,L$23,$G$6) -> 0.000284624136 | M33: =bivarpdf($E33,M$23,$G$6) -> 0.0003798252033 | N33: =bivarpdf($E33,N$23,$G$6) -> 0.0005016166364 | O33: =bivarpdf($E33,O$23,$G$6) -> 0.0006555958317 | P33: =bivarpdf($E33,P$23,$G$6) -> 0.0008479622815 | Q33: =bivarpdf($E33,Q$23,$G$6) -> 0.001085407917 | R33: =bivarpdf($E33,R$23,$G$6) -> 0.001374945659 | S33: =bivarpdf($E33,S$23,$G$6) -> 0.001723670238 | T33: =bivarpdf($E33,T$23,$G$6) -> 0.002138449164 | U33: =bivarpdf($E33,U$23,$G$6) -> 0.002625546881 | V33: =bivarpdf($E33,V$23,$G$6) -> 0.003190191277 | W33: =bivarpdf($E33,W$23,$G$6) -> 0.003836098661 | X33: =bivarpdf($E33,X$23,$G$6) -> 0.004564980351 | Y33: =bivarpdf($E33,Y$23,$G$6) -> 0.005376060605 | Z33: =bivarpdf($E33,Z$23,$G$6) -> 0.006265640868 | AA33: =bivarpdf($E33,AA$23,$G$6) -> 0.007226748487 | AB33: =bivarpdf($E33,AB$23,$G$6) -> 0.0082489084 | AC33: =bivarpdf($E33,AC$23,$G$6) -> 0.009318073269 | AD33: =bivarpdf($E33,AD$23,$G$6) -> 0.01041674086 | AE33: =bivarpdf($E33,AE$23,$G$6) -> 0.01152427726 | AF33: =bivarpdf($E33,AF$23,$G$6) -> 0.01261745126 | AG33: =bivarpdf($E33,AG$23,$G$6) -> 0.01367116964 | AH33: =bivarpdf($E33,AH$23,$G$6) -> 0.01465938693 | AI33: =bivarpdf($E33,AI$23,$G$6) -> 0.01555614716 | AJ33: =bivarpdf($E33,AJ$23,$G$6) -> 0.01633670162 | AK33: =bivarpdf($E33,AK$23,$G$6) -> 0.01697863649 | AL33: =bivarpdf($E33,AL$23,$G$6) -> 0.01746293922 | AM33: =bivarpdf($E33,AM$23,$G$6) -> 0.01777493306 | AN33: =bivarpdf($E33,AN$23,$G$6) -> 0.01790501563 | AO33: =bivarpdf($E33,AO$23,$G$6) -> 0.01784914979 | AP33: =bivarpdf($E33,AP$23,$G$6) -> 0.01760907175 | AQ33: =bivarpdf($E33,AQ$23,$G$6) -> 0.01719220144 | AR33: =bivarpdf($E33,AR$23,$G$6) -> 0.01661126163 | AS33: =bivarpdf($E33,AS$23,$G$6) -> 0.01588363303 | AT33: =bivarpdf($E33,AT$23,$G$6) -> 0.01503049108 | AU33: =bivarpdf($E33,AU$23,$G$6) -> 0.01407578403 | AV33: =bivarpdf($E33,AV$23,$G$6) -> 0.0130451212 | AW33: =bivarpdf($E33,AW$23,$G$6) -> 0.01196464291 | AX33: =bivarpdf($E33,AX$23,$G$6) -> 0.01085994094 | AY33: =bivarpdf($E33,AY$23,$G$6) -> 0.009755090095 | AZ33: =bivarpdf($E33,AZ$23,$G$6) -> 0.008671838978 | BA33: =bivarpdf($E33,BA$23,$G$6) -> 0.007628993145 | BB33: =bivarpdf($E33,BB$23,$G$6) -> 0.006642007219 | BC33: =bivarpdf($E33,BC$23,$G$6) -> 0.005722786725 | BD33: =bivarpdf($E33,BD$23,$G$6) -> 0.004879686014 | BE33: =bivarpdf($E33,BE$23,$G$6) -> 0.004117677167 | BF33: =bivarpdf($E33,BF$23,$G$6) -> 0.003438656616 | BG33: =bivarpdf($E33,BG$23,$G$6) -> 0.002841851785 | BH33: =bivarpdf($E33,BH$23,$G$6) -> 0.002324289056 | BI33: =bivarpdf($E33,BI$23,$G$6) -> 0.001881286547 | BJ33: =bivarpdf($E33,BJ$23,$G$6) -> 0.001506939656 | BK33: =bivarpdf($E33,BK$23,$G$6) -> 0.00119457349 | BL33: =bivarpdf($E33,BL$23,$G$6) -> 0.0009371432532 | BM33: =bivarpdf($E33,BM$23,$G$6) -> 0.0007275706847 | BN33: =bivarpdf($E33,BN$23,$G$6) -> 0.0005590111889
E34: 2 | F34: =bivarpdf($E34,F$23,$G$6) -> 5.336799147e-05 | G34: =bivarpdf($E34,G$23,$G$6) -> 7.565393758e-05 | H34: =bivarpdf($E34,H$23,$G$6) -> 0.0001061349243 | I34: =bivarpdf($E34,I$23,$G$6) -> 0.0001473537496 | J34: =bivarpdf($E34,J$23,$G$6) -> 0.0002024604358 | K34: =bivarpdf($E34,K$23,$G$6) -> 0.0002752930469 | L34: =bivarpdf($E34,L$23,$G$6) -> 0.0003704472856 | M34: =bivarpdf($E34,M$23,$G$6) -> 0.0004933256427 | N34: =bivarpdf($E34,N$23,$G$6) -> 0.0006501552337 | O34: =bivarpdf($E34,O$23,$G$6) -> 0.0008479622815 | P34: =bivarpdf($E34,P$23,$G$6) -> 0.001094490775 | Q34: =bivarpdf($E34,Q$23,$G$6) -> 0.00139805345 | R34: =bivarpdf($E34,R$23,$G$6) -> 0.001767305157 | S34: =bivarpdf($E34,S$23,$G$6) -> 0.002210932141 | T34: =bivarpdf($E34,T$23,$G$6) -> 0.002737255775 | U34: =bivarpdf($E34,U$23,$G$6) -> 0.003353755882 | V34: =bivarpdf($E34,V$23,$G$6) -> 0.004066526559 | W34: =bivarpdf($E34,W$23,$G$6) -> 0.004879686014 | X34: =bivarpdf($E34,X$23,$G$6) -> 0.005794770521 | Y34: =bivarpdf($E34,Y$23,$G$6) -> 0.006810150432 | Z34: =bivarpdf($E34,Z$23,$G$6) -> 0.007920512208 | AA34: =bivarpdf($E34,AA$23,$G$6) -> 0.00911645367 | AB34: =bivarpdf($E34,AB$23,$G$6) -> 0.01038423935 | AC34: =bivarpdf($E34,AC$23,$G$6) -> 0.01170575822 | AD34: =bivarpdf($E34,AD$23,$G$6) -> 0.01305871695 | AE34: =bivarpdf($E34,AE$23,$G$6) -> 0.01441708858 | AF34: =bivarpdf($E34,AF$23,$G$6) -> 0.01575181941 | AG34: =bivarpdf($E34,AG$23,$G$6) -> 0.01703177772 | AH34: =bivarpdf($E34,AH$23,$G$6) -> 0.01822490763 | AI34: =bivarpdf($E34,AI$23,$G$6) -> 0.01929953257 | AJ34: =bivarpdf($E34,AJ$23,$G$6) -> 0.02022573648 | AK34: =bivarpdf($E34,AK$23,$G$6) -> 0.02097674011 | AL34: =bivarpdf($E34,AL$23,$G$6) -> 0.02153018441 | AM34: =bivarpdf($E34,AM$23,$G$6) -> 0.02186923548 | AN34: =bivarpdf($E34,AN$23,$G$6) -> 0.02198343488 | AO34: =bivarpdf($E34,AO$23,$G$6) -> 0.02186923548 | AP34: =bivarpdf($E34,AP$23,$G$6) -> 0.02153018441 | AQ34: =bivarpdf($E34,AQ$23,$G$6) -> 0.02097674011 | AR34: =bivarpdf($E34,AR$23,$G$6) -> 0.02022573648 | AS34: =bivarpdf($E34,AS$23,$G$6) -> 0.01929953257 | AT34: =bivarpdf($E34,AT$23,$G$6) -> 0.01822490763 | AU34: =bivarpdf($E34,AU$23,$G$6) -> 0.01703177772 | AV34: =bivarpdf($E34,AV$23,$G$6) -> 0.01575181941 | AW34: =bivarpdf($E34,AW$23,$G$6) -> 0.01441708858 | AX34: =bivarpdf($E34,AX$23,$G$6) -> 0.01305871695 | AY34: =bivarpdf($E34,AY$23,$G$6) -> 0.01170575822 | AZ34: =bivarpdf($E34,AZ$23,$G$6) -> 0.01038423935 | BA34: =bivarpdf($E34,BA$23,$G$6) -> 0.00911645367 | BB34: =bivarpdf($E34,BB$23,$G$6) -> 0.007920512208 | BC34: =bivarpdf($E34,BC$23,$G$6) -> 0.006810150432 | BD34: =bivarpdf($E34,BD$23,$G$6) -> 0.005794770521 | BE34: =bivarpdf($E34,BE$23,$G$6) -> 0.004879686014 | BF34: =bivarpdf($E34,BF$23,$G$6) -> 0.004066526559 | BG34: =bivarpdf($E34,BG$23,$G$6) -> 0.003353755882 | BH34: =bivarpdf($E34,BH$23,$G$6) -> 0.002737255775 | BI34: =bivarpdf($E34,BI$23,$G$6) -> 0.002210932141 | BJ34: =bivarpdf($E34,BJ$23,$G$6) -> 0.001767305157 | BK34: =bivarpdf($E34,BK$23,$G$6) -> 0.00139805345 | BL34: =bivarpdf($E34,BL$23,$G$6) -> 0.001094490775 | BM34: =bivarpdf($E34,BM$23,$G$6) -> 0.0008479622815 | BN34: =bivarpdf($E34,BN$23,$G$6) -> 0.0006501552337
E35: 1.9 | F35: =bivarpdf($E35,F$23,$G$6) -> 6.960498271e-05 | G35: =bivarpdf($E35,G$23,$G$6) -> 9.846598469e-05 | H35: =bivarpdf($E35,H$23,$G$6) -> 0.000137850462 | I35: =bivarpdf($E35,I$23,$G$6) -> 0.0001909881063 | J35: =bivarpdf($E35,J$23,$G$6) -> 0.0002618668466 | K35: =bivarpdf($E35,K$23,$G$6) -> 0.0003553291307 | L35: =bivarpdf($E35,L$23,$G$6) -> 0.0004771525044 | M35: =bivarpdf($E35,M$23,$G$6) -> 0.0006341028438 | N35: =bivarpdf($E35,N$23,$G$6) -> 0.0008339466978 | O35: =bivarpdf($E35,O$23,$G$6) -> 0.001085407917 | P35: =bivarpdf($E35,P$23,$G$6) -> 0.00139805345 | Q35: =bivarpdf($E35,Q$23,$G$6) -> 0.001782094236 | R35: =bivarpdf($E35,R$23,$G$6) -> 0.002248089797 | S35: =bivarpdf($E35,S$23,$G$6) -> 0.002806549735 | T35: =bivarpdf($E35,T$23,$G$6) -> 0.003467431818 | U35: =bivarpdf($E35,U$23,$G$6) -> 0.004239544679 | V35: =bivarpdf($E35,V$23,$G$6) -> 0.005129872866 | W35: =bivarpdf($E35,W$23,$G$6) -> 0.006142852494 | X35: =bivarpdf($E35,X$23,$G$6) -> 0.007279636113 | Y35: =bivarpdf($E35,Y$23,$G$6) -> 0.008537394576 | Z35: =bivarpdf($E35,Z$23,$G$6) -> 0.009908710411 | AA35: =bivarpdf($E35,AA$23,$G$6) -> 0.01138112039 | AB35: =bivarpdf($E35,AB$23,$G$6) -> 0.01293686356 | AC35: =bivarpdf($E35,AC$23,$G$6) -> 0.01455288433 | AD35: =bivarpdf($E35,AD$23,$G$6) -> 0.01620112811 | AE35: =bivarpdf($E35,AE$23,$G$6) -> 0.01784914979 | AF35: =bivarpdf($E35,AF$23,$G$6) -> 0.019461034 | AG35: =bivarpdf($E35,AG$23,$G$6) -> 0.02099860226 | AH35: =bivarpdf($E35,AH$23,$G$6) -> 0.02242285781 | AI35: =bivarpdf($E35,AI$23,$G$6) -> 0.02369559604 | AJ35: =bivarpdf($E35,AJ$23,$G$6) -> 0.02478109035 | AK35: =bivarpdf($E35,AK$23,$G$6) -> 0.02564775072 | AL35: =bivarpdf($E35,AL$23,$G$6) -> 0.02626964815 | AM35: =bivarpdf($E35,AM$23,$G$6) -> 0.02662780249 | AN35: =bivarpdf($E35,AN$23,$G$6) -> 0.02671114453 | AO35: =bivarpdf($E35,AO$23,$G$6) -> 0.02651708414 | AP35: =bivarpdf($E35,AP$23,$G$6) -> 0.02605164402 | AQ35: =bivarpdf($E35,AQ$23,$G$6) -> 0.02532914924 | AR35: =bivarpdf($E35,AR$23,$G$6) -> 0.02437149496 | AS35: =bivarpdf($E35,AS$23,$G$6) -> 0.02320704454 | AT35: =bivarpdf($E35,AT$23,$G$6) -> 0.02186923548 | AU35: =bivarpdf($E35,AU$23,$G$6) -> 0.02039498852 | AV35: =bivarpdf($E35,AV$23,$G$6) -> 0.01882302541 | AW35: =bivarpdf($E35,AW$23,$G$6) -> 0.01719220144 | AX35: =bivarpdf($E35,AX$23,$G$6) -> 0.01553995128 | AY35: =bivarpdf($E35,AY$23,$G$6) -> 0.01390093184 | AZ35: =bivarpdf($E35,AZ$23,$G$6) -> 0.01230592528 | BA35: =bivarpdf($E35,BA$23,$G$6) -> 0.01078104188 | BB35: =bivarpdf($E35,BB$23,$G$6) -> 0.009347237794 | BC35: =bivarpdf($E35,BC$23,$G$6) -> 0.008020139987 | BD35: =bivarpdf($E35,BD$23,$G$6) -> 0.006810150432 | BE35: =bivarpdf($E35,BE$23,$G$6) -> 0.005722786725 | BF35: =bivarpdf($E35,BF$23,$G$6) -> 0.004759206138 | BG35: =bivarpdf($E35,BG$23,$G$6) -> 0.003916855681 | BH35: =bivarpdf($E35,BH$23,$G$6) -> 0.003190191277 | BI35: =bivarpdf($E35,BI$23,$G$6) -> 0.002571413831 | BJ35: =bivarpdf($E35,BJ$23,$G$6) -> 0.002051177892 | BK35: =bivarpdf($E35,BK$23,$G$6) -> 0.001619238337 | BL35: =bivarpdf($E35,BL$23,$G$6) -> 0.001265011074 | BM35: =bivarpdf($E35,BM$23,$G$6) -> 0.0009780340534 | BN35: =bivarpdf($E35,BN$23,$G$6) -> 0.000748324087
E36: 1.8 | F36: =bivarpdf($E36,F$23,$G$6) -> 8.98412738e-05 | G36: =bivarpdf($E36,G$23,$G$6) -> 0.0001268285476 | H36: =bivarpdf($E36,H$23,$G$6) -> 0.0001771879716 | I36: =bivarpdf($E36,I$23,$G$6) -> 0.0002449782641 | J36: =bivarpdf($E36,J$23,$G$6) -> 0.0003351945654 | K36: =bivarpdf($E36,K$23,$G$6) -> 0.0004538815021 | L36: =bivarpdf($E36,L$23,$G$6) -> 0.0006082247625 | M36: =bivarpdf($E36,M$23,$G$6) -> 0.0008066066731 | N36: =bivarpdf($E36,N$23,$G$6) -> 0.0010586091 | O36: =bivarpdf($E36,O$23,$G$6) -> 0.001374945659 | P36: =bivarpdf($E36,P$23,$G$6) -> 0.001767305157 | Q36: =bivarpdf($E36,Q$23,$G$6) -> 0.002248089797 | R36: =bivarpdf($E36,R$23,$G$6) -> 0.00283003537 | S36: =bivarpdf($E36,S$23,$G$6) -> 0.003525706623 | T36: =bivarpdf($E36,T$23,$G$6) -> 0.004346869264 | U36: =bivarpdf($E36,U$23,$G$6) -> 0.00530375049 | V36: =bivarpdf($E36,V$23,$G$6) -> 0.006404211857 | W36: =bivarpdf($E36,W$23,$G$6) -> 0.007652871038 | X36: =bivarpdf($E36,X$23,$G$6) -> 0.009050221294 | Y36: =bivarpdf($E36,Y$23,$G$6) -> 0.01059180805 | Z36: =bivarpdf($E36,Z$23,$G$6) -> 0.01226752929 | AA36: =bivarpdf($E36,AA$23,$G$6) -> 0.01406112939 | AB36: =bivarpdf($E36,AB$23,$G$6) -> 0.0159499529 | AC36: =bivarpdf($E36,AC$23,$G$6) -> 0.01790501563 | AD36: =bivarpdf($E36,AD$23,$G$6) -> 0.01989143446 | AE36: =bivarpdf($E36,AE$23,$G$6) -> 0.02186923548 | AF36: =bivarpdf($E36,AF$23,$G$6) -> 0.02379453367 | AG36: =bivarpdf($E36,AG$23,$G$6) -> 0.02562104822 | AH36: =bivarpdf($E36,AH$23,$G$6) -> 0.02730188852 | AI36: =bivarpdf($E36,AI$23,$G$6) -> 0.02879151934 | AJ36: =bivarpdf($E36,AJ$23,$G$6) -> 0.03004779287 | AK36: =bivarpdf($E36,AK$23,$G$6) -> 0.03103392238 | AL36: =bivarpdf($E36,AL$23,$G$6) -> 0.03172026898 | AM36: =bivarpdf($E36,AM$23,$G$6) -> 0.0320858207 | AN36: =bivarpdf($E36,AN$23,$G$6) -> 0.03211926084 | AO36: =bivarpdf($E36,AO$23,$G$6) -> 0.03181954986 | AP36: =bivarpdf($E36,AP$23,$G$6) -> 0.03119597905 | AQ36: =bivarpdf($E36,AQ$23,$G$6) -> 0.03026769211 | AR36: =bivarpdf($E36,AR$23,$G$6) -> 0.02906270905 | AS36: =bivarpdf($E36,AS$23,$G$6) -> 0.02761652181 | AT36: =bivarpdf($E36,AT$23,$G$6) -> 0.02597035971 | AU36: =bivarpdf($E36,AU$23,$G$6) -> 0.02416924305 | AV36: =bivarpdf($E36,AV$23,$G$6) -> 0.02225995245 | AW36: =bivarpdf($E36,AW$23,$G$6) -> 0.02028904077 | AX36: =bivarpdf($E36,AX$23,$G$6) -> 0.01830100317 | AY36: =bivarpdf($E36,AY$23,$G$6) -> 0.01633670162 | AZ36: =bivarpdf($E36,AZ$23,$G$6) -> 0.0144321142 | BA36: =bivarpdf($E36,BA$23,$G$6) -> 0.01261745126 | BB36: =bivarpdf($E36,BB$23,$G$6) -> 0.01091665069 | BC36: =bivarpdf($E36,BC$23,$G$6) -> 0.009347237794 | BD36: =bivarpdf($E36,BD$23,$G$6) -> 0.007920512208 | BE36: =bivarpdf($E36,BE$23,$G$6) -> 0.006642007219 | BF36: =bivarpdf($E36,BF$23,$G$6) -> 0.005512156228 | BG36: =bivarpdf($E36,BG$23,$G$6) -> 0.004527096915 | BH36: =bivarpdf($E36,BH$23,$G$6) -> 0.003679545392 | BI36: =bivarpdf($E36,BI$23,$G$6) -> 0.002959679178 | BJ36: =bivarpdf($E36,BJ$23,$G$6) -> 0.002355977879 | BK36: =bivarpdf($E36,BK$23,$G$6) -> 0.001855982508 | BL36: =bivarpdf($E36,BL$23,$G$6) -> 0.001446947083 | BM36: =bivarpdf($E36,BM$23,$G$6) -> 0.001116368355 | BN36: =bivarpdf($E36,BN$23,$G$6) -> 0.000852390273
E37: 1.7 | F37: =bivarpdf($E37,F$23,$G$6) -> 0.0001147592155 | G37: =bivarpdf($E37,G$23,$G$6) -> 0.0001616679417 | H37: =bivarpdf($E37,H$23,$G$6) -> 0.0002253908836 | I37: =bivarpdf($E37,I$23,$G$6) -> 0.0003109745747 | J37: =bivarpdf($E37,J$23,$G$6) -> 0.0004246093156 | K37: =bivarpdf($E37,K$23,$G$6) -> 0.00057375998 | L37: =bivarpdf($E37,L$23,$G$6) -> 0.0007672680014 | M37: =bivarpdf($E37,M$23,$G$6) -> 0.001015406688 | N37: =bivarpdf($E37,N$23,$G$6) -> 0.001329869579 | O37: =bivarpdf($E37,O$23,$G$6) -> 0.001723670238 | P37: =bivarpdf($E37,P$23,$G$6) -> 0.002210932141 | Q37: =bivarpdf($E37,Q$23,$G$6) -> 0.002806549735 | R37: =bivarpdf($E37,R$23,$G$6) -> 0.003525706623 | S37: =bivarpdf($E37,S$23,$G$6) -> 0.004383244527 | T37: =bivarpdf($E37,T$23,$G$6) -> 0.005392887073 | U37: =bivarpdf($E37,U$23,$G$6) -> 0.006566335252 | V37: =bivarpdf($E37,V$23,$G$6) -> 0.00791226597 | W37: =bivarpdf($E37,W$23,$G$6) -> 0.009435280202 | X37: =bivarpdf($E37,X$23,$G$6) -> 0.01113486166 | Y37: =bivarpdf($E37,Y$23,$G$6) -> 0.01300441883 | Z37: =bivarpdf($E37,Z$23,$G$6) -> 0.01503049108 | AA37: =bivarpdf($E37,AA$23,$G$6) -> 0.01719220144 | AB37: =bivarpdf($E37,AB$23,$G$6) -> 0.019461034 | AC37: =bivarpdf($E37,AC$23,$G$6) -> 0.02180100079 | AD37: =bivarpdf($E37,AD$23,$G$6) -> 0.02416924305 | AE37: =bivarpdf($E37,AE$23,$G$6) -> 0.02651708414 | AF37: =bivarpdf($E37,AF$23,$G$6) -> 0.02879151934 | AG37: =bivarpdf($E37,AG$23,$G$6) -> 0.03093709275 | AH37: =bivarpdf($E37,AH$23,$G$6) -> 0.03289807712 | AI37: =bivarpdf($E37,AI$23,$G$6) -> 0.0346208422 | AJ37: =bivarpdf($E37,AJ$23,$G$6) -> 0.03605627371 | AK37: =bivarpdf($E37,AK$23,$G$6) -> 0.03716209201 | AL37: =bivarpdf($E37,AL$23,$G$6) -> 0.03790491839 | AM37: =bivarpdf($E37,AM$23,$G$6) -> 0.03826194796 | AN37: =bivarpdf($E37,AN$23,$G$6) -> 0.03822211252 | AO37: =bivarpdf($E37,AO$23,$G$6) -> 0.03778665041 | AP37: =bivarpdf($E37,AP$23,$G$6) -> 0.03696904262 | AQ37: =bivarpdf($E37,AQ$23,$G$6) -> 0.03579431958 | AR37: =bivarpdf($E37,AR$23,$G$6) -> 0.03429778849 | AS37: =bivarpdf($E37,AS$23,$G$6) -> 0.03252327141 | AT37: =bivarpdf($E37,AT$23,$G$6) -> 0.03052097676 | AU37: =bivarpdf($E37,AU$23,$G$6) -> 0.02834514821 | AV37: =bivarpdf($E37,AV$23,$G$6) -> 0.02605164402 | AW37: =bivarpdf($E37,AW$23,$G$6) -> 0.02369559604 | AX37: =bivarpdf($E37,AX$23,$G$6) -> 0.02132928213 | AY37: =bivarpdf($E37,AY$23,$G$6) -> 0.01900032105 | AZ37: =bivarpdf($E37,AZ$23,$G$6) -> 0.01675026719 | BA37: =bivarpdf($E37,BA$23,$G$6) -> 0.01461364785 | BB37: =bivarpdf($E37,BB$23,$G$6) -> 0.01261745126 | BC37: =bivarpdf($E37,BC$23,$G$6) -> 0.01078104188 | BD37: =bivarpdf($E37,BD$23,$G$6) -> 0.00911645367 | BE37: =bivarpdf($E37,BE$23,$G$6) -> 0.007628993145 | BF37: =bivarpdf($E37,BF$23,$G$6) -> 0.006318072705 | BG37: =bivarpdf($E37,BG$23,$G$6) -> 0.005178191565 | BH37: =bivarpdf($E37,BH$23,$G$6) -> 0.004199984675 | BI37: =bivarpdf($E37,BI$23,$G$6) -> 0.003371268927 | BJ37: =bivarpdf($E37,BJ$23,$G$6) -> 0.002678028465 | BK37: =bivarpdf($E37,BK$23,$G$6) -> 0.002105295582 | BL37: =bivarpdf($E37,BL$23,$G$6) -> 0.001637898815 | BM37: =bivarpdf($E37,BM$23,$G$6) -> 0.001261064085 | BN37: =bivarpdf($E37,BN$23,$G$6) -> 0.0009608671476
E38: 1.6 | F38: =bivarpdf($E38,F$23,$G$6) -> 0.0001450692414 | G38: =bivarpdf($E38,G$23,$G$6) -> 0.0002039421052 | H38: =bivarpdf($E38,H$23,$G$6) -> 0.0002837360739 | I38: =bivarpdf($E38,I$23,$G$6) -> 0.0003906594292 | J38: =bivarpdf($E38,J$23,$G$6) -> 0.0005323020841 | K38: =bivarpdf($E38,K$23,$G$6) -> 0.0007177845747 | L38: =bivarpdf($E38,L$23,$G$6) -> 0.0009578691246 | M38: =bivarpdf($E38,M$23,$G$6) -> 0.001265011074 | N38: =bivarpdf($E38,N$23,$G$6) -> 0.00165332632 | O38: =bivarpdf($E38,O$23,$G$6) -> 0.002138449164 | P38: =bivarpdf($E38,P$23,$G$6) -> 0.002737255775 | Q38: =bivarpdf($E38,Q$23,$G$6) -> 0.003467431818 | R38: =bivarpdf($E38,R$23,$G$6) -> 0.004346869264 | S38: =bivarpdf($E38,S$23,$G$6) -> 0.005392887073 | T38: =bivarpdf($E38,T$23,$G$6) -> 0.006621283344 | U38: =bivarpdf($E38,U$23,$G$6) -> 0.008045242126 | V38: =bivarpdf($E38,V$23,$G$6) -> 0.009674135457 | W38: =bivarpdf($E38,W$23,$G$6) -> 0.01151227906 | X38: =bivarpdf($E38,X$23,$G$6) -> 0.01355771661 | Y38: =bivarpdf($E38,Y$23,$G$6) -> 0.01580112084 | Z38: =bivarpdf($E38,Z$23,$G$6) -> 0.01822490763 | AA38: =bivarpdf($E38,AA$23,$G$6) -> 0.02080266028 | AB38: =bivarpdf($E38,AB$23,$G$6) -> 0.02349895322 | AC38: =bivarpdf($E38,AC$23,$G$6) -> 0.02626964815 | AD38: =bivarpdf($E38,AD$23,$G$6) -> 0.02906270905 | AE38: =bivarpdf($E38,AE$23,$G$6) -> 0.03181954986 | AF38: =bivarpdf($E38,AF$23,$G$6) -> 0.0344768888 | AG38: =bivarpdf($E38,AG$23,$G$6) -> 0.03696904262 | AH38: =bivarpdf($E38,AH$23,$G$6) -> 0.03923055379 | AI38: =bivarpdf($E38,AI$23,$G$6) -> 0.0411990093 | AJ38: =bivarpdf($E38,AJ$23,$G$6) -> 0.04281788446 | AK38: =bivarpdf($E38,AK$23,$G$6) -> 0.04403923215 | AL38: =bivarpdf($E38,AL$23,$G$6) -> 0.04482603952 | AM38: =bivarpdf($E38,AM$23,$G$6) -> 0.04515409062 | AN38: =bivarpdf($E38,AN$23,$G$6) -> 0.04501320434 | AO38: =bivarpdf($E38,AO$23,$G$6) -> 0.04440775915 | AP38: =bivarpdf($E38,AP$23,$G$6) -> 0.04335646714 | AQ38: =bivarpdf($E38,AQ$23,$G$6) -> 0.04189141346 | AR38: =bivarpdf($E38,AR$23,$G$6) -> 0.04005643 | AS38: =bivarpdf($E38,AS$23,$G$6) -> 0.03790491839 | AT38: =bivarpdf($E38,AT$23,$G$6) -> 0.035497273 | AU38: =bivarpdf($E38,AU$23,$G$6) -> 0.03289807712 | AV38: =bivarpdf($E38,AV$23,$G$6) -> 0.03017325321 | AW38: =bivarpdf($E38,AW$23,$G$6) -> 0.02738734037 | AX38: =bivarpdf($E38,AX$23,$G$6) -> 0.02460105209 | AY38: =bivarpdf($E38,AY$23,$G$6) -> 0.02186923548 | AZ38: =bivarpdf($E38,AZ$23,$G$6) -> 0.01923931567 | BA38: =bivarpdf($E38,BA$23,$G$6) -> 0.01675026719 | BB38: =bivarpdf($E38,BB$23,$G$6) -> 0.0144321142 | BC38: =bivarpdf($E38,BC$23,$G$6) -> 0.01230592528 | BD38: =bivarpdf($E38,BD$23,$G$6) -> 0.01038423935 | BE38: =bivarpdf($E38,BE$23,$G$6) -> 0.008671838978 | BF38: =bivarpdf($E38,BF$23,$G$6) -> 0.007166775816 | BG38: =bivarpdf($E38,BG$23,$G$6) -> 0.005861550798 | BH38: =bivarpdf($E38,BH$23,$G$6) -> 0.004744356832 | BI38: =bivarpdf($E38,BI$23,$G$6) -> 0.003800303289 | BJ38: =bivarpdf($E38,BJ$23,$G$6) -> 0.00301255697 | BK38: =bivarpdf($E38,BK$23,$G$6) -> 0.002363351826 | BL38: =bivarpdf($E38,BL$23,$G$6) -> 0.001834837417 | BM38: =bivarpdf($E38,BM$23,$G$6) -> 0.001409752574 | BN38: =bivarpdf($E38,BN$23,$G$6) -> 0.001071924763
E39: 1.5 | F39: =bivarpdf($E39,F$23,$G$6) -> 0.0001814843617 | G39: =bivarpdf($E39,G$23,$G$6) -> 0.0002546044477 | H39: =bivarpdf($E39,H$23,$G$6) -> 0.0003534832693 | I39: =bivarpdf($E39,I$23,$G$6) -> 0.0004856773375 | J39: =bivarpdf($E39,J$23,$G$6) -> 0.0006603936889 | K39: =bivarpdf($E39,K$23,$G$6) -> 0.0008886568411 | L39: =bivarpdf($E39,L$23,$G$6) -> 0.001183426696 | M39: =bivarpdf($E39,M$23,$G$6) -> 0.001559641327 | N39: =bivarpdf($E39,N$23,$G$6) -> 0.002034155767 | O39: =bivarpdf($E39,O$23,$G$6) -> 0.002625546881 | P39: =bivarpdf($E39,P$23,$G$6) -> 0.003353755882 | Q39: =bivarpdf($E39,Q$23,$G$6) -> 0.004239544679 | R39: =bivarpdf($E39,R$23,$G$6) -> 0.00530375049 | S39: =bivarpdf($E39,S$23,$G$6) -> 0.006566335252 | T39: =bivarpdf($E39,T$23,$G$6) -> 0.008045242126 | U39: =bivarpdf($E39,U$23,$G$6) -> 0.009755090095 | V39: =bivarpdf($E39,V$23,$G$6) -> 0.01170575822 | W39: =bivarpdf($E39,W$23,$G$6) -> 0.01390093184 | X39: =bivarpdf($E39,X$23,$G$6) -> 0.01633670162 | Y39: =bivarpdf($E39,Y$23,$G$6) -> 0.01900032105 | Z39: =bivarpdf($E39,Z$23,$G$6) -> 0.02186923548 | AA39: =bivarpdf($E39,AA$23,$G$6) -> 0.02491049523 | AB39: =bivarpdf($E39,AB$23,$G$6) -> 0.0280806542 | AC39: =bivarpdf($E39,AC$23,$G$6) -> 0.03132623347 | AD39: =bivarpdf($E39,AD$23,$G$6) -> 0.0345847976 | AE39: =bivarpdf($E39,AE$23,$G$6) -> 0.03778665041 | AF39: =bivarpdf($E39,AF$23,$G$6) -> 0.04085711077 | AG39: =bivarpdf($E39,AG$23,$G$6) -> 0.04371928066 | AH39: =bivarpdf($E39,AH$23,$G$6) -> 0.04629717187 | AI39: =bivarpdf($E39,AI$23,$G$6) -> 0.04851901954 | AJ39: =bivarpdf($E39,AJ$23,$G$6) -> 0.05032058359 | AK39: =bivarpdf($E39,AK$23,$G$6) -> 0.05164822745 | AL39: =bivarpdf($E39,AL$23,$G$6) -> 0.05246156869 | AM39: =bivarpdf($E39,AM$23,$G$6) -> 0.05273551881 | AN39: =bivarpdf($E39,AN$23,$G$6) -> 0.05246156869 | AO39: =bivarpdf($E39,AO$23,$G$6) -> 0.05164822745 | AP39: =bivarpdf($E39,AP$23,$G$6) -> 0.05032058359 | AQ39: =bivarpdf($E39,AQ$23,$G$6) -> 0.04851901954 | AR39: =bivarpdf($E39,AR$23,$G$6) -> 0.04629717187 | AS39: =bivarpdf($E39,AS$23,$G$6) -> 0.04371928066 | AT39: =bivarpdf($E39,AT$23,$G$6) -> 0.04085711077 | AU39: =bivarpdf($E39,AU$23,$G$6) -> 0.03778665041 | AV39: =bivarpdf($E39,AV$23,$G$6) -> 0.0345847976 | AW39: =bivarpdf($E39,AW$23,$G$6) -> 0.03132623347 | AX39: =bivarpdf($E39,AX$23,$G$6) -> 0.0280806542 | AY39: =bivarpdf($E39,AY$23,$G$6) -> 0.02491049523 | AZ39: =bivarpdf($E39,AZ$23,$G$6) -> 0.02186923548 | BA39: =bivarpdf($E39,BA$23,$G$6) -> 0.01900032105 | BB39: =bivarpdf($E39,BB$23,$G$6) -> 0.01633670162 | BC39: =bivarpdf($E39,BC$23,$G$6) -> 0.01390093184 | BD39: =bivarpdf($E39,BD$23,$G$6) -> 0.01170575822 | BE39: =bivarpdf($E39,BE$23,$G$6) -> 0.009755090095 | BF39: =bivarpdf($E39,BF$23,$G$6) -> 0.008045242126 | BG39: =bivarpdf($E39,BG$23,$G$6) -> 0.006566335252 | BH39: =bivarpdf($E39,BH$23,$G$6) -> 0.00530375049 | BI39: =bivarpdf($E39,BI$23,$G$6) -> 0.004239544679 | BJ39: =bivarpdf($E39,BJ$23,$G$6) -> 0.003353755882 | BK39: =bivarpdf($E39,BK$23,$G$6) -> 0.002625546881 | BL39: =bivarpdf($E39,BL$23,$G$6) -> 0.002034155767 | BM39: =bivarpdf($E39,BM$23,$G$6) -> 0.001559641327 | BN39: =bivarpdf($E39,BN$23,$G$6) -> 0.001183426696
E40: 1.4 | F40: =bivarpdf($E40,F$23,$G$6) -> 0.0002246876365 | G40: =bivarpdf($E40,G$23,$G$6) -> 0.0003145583177 | H40: =bivarpdf($E40,H$23,$G$6) -> 0.0004358120862 | I40: =bivarpdf($E40,I$23,$G$6) -> 0.0005975489203 | J40: =bivarpdf($E40,J$23,$G$6) -> 0.0008108187088 | K40: =bivarpdf($E40,K$23,$G$6) -> 0.001088805122 | L40: =bivarpdf($E40,L$23,$G$6) -> 0.001446947083 | M40: =bivarpdf($E40,M$23,$G$6) -> 0.001902966929 | N40: =bivarpdf($E40,N$23,$G$6) -> 0.002476771448 | O40: =bivarpdf($E40,O$23,$G$6) -> 0.003190191277 | P40: =bivarpdf($E40,P$23,$G$6) -> 0.004066526559 | Q40: =bivarpdf($E40,Q$23,$G$6) -> 0.005129872866 | R40: =bivarpdf($E40,R$23,$G$6) -> 0.006404211857 | S40: =bivarpdf($E40,S$23,$G$6) -> 0.00791226597 | T40: =bivarpdf($E40,T$23,$G$6) -> 0.009674135457 | U40: =bivarpdf($E40,U$23,$G$6) -> 0.01170575822 | V40: =bivarpdf($E40,V$23,$G$6) -> 0.01401725695 | W40: =bivarpdf($E40,W$23,$G$6) -> 0.01661126163 | X40: =bivarpdf($E40,X$23,$G$6) -> 0.01948131647 | Y40: =bivarpdf($E40,Y$23,$G$6) -> 0.0226104957 | Z40: =bivarpdf($E40,Z$23,$G$6) -> 0.02597035971 | AA40: =bivarpdf($E40,AA$23,$G$6) -> 0.02952038012 | AB40: =bivarpdf($E40,AB$23,$G$6) -> 0.03320794684 | AC40: =bivarpdf($E40,AC$23,$G$6) -> 0.03696904262 | AD40: =bivarpdf($E40,AD$23,$G$6) -> 0.04072963159 | AE40: =bivarpdf($E40,AE$23,$G$6) -> 0.04440775915 | AF40: =bivarpdf($E40,AF$23,$G$6) -> 0.0479163066 | AG40: =bivarpdf($E40,AG$23,$G$6) -> 0.05116628794 | AH40: =bivarpdf($E40,AH$23,$G$6) -> 0.05407052483 | AI40: =bivarpdf($E40,AI$23,$G$6) -> 0.05654749342 | AJ40: =bivarpdf($E40,AJ$23,$G$6) -> 0.05852510904 | AK40: =bivarpdf($E40,AK$23,$G$6) -> 0.05994420482 | AL40: =bivarpdf($E40,AL$23,$G$6) -> 0.06076147034 | AM40: =bivarpdf($E40,AM$23,$G$6) -> 0.06095164693 | AN40: =bivarpdf($E40,AN$23,$G$6) -> 0.06050882425 | AO40: =bivarpdf($E40,AO$23,$G$6) -> 0.0594467454 | AP40: =bivarpdf($E40,AP$23,$G$6) -> 0.05779809846 | AQ40: =bivarpdf($E40,AQ$23,$G$6) -> 0.05561284556 | AR40: =bivarpdf($E40,AR$23,$G$6) -> 0.05295570855 | AS40: =bivarpdf($E40,AS$23,$G$6) -> 0.04990298779 | AT40: =bivarpdf($E40,AT$23,$G$6) -> 0.04653893201 | AU40: =bivarpdf($E40,AU$23,$G$6) -> 0.04295189964 | AV40: =bivarpdf($E40,AV$23,$G$6) -> 0.03923055379 | AW40: =bivarpdf($E40,AW$23,$G$6) -> 0.03546031592 | AX40: =bivarpdf($E40,AX$23,$G$6) -> 0.03172026898 | AY40: =bivarpdf($E40,AY$23,$G$6) -> 0.0280806542 | AZ40: =bivarpdf($E40,AZ$23,$G$6) -> 0.02460105209 | BA40: =bivarpdf($E40,BA$23,$G$6) -> 0.02132928213 | BB40: =bivarpdf($E40,BB$23,$G$6) -> 0.01830100317 | BC40: =bivarpdf($E40,BC$23,$G$6) -> 0.01553995128 | BD40: =bivarpdf($E40,BD$23,$G$6) -> 0.01305871695 | BE40: =bivarpdf($E40,BE$23,$G$6) -> 0.01085994094 | BF40: =bivarpdf($E40,BF$23,$G$6) -> 0.00893779764 | BG40: =bivarpdf($E40,BG$23,$G$6) -> 0.007279636113 | BH40: =bivarpdf($E40,BH$23,$G$6) -> 0.005867659761 | BI40: =bivarpdf($E40,BI$23,$G$6) -> 0.004680543379 | BJ40: =bivarpdf($E40,BJ$23,$G$6) -> 0.003694908816 | BK40: =bivarpdf($E40,BK$23,$G$6) -> 0.002886604438 | BL40: =bivarpdf($E40,BL$23,$G$6) -> 0.002231757094 | BM40: =bivarpdf($E40,BM$23,$G$6) -> 0.00170758634 | BN40: =bivarpdf($E40,BN$23,$G$6) -> 0.001292988074
E41: 1.3 | F41: =bivarpdf($E41,F$23,$G$6) -> 0.0002752930469 | G41: =bivarpdf($E41,G$23,$G$6) -> 0.0003846028162 | H41: =bivarpdf($E41,H$23,$G$6) -> 0.0005317478915 | I41: =bivarpdf($E41,I$23,$G$6) -> 0.0007275706847 | J41: =bivarpdf($E41,J$23,$G$6) -> 0.0009851916152 | K41: =bivarpdf($E41,K$23,$G$6) -> 0.001320207881 | L41: =bivarpdf($E41,L$23,$G$6) -> 0.001750814094 | M41: =bivarpdf($E41,M$23,$G$6) -> 0.002297808578 | N41: =bivarpdf($E41,N$23,$G$6) -> 0.002984446223 | O41: =bivarpdf($E41,O$23,$G$6) -> 0.003836098661 | P41: =bivarpdf($E41,P$23,$G$6) -> 0.004879686014 | Q41: =bivarpdf($E41,Q$23,$G$6) -> 0.006142852494 | R41: =bivarpdf($E41,R$23,$G$6) -> 0.007652871038 | S41: =bivarpdf($E41,S$23,$G$6) -> 0.009435280202 | T41: =bivarpdf($E41,T$23,$G$6) -> 0.01151227906 | U41: =bivarpdf($E41,U$23,$G$6) -> 0.01390093184 | V41: =bivarpdf($E41,V$23,$G$6) -> 0.01661126163 | W41: =bivarpdf($E41,W$23,$G$6) -> 0.01964433909 | X41: =bivarpdf($E41,X$23,$G$6) -> 0.02299049516 | Y41: =bivarpdf($E41,Y$23,$G$6) -> 0.02662780249 | Z41: =bivarpdf($E41,Z$23,$G$6) -> 0.03052097676 | AA41: =bivarpdf($E41,AA$23,$G$6) -> 0.0346208422 | AB41: =bivarpdf($E41,AB$23,$G$6) -> 0.03886448597 | AC41: =bivarpdf($E41,AC$23,$G$6) -> 0.04317619103 | AD41: =bivarpdf($E41,AD$23,$G$6) -> 0.04746919036 | AE41: =bivarpdf($E41,AE$23,$G$6) -> 0.05164822745 | AF41: =bivarpdf($E41,AF$23,$G$6) -> 0.05561284556 | AG41: =bivarpdf($E41,AG$23,$G$6) -> 0.05926126429 | AH41: =bivarpdf($E41,AH$23,$G$6) -> 0.06249464521 | AI41: =bivarpdf($E41,AI$23,$G$6) -> 0.06522150265 | AJ41: =bivarpdf($E41,AJ$23,$G$6) -> 0.06736198759 | AK41: =bivarpdf($E41,AK$23,$G$6) -> 0.06885176612 | AL41: =bivarpdf($E41,AL$23,$G$6) -> 0.06964522981 | AM41: =bivarpdf($E41,AM$23,$G$6) -> 0.06971781472 | AN41: =bivarpdf($E41,AN$23,$G$6) -> 0.06906726443 | AO41: =bivarpdf($E41,AO$23,$G$6) -> 0.06771374652 | AP41: =bivarpdf($E41,AP$23,$G$6) -> 0.06569881419 | AQ41: =bivarpdf($E41,AQ$23,$G$6) -> 0.06308328746 | AR41: =bivarpdf($E41,AR$23,$G$6) -> 0.05994420482 | AS41: =bivarpdf($E41,AS$23,$G$6) -> 0.05637105832 | AT41: =bivarpdf($E41,AT$23,$G$6) -> 0.05246156869 | AU41: =bivarpdf($E41,AU$23,$G$6) -> 0.04831727754 | AV41: =bivarpdf($E41,AV$23,$G$6) -> 0.04403923215 | AW41: =bivarpdf($E41,AW$23,$G$6) -> 0.03972401341 | AX41: =bivarpdf($E41,AX$23,$G$6) -> 0.03546031592 | AY41: =bivarpdf($E41,AY$23,$G$6) -> 0.03132623347 | AZ41: =bivarpdf($E41,AZ$23,$G$6) -> 0.02738734037 | BA41: =bivarpdf($E41,BA$23,$G$6) -> 0.02369559604 | BB41: =bivarpdf($E41,BB$23,$G$6) -> 0.02028904077 | BC41: =bivarpdf($E41,BC$23,$G$6) -> 0.01719220144 | BD41: =bivarpdf($E41,BD$23,$G$6) -> 0.01441708858 | BE41: =bivarpdf($E41,BE$23,$G$6) -> 0.01196464291 | BF41: =bivarpdf($E41,BF$23,$G$6) -> 0.009826480923 | BG41: =bivarpdf($E41,BG$23,$G$6) -> 0.00798679226 | BH41: =bivarpdf($E41,BH$23,$G$6) -> 0.006424256322 | BI41: =bivarpdf($E41,BI$23,$G$6) -> 0.005113867036 | BJ41: =bivarpdf($E41,BJ$23,$G$6) -> 0.00402858102 | BK41: =bivarpdf($E41,BK$23,$G$6) -> 0.003140731946 | BL41: =bivarpdf($E41,BL$23,$G$6) -> 0.002423180362 | BM41: =bivarpdf($E41,BM$23,$G$6) -> 0.001850191616 | BN41: =bivarpdf($E41,BN$23,$G$6) -> 0.00139805345
E42: 1.2 | F42: =bivarpdf($E42,F$23,$G$6) -> 0.000333800827 | G42: =bivarpdf($E42,G$23,$G$6) -> 0.0004653715671 | H42: =bivarpdf($E42,H$23,$G$6) -> 0.0006420788757 | I42: =bivarpdf($E42,I$23,$G$6) -> 0.0008767040593 | J42: =bivarpdf($E42,J$23,$G$6) -> 0.001184660075 | K42: =bivarpdf($E42,K$23,$G$6) -> 0.001584202105 | L42: =bivarpdf($E42,L$23,$G$6) -> 0.002096541767 | M42: =bivarpdf($E42,M$23,$G$6) -> 0.002745823079 | N42: =bivarpdf($E42,N$23,$G$6) -> 0.003558915546 | O42: =bivarpdf($E42,O$23,$G$6) -> 0.004564980351 | P42: =bivarpdf($E42,P$23,$G$6) -> 0.005794770521 | Q42: =bivarpdf($E42,Q$23,$G$6) -> 0.007279636113 | R42: =bivarpdf($E42,R$23,$G$6) -> 0.009050221294 | S42: =bivarpdf($E42,S$23,$G$6) -> 0.01113486166 | T42: =bivarpdf($E42,T$23,$G$6) -> 0.01355771661 | U42: =bivarpdf($E42,U$23,$G$6) -> 0.01633670162 | V42: =bivarpdf($E42,V$23,$G$6) -> 0.01948131647 | W42: =bivarpdf($E42,W$23,$G$6) -> 0.02299049516 | X42: =bivarpdf($E42,X$23,$G$6) -> 0.026850628 | Y42: =bivarpdf($E42,Y$23,$G$6) -> 0.03103392238 | Z42: =bivarpdf($E42,Z$23,$G$6) -> 0.035497273 | AA42: =bivarpdf($E42,AA$23,$G$6) -> 0.04018180213 | AB42: =bivarpdf($E42,AB$23,$G$6) -> 0.04501320434 | AC42: =bivarpdf($E42,AC$23,$G$6) -> 0.04990298779 | AD42: =bivarpdf($E42,AD$23,$G$6) -> 0.05475064831 | AE42: =bivarpdf($E42,AE$23,$G$6) -> 0.0594467454 | AF42: =bivarpdf($E42,AF$23,$G$6) -> 0.06387677754 | AG42: =bivarpdf($E42,AG$23,$G$6) -> 0.06792568296 | AH42: =bivarpdf($E42,AH$23,$G$6) -> 0.0714827296 | AI42: =bivarpdf($E42,AI$23,$G$6) -> 0.07444650967 | AJ42: =bivarpdf($E42,AJ$23,$G$6) -> 0.07672972712 | AK42: =bivarpdf($E42,AK$23,$G$6) -> 0.07826346384 | AL42: =bivarpdf($E42,AL$23,$G$6) -> 0.0790006339 | AM42: =bivarpdf($E42,AM$23,$G$6) -> 0.07891838442 | AN42: =bivarpdf($E42,AN$23,$G$6) -> 0.07801927227 | AO42: =bivarpdf($E42,AO$23,$G$6) -> 0.07633113203 | AP42: =bivarpdf($E42,AP$23,$G$6) -> 0.07390564484 | AQ42: =bivarpdf($E42,AQ$23,$G$6) -> 0.07081571055 | AR42: =bivarpdf($E42,AR$23,$G$6) -> 0.06715180995 | AS42: =bivarpdf($E42,AS$23,$G$6) -> 0.06301760992 | AT42: =bivarpdf($E42,AT$23,$G$6) -> 0.05852510904 | AU42: =bivarpdf($E42,AU$23,$G$6) -> 0.05378963962 | AV42: =bivarpdf($E42,AV$23,$G$6) -> 0.04892503408 | AW42: =bivarpdf($E42,AW$23,$G$6) -> 0.04403923215 | AX42: =bivarpdf($E42,AX$23,$G$6) -> 0.03923055379 | AY42: =bivarpdf($E42,AY$23,$G$6) -> 0.0345847976 | AZ42: =bivarpdf($E42,AZ$23,$G$6) -> 0.03017325321 | BA42: =bivarpdf($E42,BA$23,$G$6) -> 0.02605164402 | BB42: =bivarpdf($E42,BB$23,$G$6) -> 0.02225995245 | BC42: =bivarpdf($E42,BC$23,$G$6) -> 0.01882302541 | BD42: =bivarpdf($E42,BD$23,$G$6) -> 0.01575181941 | BE42: =bivarpdf($E42,BE$23,$G$6) -> 0.0130451212 | BF42: =bivarpdf($E42,BF$23,$G$6) -> 0.01069157316 | BG42: =bivarpdf($E42,BG$23,$G$6) -> 0.008671838978 | BH42: =bivarpdf($E42,BH$23,$G$6) -> 0.006960763801 | BI42: =bivarpdf($E42,BI$23,$G$6) -> 0.005529408659 | BJ42: =bivarpdf($E42,BJ$23,$G$6) -> 0.004346869264 | BK42: =bivarpdf($E42,BK$23,$G$6) -> 0.003381820621 | BL42: =bivarpdf($E42,BL$23,$G$6) -> 0.002603758235 | BM42: =bivarpdf($E42,BM$23,$G$6) -> 0.001983932283 | BN42: =bivarpdf($E42,BN$23,$G$6) -> 0.001495991518
E43: 1.1 | F43: =bivarpdf($E43,F$23,$G$6) -> 0.0004005490198 | G43: =bivarpdf($E43,G$23,$G$6) -> 0.0005572670056 | H43: =bivarpdf($E43,H$23,$G$6) -> 0.0007672680014 | I43: =bivarpdf($E43,I$23,$G$6) -> 0.001045458846 | J43: =bivarpdf($E43,J$23,$G$6) -> 0.001409752574 | K43: =bivarpdf($E43,K$23,$G$6) -> 0.001881286547 | L43: =bivarpdf($E43,L$23,$G$6) -> 0.002484523465 | M43: =bivarpdf($E43,M$23,$G$6) -> 0.003247187412 | N43: =bivarpdf($E43,N$23,$G$6) -> 0.004199984675 | O43: =bivarpdf($E43,O$23,$G$6) -> 0.005376060605 | P43: =bivarpdf($E43,P$23,$G$6) -> 0.006810150432 | Q43: =bivarpdf($E43,Q$23,$G$6) -> 0.008537394576 | R43: =bivarpdf($E43,R$23,$G$6) -> 0.01059180805 | S43: =bivarpdf($E43,S$23,$G$6) -> 0.01300441883 | T43: =bivarpdf($E43,T$23,$G$6) -> 0.01580112084 | U43: =bivarpdf($E43,U$23,$G$6) -> 0.01900032105 | V43: =bivarpdf($E43,V$23,$G$6) -> 0.0226104957 | W43: =bivarpdf($E43,W$23,$G$6) -> 0.02662780249 | X43: =bivarpdf($E43,X$23,$G$6) -> 0.03103392238 | Y43: =bivarpdf($E43,Y$23,$G$6) -> 0.03579431958 | Z43: =bivarpdf($E43,Z$23,$G$6) -> 0.04085711077 | AA43: =bivarpdf($E43,AA$23,$G$6) -> 0.04615271903 | AB43: =bivarpdf($E43,AB$23,$G$6) -> 0.05159445522 | AC43: =bivarpdf($E43,AC$23,$G$6) -> 0.05708011895 | AD43: =bivarpdf($E43,AD$23,$G$6) -> 0.06249464521 | AE43: =bivarpdf($E43,AE$23,$G$6) -> 0.06771374652 | AF43: =bivarpdf($E43,AF$23,$G$6) -> 0.0726084188 | AG43: =bivarpdf($E43,AG$23,$G$6) -> 0.0770501013 | AH43: =bivarpdf($E43,AH$23,$G$6) -> 0.08091621283 | AI43: =bivarpdf($E43,AI$23,$G$6) -> 0.08409573704 | AJ43: =bivarpdf($E43,AJ$23,$G$6) -> 0.08649450419 | AK43: =bivarpdf($E43,AK$23,$G$6) -> 0.0880398198 | AL43: =bivarpdf($E43,AL$23,$G$6) -> 0.08868412298 | AM43: =bivarpdf($E43,AM$23,$G$6) -> 0.08840741768 | AN43: =bivarpdf($E43,AN$23,$G$6) -> 0.08721830336 | AO43: =bivarpdf($E43,AO$23,$G$6) -> 0.08515353119 | AP43: =bivarpdf($E43,AP$23,$G$6) -> 0.08227611744 | AQ43: =bivarpdf($E43,AQ$23,$G$6) -> 0.07867214941 | AR43: =bivarpdf($E43,AR$23,$G$6) -> 0.07444650967 | AS43: =bivarpdf($E43,AS$23,$G$6) -> 0.06971781472 | AT43: =bivarpdf($E43,AT$23,$G$6) -> 0.06461290831 | AU43: =bivarpdf($E43,AU$23,$G$6) -> 0.05926126429 | AV43: =bivarpdf($E43,AV$23,$G$6) -> 0.05378963962 | AW43: =bivarpdf($E43,AW$23,$G$6) -> 0.04831727754 | AX43: =bivarpdf($E43,AX$23,$G$6) -> 0.04295189964 | AY43: =bivarpdf($E43,AY$23,$G$6) -> 0.03778665041 | AZ43: =bivarpdf($E43,AZ$23,$G$6) -> 0.03289807712 | BA43: =bivarpdf($E43,BA$23,$G$6) -> 0.02834514821 | BB43: =bivarpdf($E43,BB$23,$G$6) -> 0.02416924305 | BC43: =bivarpdf($E43,BC$23,$G$6) -> 0.02039498852 | BD43: =bivarpdf($E43,BD$23,$G$6) -> 0.01703177772 | BE43: =bivarpdf($E43,BE$23,$G$6) -> 0.01407578403 | BF43: =bivarpdf($E43,BF$23,$G$6) -> 0.01151227906 | BG43: =bivarpdf($E43,BG$23,$G$6) -> 0.009318073269 | BH43: =bivarpdf($E43,BH$23,$G$6) -> 0.007463920979 | BI43: =bivarpdf($E43,BI$23,$G$6) -> 0.005916761231 | BJ43: =bivarpdf($E43,BJ$23,$G$6) -> 0.004641700919 | BK43: =bivarpdf($E43,BK$23,$G$6) -> 0.003603681193 | BL43: =bivarpdf($E43,BL$23,$G$6) -> 0.002768800544 | BM43: =bivarpdf($E43,BM$23,$G$6) -> 0.002105295582 | BN43: =bivarpdf($E43,BN$23,$G$6) -> 0.001584202105
E44: 1 | F44: =bivarpdf($E44,F$23,$G$6) -> 0.0004756637302 | G44: =bivarpdf($E44,G$23,$G$6) -> 0.0006603936889 | H44: =bivarpdf($E44,H$23,$G$6) -> 0.0009073647224 | I44: =bivarpdf($E44,I$23,$G$6) -> 0.00123377784 | J44: =bivarpdf($E44,J$23,$G$6) -> 0.001660229551 | K44: =bivarpdf($E44,K$23,$G$6) -> 0.002210932141 | L44: =bivarpdf($E44,L$23,$G$6) -> 0.002913793605 | M44: =bivarpdf($E44,M$23,$G$6) -> 0.003800303289 | N44: =bivarpdf($E44,N$23,$G$6) -> 0.004905167346 | O44: =bivarpdf($E44,O$23,$G$6) -> 0.006265640868 | P44: =bivarpdf($E44,P$23,$G$6) -> 0.007920512208 | Q44: =bivarpdf($E44,Q$23,$G$6) -> 0.009908710411 | R44: =bivarpdf($E44,R$23,$G$6) -> 0.01226752929 | S44: =bivarpdf($E44,S$23,$G$6) -> 0.01503049108 | T44: =bivarpdf($E44,T$23,$G$6) -> 0.01822490763 | U44: =bivarpdf($E44,U$23,$G$6) -> 0.02186923548 | V44: =bivarpdf($E44,V$23,$G$6) -> 0.02597035971 | W44: =bivarpdf($E44,W$23,$G$6) -> 0.03052097676 | X44: =bivarpdf($E44,X$23,$G$6) -> 0.035497273 | Y44: =bivarpdf($E44,Y$23,$G$6) -> 0.04085711077 | Z44: =bivarpdf($E44,Z$23,$G$6) -> 0.04653893201 | AA44: =bivarpdf($E44,AA$23,$G$6) -> 0.05246156869 | AB44: =bivarpdf($E44,AB$23,$G$6) -> 0.05852510904 | AC44: =bivarpdf($E44,AC$23,$G$6) -> 0.06461290831 | AD44: =bivarpdf($E44,AD$23,$G$6) -> 0.07059475687 | AE44: =bivarpdf($E44,AE$23,$G$6) -> 0.07633113203 | AF44: =bivarpdf($E44,AF$23,$G$6) -> 0.08167836935 | AG44: =bivarpdf($E44,AG$23,$G$6) -> 0.08649450419 | AH44: =bivarpdf($E44,AH$23,$G$6) -> 0.09064546211 | AI44: =bivarpdf($E44,AI$23,$G$6) -> 0.09401122686 | AJ44: =bivarpdf($E44,AJ$23,$G$6) -> 0.09649159214 | AK44: =bivarpdf($E44,AK$23,$G$6) -> 0.09801111362 | AL44: =bivarpdf($E44,AL$23,$G$6) -> 0.09852291984 | AM44: =bivarpdf($E44,AM$23,$G$6) -> 0.09801111362 | AN44: =bivarpdf($E44,AN$23,$G$6) -> 0.09649159214 | AO44: =bivarpdf($E44,AO$23,$G$6) -> 0.09401122686 | AP44: =bivarpdf($E44,AP$23,$G$6) -> 0.09064546211 | AQ44: =bivarpdf($E44,AQ$23,$G$6) -> 0.08649450419 | AR44: =bivarpdf($E44,AR$23,$G$6) -> 0.08167836935 | AS44: =bivarpdf($E44,AS$23,$G$6) -> 0.07633113203 | AT44: =bivarpdf($E44,AT$23,$G$6) -> 0.07059475687 | AU44: =bivarpdf($E44,AU$23,$G$6) -> 0.06461290831 | AV44: =bivarpdf($E44,AV$23,$G$6) -> 0.05852510904 | AW44: =bivarpdf($E44,AW$23,$G$6) -> 0.05246156869 | AX44: =bivarpdf($E44,AX$23,$G$6) -> 0.04653893201 | AY44: =bivarpdf($E44,AY$23,$G$6) -> 0.04085711077 | AZ44: =bivarpdf($E44,AZ$23,$G$6) -> 0.035497273 | BA44: =bivarpdf($E44,BA$23,$G$6) -> 0.03052097676 | BB44: =bivarpdf($E44,BB$23,$G$6) -> 0.02597035971 | BC44: =bivarpdf($E44,BC$23,$G$6) -> 0.02186923548 | BD44: =bivarpdf($E44,BD$23,$G$6) -> 0.01822490763 | BE44: =bivarpdf($E44,BE$23,$G$6) -> 0.01503049108 | BF44: =bivarpdf($E44,BF$23,$G$6) -> 0.01226752929 | BG44: =bivarpdf($E44,BG$23,$G$6) -> 0.009908710411 | BH44: =bivarpdf($E44,BH$23,$G$6) -> 0.007920512208 | BI44: =bivarpdf($E44,BI$23,$G$6) -> 0.006265640868 | BJ44: =bivarpdf($E44,BJ$23,$G$6) -> 0.004905167346 | BK44: =bivarpdf($E44,BK$23,$G$6) -> 0.003800303289 | BL44: =bivarpdf($E44,BL$23,$G$6) -> 0.002913793605 | BM44: =bivarpdf($E44,BM$23,$G$6) -> 0.002210932141 | BN44: =bivarpdf($E44,BN$23,$G$6) -> 0.001660229551
E45: 0.9 | F45: =bivarpdf($E45,F$23,$G$6) -> 0.0005590111889 | G45: =bivarpdf($E45,G$23,$G$6) -> 0.0007744949624 | H45: =bivarpdf($E45,H$23,$G$6) -> 0.001061922428 | I45: =bivarpdf($E45,I$23,$G$6) -> 0.001440930679 | J45: =bivarpdf($E45,J$23,$G$6) -> 0.00193494882 | K45: =bivarpdf($E45,K$23,$G$6) -> 0.002571413831 | L45: =bivarpdf($E45,L$23,$G$6) -> 0.003381820621 | M45: =bivarpdf($E45,M$23,$G$6) -> 0.004401546148 | N45: =bivarpdf($E45,N$23,$G$6) -> 0.005669386305 | O45: =bivarpdf($E45,O$23,$G$6) -> 0.007226748487 | P45: =bivarpdf($E45,P$23,$G$6) -> 0.00911645367 | Q45: =bivarpdf($E45,Q$23,$G$6) -> 0.01138112039 | R45: =bivarpdf($E45,R$23,$G$6) -> 0.01406112939 | S45: =bivarpdf($E45,S$23,$G$6) -> 0.01719220144 | T45: =bivarpdf($E45,T$23,$G$6) -> 0.02080266028 | U45: =bivarpdf($E45,U$23,$G$6) -> 0.02491049523 | V45: =bivarpdf($E45,V$23,$G$6) -> 0.02952038012 | W45: =bivarpdf($E45,W$23,$G$6) -> 0.0346208422 | X45: =bivarpdf($E45,X$23,$G$6) -> 0.04018180213 | Y45: =bivarpdf($E45,Y$23,$G$6) -> 0.04615271903 | Z45: =bivarpdf($E45,Z$23,$G$6) -> 0.05246156869 | AA45: =bivarpdf($E45,AA$23,$G$6) -> 0.05901485606 | AB45: =bivarpdf($E45,AB$23,$G$6) -> 0.06569881419 | AC45: =bivarpdf($E45,AC$23,$G$6) -> 0.07238187165 | AD45: =bivarpdf($E45,AD$23,$G$6) -> 0.07891838442 | AE45: =bivarpdf($E45,AE$23,$G$6) -> 0.08515353119 | AF45: =bivarpdf($E45,AF$23,$G$6) -> 0.09092917225 | AG45: =bivarpdf($E45,AG$23,$G$6) -> 0.09609038028 | AH45: =bivarpdf($E45,AH$23,$G$6) -> 0.1004922768 | AI45: =bivarpdf($E45,AI$23,$G$6) -> 0.1040067579 | AJ45: =bivarpdf($E45,AJ$23,$G$6) -> 0.1065286763 | AK45: =bivarpdf($E45,AK$23,$G$6) -> 0.1079810638 | AL45: =bivarpdf($E45,AL$23,$G$6) -> 0.1083190324 | AM45: =bivarpdf($E45,AM$23,$G$6) -> 0.1075320787 | AN45: =bivarpdf($E45,AN$23,$G$6) -> 0.105644626 | AO45: =bivarpdf($E45,AO$23,$G$6) -> 0.1027147652 | AP45: =bivarpdf($E45,AP$23,$G$6) -> 0.09883128553 | AQ45: =bivarpdf($E45,AQ$23,$G$6) -> 0.09410920624 | AR45: =bivarpdf($E45,AR$23,$G$6) -> 0.08868412298 | AS45: =bivarpdf($E45,AS$23,$G$6) -> 0.08270575677 | AT45: =bivarpdf($E45,AT$23,$G$6) -> 0.07633113203 | AU45: =bivarpdf($E45,AU$23,$G$6) -> 0.06971781472 | AV45: =bivarpdf($E45,AV$23,$G$6) -> 0.06301760992 | AW45: =bivarpdf($E45,AW$23,$G$6) -> 0.05637105832 | AX45: =bivarpdf($E45,AX$23,$G$6) -> 0.04990298779 | AY45: =bivarpdf($E45,AY$23,$G$6) -> 0.04371928066 | AZ45: =bivarpdf($E45,AZ$23,$G$6) -> 0.03790491839 | BA45: =bivarpdf($E45,BA$23,$G$6) -> 0.03252327141 | BB45: =bivarpdf($E45,BB$23,$G$6) -> 0.02761652181 | BC45: =bivarpdf($E45,BC$23,$G$6) -> 0.02320704454 | BD45: =bivarpdf($E45,BD$23,$G$6) -> 0.01929953257 | BE45: =bivarpdf($E45,BE$23,$G$6) -> 0.01588363303 | BF45: =bivarpdf($E45,BF$23,$G$6) -> 0.01293686356 | BG45: =bivarpdf($E45,BG$23,$G$6) -> 0.01042759728 | BH45: =bivarpdf($E45,BH$23,$G$6) -> 0.008317936522 | BI45: =bivarpdf($E45,BI$23,$G$6) -> 0.006566335252 | BJ45: =bivarpdf($E45,BJ$23,$G$6) -> 0.005129872866 | BK45: =bivarpdf($E45,BK$23,$G$6) -> 0.003966123661 | BL45: =bivarpdf($E45,BL$23,$G$6) -> 0.003034603813 | BM45: =bivarpdf($E45,BM$23,$G$6) -> 0.002297808578 | BN45: =bivarpdf($E45,BN$23,$G$6) -> 0.001721875683
E46: 0.8 | F46: =bivarpdf($E46,F$23,$G$6) -> 0.0006501552337 | G46: =bivarpdf($E46,G$23,$G$6) -> 0.0008988979282 | H46: =bivarpdf($E46,H$23,$G$6) -> 0.001229928302 | I46: =bivarpdf($E46,I$23,$G$6) -> 0.001665425883 | J46: =bivarpdf($E46,J$23,$G$6) -> 0.002231757094 | K46: =bivarpdf($E46,K$23,$G$6) -> 0.002959679178 | L46: =bivarpdf($E46,L$23,$G$6) -> 0.003884350842 | M46: =bivarpdf($E46,M$23,$G$6) -> 0.005045083526 | N46: =bivarpdf($E46,N$23,$G$6) -> 0.006484766925 | O46: =bivarpdf($E46,O$23,$G$6) -> 0.0082489084 | P46: =bivarpdf($E46,P$23,$G$6) -> 0.01038423935 | Q46: =bivarpdf($E46,Q$23,$G$6) -> 0.01293686356 | R46: =bivarpdf($E46,R$23,$G$6) -> 0.0159499529 | S46: =bivarpdf($E46,S$23,$G$6) -> 0.019461034 | T46: =bivarpdf($E46,T$23,$G$6) -> 0.02349895322 | U46: =bivarpdf($E46,U$23,$G$6) -> 0.0280806542 | V46: =bivarpdf($E46,V$23,$G$6) -> 0.03320794684 | W46: =bivarpdf($E46,W$23,$G$6) -> 0.03886448597 | X46: =bivarpdf($E46,X$23,$G$6) -> 0.04501320434 | Y46: =bivarpdf($E46,Y$23,$G$6) -> 0.05159445522 | Z46: =bivarpdf($E46,Z$23,$G$6) -> 0.05852510904 | AA46: =bivarpdf($E46,AA$23,$G$6) -> 0.06569881419 | AB46: =bivarpdf($E46,AB$23,$G$6) -> 0.07298757417 | AC46: =bivarpdf($E46,AC$23,$G$6) -> 0.08024471286 | AD46: =bivarpdf($E46,AD$23,$G$6) -> 0.0873092031 | AE46: =bivarpdf($E46,AE$23,$G$6) -> 0.09401122686 | AF46: =bivarpdf($E46,AF$23,$G$6) -> 0.1001787286 | AG46: =bivarpdf($E46,AG$23,$G$6) -> 0.105644626 | AH46: =bivarpdf($E46,AH$23,$G$6) -> 0.1102542663 | AI46: =bivarpdf($E46,AI$23,$G$6) -> 0.113872668 | AJ46: =bivarpdf($E46,AJ$23,$G$6) -> 0.1163910773 | AK46: =bivarpdf($E46,AK$23,$G$6) -> 0.117732395 | AL46: =bivarpdf($E46,AL$23,$G$6) -> 0.1178550968 | AM46: =bivarpdf($E46,AM$23,$G$6) -> 0.1167553683 | AN46: =bivarpdf($E46,AN$23,$G$6) -> 0.114467302 | AO46: =bivarpdf($E46,AO$23,$G$6) -> 0.1110611418 | AP46: =bivarpdf($E46,AP$23,$G$6) -> 0.1066397015 | AQ46: =bivarpdf($E46,AQ$23,$G$6) -> 0.1013332114 | AR46: =bivarpdf($E46,AR$23,$G$6) -> 0.09529295433 | AS46: =bivarpdf($E46,AS$23,$G$6) -> 0.08868412298 | AT46: =bivarpdf($E46,AT$23,$G$6) -> 0.08167836935 | AU46: =bivarpdf($E46,AU$23,$G$6) -> 0.07444650967 | AV46: =bivarpdf($E46,AV$23,$G$6) -> 0.06715180995 | AW46: =bivarpdf($E46,AW$23,$G$6) -> 0.05994420482 | AX46: =bivarpdf($E46,AX$23,$G$6) -> 0.05295570855 | AY46: =bivarpdf($E46,AY$23,$G$6) -> 0.04629717187 | AZ46: =bivarpdf($E46,AZ$23,$G$6) -> 0.04005643 | BA46: =bivarpdf($E46,BA$23,$G$6) -> 0.03429778849 | BB46: =bivarpdf($E46,BB$23,$G$6) -> 0.02906270905 | BC46: =bivarpdf($E46,BC$23,$G$6) -> 0.02437149496 | BD46: =bivarpdf($E46,BD$23,$G$6) -> 0.02022573648 | BE46: =bivarpdf($E46,BE$23,$G$6) -> 0.01661126163 | BF46: =bivarpdf($E46,BF$23,$G$6) -> 0.01350134365 | BG46: =bivarpdf($E46,BG$23,$G$6) -> 0.01085994094 | BH46: =bivarpdf($E46,BH$23,$G$6) -> 0.00864478178 | BI46: =bivarpdf($E46,BI$23,$G$6) -> 0.006810150432 | BJ46: =bivarpdf($E46,BJ$23,$G$6) -> 0.005309278108 | BK46: =bivarpdf($E46,BK$23,$G$6) -> 0.004096286684 | BL46: =bivarpdf($E46,BL$23,$G$6) -> 0.003127672788 | BM46: =bivarpdf($E46,BM$23,$G$6) -> 0.002363351826 | BN46: =bivarpdf($E46,BN$23,$G$6) -> 0.001767305157
E47: 0.7 | F47: =bivarpdf($E47,F$23,$G$6) -> 0.000748324087 | G47: =bivarpdf($E47,G$23,$G$6) -> 0.001032471948 | H47: =bivarpdf($E47,H$23,$G$6) -> 0.001409752574 | I47: =bivarpdf($E47,I$23,$G$6) -> 0.001904950219 | J47: =bivarpdf($E47,J$23,$G$6) -> 0.002547419476 | K47: =bivarpdf($E47,K$23,$G$6) -> 0.003371268927 | L47: =bivarpdf($E47,L$23,$G$6) -> 0.004415322494 | M47: =bivarpdf($E47,M$23,$G$6) -> 0.005722786725 | N47: =bivarpdf($E47,N$23,$G$6) -> 0.007340553216 | O47: =bivarpdf($E47,O$23,$G$6) -> 0.009318073269 | P47: =bivarpdf($E47,P$23,$G$6) -> 0.01170575822 | Q47: =bivarpdf($E47,Q$23,$G$6) -> 0.01455288433 | R47: =bivarpdf($E47,R$23,$G$6) -> 0.01790501563 | S47: =bivarpdf($E47,S$23,$G$6) -> 0.02180100079 | T47: =bivarpdf($E47,T$23,$G$6) -> 0.02626964815 | U47: =bivarpdf($E47,U$23,$G$6) -> 0.03132623347 | V47: =bivarpdf($E47,V$23,$G$6) -> 0.03696904262 | W47: =bivarpdf($E47,W$23,$G$6) -> 0.04317619103 | X47: =bivarpdf($E47,X$23,$G$6) -> 0.04990298779 | Y47: =bivarpdf($E47,Y$23,$G$6) -> 0.05708011895 | Z47: =bivarpdf($E47,Z$23,$G$6) -> 0.06461290831 | AA47: =bivarpdf($E47,AA$23,$G$6) -> 0.07238187165 | AB47: =bivarpdf($E47,AB$23,$G$6) -> 0.08024471286 | AC47: =bivarpdf($E47,AC$23,$G$6) -> 0.0880398198 | AD47: =bivarpdf($E47,AD$23,$G$6) -> 0.0955912106 | AE47: =bivarpdf($E47,AE$23,$G$6) -> 0.1027147652 | AF47: =bivarpdf($E47,AF$23,$G$6) -> 0.1092254626 | AG47: =bivarpdf($E47,AG$23,$G$6) -> 0.1149452441 | AH47: =bivarpdf($E47,AH$23,$G$6) -> 0.1197110445 | AI47: =bivarpdf($E47,AI$23,$G$6) -> 0.1233824906 | AJ47: =bivarpdf($E47,AJ$23,$G$6) -> 0.125848761 | AK47: =bivarpdf($E47,AK$23,$G$6) -> 0.1270341409 | AL47: =bivarpdf($E47,AL$23,$G$6) -> 0.1269018826 | AM47: =bivarpdf($E47,AM$23,$G$6) -> 0.1254560975 | AN47: =bivarpdf($E47,AN$23,$G$6) -> 0.122741544 | AO47: =bivarpdf($E47,AO$23,$G$6) -> 0.1188413262 | AP47: =bivarpdf($E47,AP$23,$G$6) -> 0.113872668 | AQ47: =bivarpdf($E47,AQ$23,$G$6) -> 0.1079810638 | AR47: =bivarpdf($E47,AR$23,$G$6) -> 0.1013332114 | AS47: =bivarpdf($E47,AS$23,$G$6) -> 0.09410920624 | AT47: =bivarpdf($E47,AT$23,$G$6) -> 0.08649450419 | AU47: =bivarpdf($E47,AU$23,$G$6) -> 0.07867214941 | AV47: =bivarpdf($E47,AV$23,$G$6) -> 0.07081571055 | AW47: =bivarpdf($E47,AW$23,$G$6) -> 0.06308328746 | AX47: =bivarpdf($E47,AX$23,$G$6) -> 0.05561284556 | AY47: =bivarpdf($E47,AY$23,$G$6) -> 0.04851901954 | AZ47: =bivarpdf($E47,AZ$23,$G$6) -> 0.04189141346 | BA47: =bivarpdf($E47,BA$23,$G$6) -> 0.03579431958 | BB47: =bivarpdf($E47,BB$23,$G$6) -> 0.03026769211 | BC47: =bivarpdf($E47,BC$23,$G$6) -> 0.02532914924 | BD47: =bivarpdf($E47,BD$23,$G$6) -> 0.02097674011 | BE47: =bivarpdf($E47,BE$23,$G$6) -> 0.01719220144 | BF47: =bivarpdf($E47,BF$23,$G$6) -> 0.0139444402 | BG47: =bivarpdf($E47,BG$23,$G$6) -> 0.01119300702 | BH47: =bivarpdf($E47,BH$23,$G$6) -> 0.008891367627 | BI47: =bivarpdf($E47,BI$23,$G$6) -> 0.006989827491 | BJ47: =bivarpdf($E47,BJ$23,$G$6) -> 0.005438015572 | BK47: =bivarpdf($E47,BK$23,$G$6) -> 0.004186880209 | BL47: =bivarpdf($E47,BL$23,$G$6) -> 0.003190191277 | BM47: =bivarpdf($E47,BM$23,$G$6) -> 0.0024055756 | BN47: =bivarpdf($E47,BN$23,$G$6) -> 0.001795136164
E48: 0.6 | F48: =bivarpdf($E48,F$23,$G$6) -> 0.000852390273 | G48: =bivarpdf($E48,G$23,$G$6) -> 0.001173605784 | H48: =bivarpdf($E48,H$23,$G$6) -> 0.001599123836 | I48: =bivarpdf($E48,I$23,$G$6) -> 0.002156344032 | J48: =bivarpdf($E48,J$23,$G$6) -> 0.002877597879 | K48: =bivarpdf($E48,K$23,$G$6) -> 0.003800303289 | L48: =bivarpdf($E48,L$23,$G$6) -> 0.004966866756 | M48: =bivarpdf($E48,M$23,$G$6) -> 0.006424256322 | N48: =bivarpdf($E48,N$23,$G$6) -> 0.008223170798 | O48: =bivarpdf($E48,O$23,$G$6) -> 0.01041674086 | P48: =bivarpdf($E48,P$23,$G$6) -> 0.01305871695 | Q48: =bivarpdf($E48,Q$23,$G$6) -> 0.01620112811 | R48: =bivarpdf($E48,R$23,$G$6) -> 0.01989143446 | S48: =bivarpdf($E48,S$23,$G$6) -> 0.02416924305 | T48: =bivarpdf($E48,T$23,$G$6) -> 0.02906270905 | U48: =bivarpdf($E48,U$23,$G$6) -> 0.0345847976 | V48: =bivarpdf($E48,V$23,$G$6) -> 0.04072963159 | W48: =bivarpdf($E48,W$23,$G$6) -> 0.04746919036 | X48: =bivarpdf($E48,X$23,$G$6) -> 0.05475064831 | Y48: =bivarpdf($E48,Y$23,$G$6) -> 0.06249464521 | Z48: =bivarpdf($E48,Z$23,$G$6) -> 0.07059475687 | AA48: =bivarpdf($E48,AA$23,$G$6) -> 0.07891838442 | AB48: =bivarpdf($E48,AB$23,$G$6) -> 0.0873092031 | AC48: =bivarpdf($E48,AC$23,$G$6) -> 0.0955912106 | AD48: =bivarpdf($E48,AD$23,$G$6) -> 0.103574298 | AE48: =bivarpdf($E48,AE$23,$G$6) -> 0.1110611418 | AF48: =bivarpdf($E48,AF$23,$G$6) -> 0.1178550968 | AG48: =bivarpdf($E48,AG$23,$G$6) -> 0.1237686639 | AH48: =bivarpdf($E48,AH$23,$G$6) -> 0.1286320337 | AI48: =bivarpdf($E48,AI$23,$G$6) -> 0.132301165 | AJ48: =bivarpdf($E48,AJ$23,$G$6) -> 0.1346648649 | AK48: =bivarpdf($E48,AK$23,$G$6) -> 0.1356503849 | AL48: =bivarpdf($E48,AL$23,$G$6) -> 0.1352271391 | AM48: =bivarpdf($E48,AM$23,$G$6) -> 0.1334082812 | AN48: =bivarpdf($E48,AN$23,$G$6) -> 0.1302500255 | AO48: =bivarpdf($E48,AO$23,$G$6) -> 0.125848761 | AP48: =bivarpdf($E48,AP$23,$G$6) -> 0.120336166 | AQ48: =bivarpdf($E48,AQ$23,$G$6) -> 0.113872668 | AR48: =bivarpdf($E48,AR$23,$G$6) -> 0.1066397015 | AS48: =bivarpdf($E48,AS$23,$G$6) -> 0.09883128553 | AT48: =bivarpdf($E48,AT$23,$G$6) -> 0.09064546211 | AU48: =bivarpdf($E48,AU$23,$G$6) -> 0.08227611744 | AV48: =bivarpdf($E48,AV$23,$G$6) -> 0.07390564484 | AW48: =bivarpdf($E48,AW$23,$G$6) -> 0.06569881419 | AX48: =bivarpdf($E48,AX$23,$G$6) -> 0.05779809846 | AY48: =bivarpdf($E48,AY$23,$G$6) -> 0.05032058359 | AZ48: =bivarpdf($E48,AZ$23,$G$6) -> 0.04335646714 | BA48: =bivarpdf($E48,BA$23,$G$6) -> 0.03696904262 | BB48: =bivarpdf($E48,BB$23,$G$6) -> 0.03119597905 | BC48: =bivarpdf($E48,BC$23,$G$6) -> 0.02605164402 | BD48: =bivarpdf($E48,BD$23,$G$6) -> 0.02153018441 | BE48: =bivarpdf($E48,BE$23,$G$6) -> 0.01760907175 | BF48: =bivarpdf($E48,BF$23,$G$6) -> 0.0142528356 | BG48: =bivarpdf($E48,BG$23,$G$6) -> 0.01141674202 | BH48: =bivarpdf($E48,BH$23,$G$6) -> 0.009050221294 | BI48: =bivarpdf($E48,BI$23,$G$6) -> 0.007099901257 | BJ48: =bivarpdf($E48,BJ$23,$G$6) -> 0.005512156228 | BK48: =bivarpdf($E48,BK$23,$G$6) -> 0.004235130786 | BL48: =bivarpdf($E48,BL$23,$G$6) -> 0.003220239953 | BM48: =bivarpdf($E48,BM$23,$G$6) -> 0.002423180362 | BN48: =bivarpdf($E48,BN$23,$G$6) -> 0.001804510222
E49: 0.5 | F49: =bivarpdf($E49,F$23,$G$6) -> 0.0009608671476 | G49: =bivarpdf($E49,G$23,$G$6) -> 0.001320207881 | H49: =bivarpdf($E49,H$23,$G$6) -> 0.001795136164 | I49: =bivarpdf($E49,I$23,$G$6) -> 0.002415619743 | J49: =bivarpdf($E49,J$23,$G$6) -> 0.003216887283 | K49: =bivarpdf($E49,K$23,$G$6) -> 0.004239544679 | L49: =bivarpdf($E49,L$23,$G$6) -> 0.005529408659 | M49: =bivarpdf($E49,M$23,$G$6) -> 0.007136976375 | N49: =bivarpdf($E49,N$23,$G$6) -> 0.00911645367 | O49: =bivarpdf($E49,O$23,$G$6) -> 0.01152427726 | P49: =bivarpdf($E49,P$23,$G$6) -> 0.01441708858 | Q49: =bivarpdf($E49,Q$23,$G$6) -> 0.01784914979 | R49: =bivarpdf($E49,R$23,$G$6) -> 0.02186923548 | S49: =bivarpdf($E49,S$23,$G$6) -> 0.02651708414 | T49: =bivarpdf($E49,T$23,$G$6) -> 0.03181954986 | U49: =bivarpdf($E49,U$23,$G$6) -> 0.03778665041 | V49: =bivarpdf($E49,V$23,$G$6) -> 0.04440775915 | W49: =bivarpdf($E49,W$23,$G$6) -> 0.05164822745 | X49: =bivarpdf($E49,X$23,$G$6) -> 0.0594467454 | Y49: =bivarpdf($E49,Y$23,$G$6) -> 0.06771374652 | Z49: =bivarpdf($E49,Z$23,$G$6) -> 0.07633113203 | AA49: =bivarpdf($E49,AA$23,$G$6) -> 0.08515353119 | AB49: =bivarpdf($E49,AB$23,$G$6) -> 0.09401122686 | AC49: =bivarpdf($E49,AC$23,$G$6) -> 0.1027147652 | AD49: =bivarpdf($E49,AD$23,$G$6) -> 0.1110611418 | AE49: =bivarpdf($E49,AE$23,$G$6) -> 0.1188413262 | AF49: =bivarpdf($E49,AF$23,$G$6) -> 0.125848761 | AG49: =bivarpdf($E49,AG$23,$G$6) -> 0.1318883691 | AH49: =bivarpdf($E49,AH$23,$G$6) -> 0.136785528 | AI49: =bivarpdf($E49,AI$23,$G$6) -> 0.1403944382 | AJ49: =bivarpdf($E49,AJ$23,$G$6) -> 0.1426053289 | AK49: =bivarpdf($E49,AK$23,$G$6) -> 0.1433500025 | AL49: =bivarpdf($E49,AL$23,$G$6) -> 0.1426053289 | AM49: =bivarpdf($E49,AM$23,$G$6) -> 0.1403944382 | AN49: =bivarpdf($E49,AN$23,$G$6) -> 0.136785528 | AO49: =bivarpdf($E49,AO$23,$G$6) -> 0.1318883691 | AP49: =bivarpdf($E49,AP$23,$G$6) -> 0.125848761 | AQ49: =bivarpdf($E49,AQ$23,$G$6) -> 0.1188413262 | AR49: =bivarpdf($E49,AR$23,$G$6) -> 0.1110611418 | AS49: =bivarpdf($E49,AS$23,$G$6) -> 0.1027147652 | AT49: =bivarpdf($E49,AT$23,$G$6) -> 0.09401122686 | AU49: =bivarpdf($E49,AU$23,$G$6) -> 0.08515353119 | AV49: =bivarpdf($E49,AV$23,$G$6) -> 0.07633113203 | AW49: =bivarpdf($E49,AW$23,$G$6) -> 0.06771374652 | AX49: =bivarpdf($E49,AX$23,$G$6) -> 0.0594467454 | AY49: =bivarpdf($E49,AY$23,$G$6) -> 0.05164822745 | AZ49: =bivarpdf($E49,AZ$23,$G$6) -> 0.04440775915 | BA49: =bivarpdf($E49,BA$23,$G$6) -> 0.03778665041 | BB49: =bivarpdf($E49,BB$23,$G$6) -> 0.03181954986 | BC49: =bivarpdf($E49,BC$23,$G$6) -> 0.02651708414 | BD49: =bivarpdf($E49,BD$23,$G$6) -> 0.02186923548 | BE49: =bivarpdf($E49,BE$23,$G$6) -> 0.01784914979 | BF49: =bivarpdf($E49,BF$23,$G$6) -> 0.01441708858 | BG49: =bivarpdf($E49,BG$23,$G$6) -> 0.01152427726 | BH49: =bivarpdf($E49,BH$23,$G$6) -> 0.00911645367 | BI49: =bivarpdf($E49,BI$23,$G$6) -> 0.007136976375 | BJ49: =bivarpdf($E49,BJ$23,$G$6) -> 0.005529408659 | BK49: =bivarpdf($E49,BK$23,$G$6) -> 0.004239544679 | BL49: =bivarpdf($E49,BL$23,$G$6) -> 0.003216887283 | BM49: =bivarpdf($E49,BM$23,$G$6) -> 0.002415619743 | BN49: =bivarpdf($E49,BN$23,$G$6) -> 0.001795136164
E50: 0.4 | F50: =bivarpdf($E50,F$23,$G$6) -> 0.001071924763 | G50: =bivarpdf($E50,G$23,$G$6) -> 0.001469733184 | H50: =bivarpdf($E50,H$23,$G$6) -> 0.001994292219 | I50: =bivarpdf($E50,I$23,$G$6) -> 0.002678028465 | J50: =bivarpdf($E50,J$23,$G$6) -> 0.003558915546 | K50: =bivarpdf($E50,K$23,$G$6) -> 0.004680543379 | L50: =bivarpdf($E50,L$23,$G$6) -> 0.006091874759 | M50: =bivarpdf($E50,M$23,$G$6) -> 0.007846604391 | N50: =bivarpdf($E50,N$23,$G$6) -> 0.01000204138 | O50: =bivarpdf($E50,O$23,$G$6) -> 0.01261745126 | P50: =bivarpdf($E50,P$23,$G$6) -> 0.01575181941 | Q50: =bivarpdf($E50,Q$23,$G$6) -> 0.019461034 | R50: =bivarpdf($E50,R$23,$G$6) -> 0.02379453367 | S50: =bivarpdf($E50,S$23,$G$6) -> 0.02879151934 | T50: =bivarpdf($E50,T$23,$G$6) -> 0.0344768888 | U50: =bivarpdf($E50,U$23,$G$6) -> 0.04085711077 | V50: =bivarpdf($E50,V$23,$G$6) -> 0.0479163066 | W50: =bivarpdf($E50,W$23,$G$6) -> 0.05561284556 | X50: =bivarpdf($E50,X$23,$G$6) -> 0.06387677754 | Y50: =bivarpdf($E50,Y$23,$G$6) -> 0.0726084188 | Z50: =bivarpdf($E50,Z$23,$G$6) -> 0.08167836935 | AA50: =bivarpdf($E50,AA$23,$G$6) -> 0.09092917225 | AB50: =bivarpdf($E50,AB$23,$G$6) -> 0.1001787286 | AC50: =bivarpdf($E50,AC$23,$G$6) -> 0.1092254626 | AD50: =bivarpdf($E50,AD$23,$G$6) -> 0.1178550968 | AE50: =bivarpdf($E50,AE$23,$G$6) -> 0.125848761 | AF50: =bivarpdf($E50,AF$23,$G$6) -> 0.1329920311 | AG50: =bivarpdf($E50,AG$23,$G$6) -> 0.1390843907 | AH50: =bivarpdf($E50,AH$23,$G$6) -> 0.1439485403 | AI50: =bivarpdf($E50,AI$23,$G$6) -> 0.1474389527 | AJ50: =bivarpdf($E50,AJ$23,$G$6) -> 0.1494491015 | AK50: =bivarpdf($E50,AK$23,$G$6) -> 0.1499168604 | AL50: =bivarpdf($E50,AL$23,$G$6) -> 0.1488276924 | AM50: =bivarpdf($E50,AM$23,$G$6) -> 0.1462153999 | AN50: =bivarpdf($E50,AN$23,$G$6) -> 0.1421603828 | AO50: =bivarpdf($E50,AO$23,$G$6) -> 0.136785528 | AP50: =bivarpdf($E50,AP$23,$G$6) -> 0.1302500255 | AQ50: =bivarpdf($E50,AQ$23,$G$6) -> 0.122741544 | AR50: =bivarpdf($E50,AR$23,$G$6) -> 0.114467302 | AS50: =bivarpdf($E50,AS$23,$G$6) -> 0.105644626 | AT50: =bivarpdf($E50,AT$23,$G$6) -> 0.09649159214 | AU50: =bivarpdf($E50,AU$23,$G$6) -> 0.08721830336 | AV50: =bivarpdf($E50,AV$23,$G$6) -> 0.07801927227 | AW50: =bivarpdf($E50,AW$23,$G$6) -> 0.06906726443 | AX50: =bivarpdf($E50,AX$23,$G$6) -> 0.06050882425 | AY50: =bivarpdf($E50,AY$23,$G$6) -> 0.05246156869 | AZ50: =bivarpdf($E50,AZ$23,$G$6) -> 0.04501320434 | BA50: =bivarpdf($E50,BA$23,$G$6) -> 0.03822211252 | BB50: =bivarpdf($E50,BB$23,$G$6) -> 0.03211926084 | BC50: =bivarpdf($E50,BC$23,$G$6) -> 0.02671114453 | BD50: =bivarpdf($E50,BD$23,$G$6) -> 0.02198343488 | BE50: =bivarpdf($E50,BE$23,$G$6) -> 0.01790501563 | BF50: =bivarpdf($E50,BF$23,$G$6) -> 0.0144321142 | BG50: =bivarpdf($E50,BG$23,$G$6) -> 0.01151227906 | BH50: =bivarpdf($E50,BH$23,$G$6) -> 0.00908800922 | BI50: =bivarpdf($E50,BI$23,$G$6) -> 0.007099901257 | BJ50: =bivarpdf($E50,BJ$23,$G$6) -> 0.005489236692 | BK50: =bivarpdf($E50,BK$23,$G$6) -> 0.004199984675 | BL50: =bivarpdf($E50,BL$23,$G$6) -> 0.00318023749 | BM50: =bivarpdf($E50,BM$23,$G$6) -> 0.002383128713 | BN50: =bivarpdf($E50,BN$23,$G$6) -> 0.001767305157
E51: 0.3 | F51: =bivarpdf($E51,F$23,$G$6) -> 0.001183426696 | G51: =bivarpdf($E51,G$23,$G$6) -> 0.001619238337 | H51: =bivarpdf($E51,H$23,$G$6) -> 0.002192584262 | I51: =bivarpdf($E51,I$23,$G$6) -> 0.002938176673 | J51: =bivarpdf($E51,J$23,$G$6) -> 0.003896508425 | K51: =bivarpdf($E51,K$23,$G$6) -> 0.005113867036 | L51: =bivarpdf($E51,L$23,$G$6) -> 0.006642007219 | M51: =bivarpdf($E51,M$23,$G$6) -> 0.008537394576 | N51: =bivarpdf($E51,N$23,$G$6) -> 0.01085994094 | O51: =bivarpdf($E51,O$23,$G$6) -> 0.01367116964 | P51: =bivarpdf($E51,P$23,$G$6) -> 0.01703177772 | Q51: =bivarpdf($E51,Q$23,$G$6) -> 0.02099860226 | R51: =bivarpdf($E51,R$23,$G$6) -> 0.02562104822 | S51: =bivarpdf($E51,S$23,$G$6) -> 0.03093709275 | T51: =bivarpdf($E51,T$23,$G$6) -> 0.03696904262 | U51: =bivarpdf($E51,U$23,$G$6) -> 0.04371928066 | V51: =bivarpdf($E51,V$23,$G$6) -> 0.05116628794 | W51: =bivarpdf($E51,W$23,$G$6) -> 0.05926126429 | X51: =bivarpdf($E51,X$23,$G$6) -> 0.06792568296 | Y51: =bivarpdf($E51,Y$23,$G$6) -> 0.0770501013 | Z51: =bivarpdf($E51,Z$23,$G$6) -> 0.08649450419 | AA51: =bivarpdf($E51,AA$23,$G$6) -> 0.09609038028 | AB51: =bivarpdf($E51,AB$23,$G$6) -> 0.105644626 | AC51: =bivarpdf($E51,AC$23,$G$6) -> 0.1149452441 | AD51: =bivarpdf($E51,AD$23,$G$6) -> 0.1237686639 | AE51: =bivarpdf($E51,AE$23,$G$6) -> 0.1318883691 | AF51: =bivarpdf($E51,AF$23,$G$6) -> 0.1390843907 | AG51: =bivarpdf($E51,AG$23,$G$6) -> 0.1451531236 | AH51: =bivarpdf($E51,AH$23,$G$6) -> 0.1499168604 | AI51: =bivarpdf($E51,AI$23,$G$6) -> 0.1532324235 | AJ51: =bivarpdf($E51,AJ$23,$G$6) -> 0.1549983094 | AK51: =bivarpdf($E51,AK$23,$G$6) -> 0.1551598501 | AL51: =bivarpdf($E51,AL$23,$G$6) -> 0.1537120238 | AM51: =bivarpdf($E51,AM$23,$G$6) -> 0.1506997143 | AN51: =bivarpdf($E51,AN$23,$G$6) -> 0.1462153999 | AO51: =bivarpdf($E51,AO$23,$G$6) -> 0.1403944382 | AP51: =bivarpdf($E51,AP$23,$G$6) -> 0.1334082812 | AQ51: =bivarpdf($E51,AQ$23,$G$6) -> 0.1254560975 | AR51: =bivarpdf($E51,AR$23,$G$6) -> 0.1167553683 | AS51: =bivarpdf($E51,AS$23,$G$6) -> 0.1075320787 | AT51: =bivarpdf($E51,AT$23,$G$6) -> 0.09801111362 | AU51: =bivarpdf($E51,AU$23,$G$6) -> 0.08840741768 | AV51: =bivarpdf($E51,AV$23,$G$6) -> 0.07891838442 | AW51: =bivarpdf($E51,AW$23,$G$6) -> 0.06971781472 | AX51: =bivarpdf($E51,AX$23,$G$6) -> 0.06095164693 | AY51: =bivarpdf($E51,AY$23,$G$6) -> 0.05273551881 | AZ51: =bivarpdf($E51,AZ$23,$G$6) -> 0.04515409062 | BA51: =bivarpdf($E51,BA$23,$G$6) -> 0.03826194796 | BB51: =bivarpdf($E51,BB$23,$G$6) -> 0.0320858207 | BC51: =bivarpdf($E51,BC$23,$G$6) -> 0.02662780249 | BD51: =bivarpdf($E51,BD$23,$G$6) -> 0.02186923548 | BE51: =bivarpdf($E51,BE$23,$G$6) -> 0.01777493306 | BF51: =bivarpdf($E51,BF$23,$G$6) -> 0.01429744538 | BG51: =bivarpdf($E51,BG$23,$G$6) -> 0.01138112039 | BH51: =bivarpdf($E51,BH$23,$G$6) -> 0.008965771945 | BI51: =bivarpdf($E51,BI$23,$G$6) -> 0.006989827491 | BJ51: =bivarpdf($E51,BJ$23,$G$6) -> 0.005392887073 | BK51: =bivarpdf($E51,BK$23,$G$6) -> 0.004117677167 | BL51: =bivarpdf($E51,BL$23,$G$6) -> 0.003111425174 | BM51: =bivarpdf($E51,BM$23,$G$6) -> 0.002326711452 | BN51: =bivarpdf($E51,BN$23,$G$6) -> 0.001721875683
E52: 0.2 | F52: =bivarpdf($E52,F$23,$G$6) -> 0.001292988074 | G52: =bivarpdf($E52,G$23,$G$6) -> 0.001765465173 | H52: =bivarpdf($E52,H$23,$G$6) -> 0.002385612433 | I52: =bivarpdf($E52,I$23,$G$6) -> 0.003190191277 | J52: =bivarpdf($E52,J$23,$G$6) -> 0.00422191666 | K52: =bivarpdf($E52,K$23,$G$6) -> 0.005529408659 | L52: =bivarpdf($E52,L$23,$G$6) -> 0.007166775816 | M52: =bivarpdf($E52,M$23,$G$6) -> 0.009192741542 | N52: =bivarpdf($E52,N$23,$G$6) -> 0.01166923483 | O52: =bivarpdf($E52,O$23,$G$6) -> 0.01465938693 | P52: =bivarpdf($E52,P$23,$G$6) -> 0.01822490763 | Q52: =bivarpdf($E52,Q$23,$G$6) -> 0.02242285781 | R52: =bivarpdf($E52,R$23,$G$6) -> 0.02730188852 | S52: =bivarpdf($E52,S$23,$G$6) -> 0.03289807712 | T52: =bivarpdf($E52,T$23,$G$6) -> 0.03923055379 | U52: =bivarpdf($E52,U$23,$G$6) -> 0.04629717187 | V52: =bivarpdf($E52,V$23,$G$6) -> 0.05407052483 | W52: =bivarpdf($E52,W$23,$G$6) -> 0.06249464521 | X52: =bivarpdf($E52,X$23,$G$6) -> 0.0714827296 | Y52: =bivarpdf($E52,Y$23,$G$6) -> 0.08091621283 | Z52: =bivarpdf($E52,Z$23,$G$6) -> 0.09064546211 | AA52: =bivarpdf($E52,AA$23,$G$6) -> 0.1004922768 | AB52: =bivarpdf($E52,AB$23,$G$6) -> 0.1102542663 | AC52: =bivarpdf($E52,AC$23,$G$6) -> 0.1197110445 | AD52: =bivarpdf($E52,AD$23,$G$6) -> 0.1286320337 | AE52: =bivarpdf($E52,AE$23,$G$6) -> 0.136785528 | AF52: =bivarpdf($E52,AF$23,$G$6) -> 0.1439485403 | AG52: =bivarpdf($E52,AG$23,$G$6) -> 0.1499168604 | AH52: =bivarpdf($E52,AH$23,$G$6) -> 0.1545146957 | AI52: =bivarpdf($E52,AI$23,$G$6) -> 0.1576032622 | AJ52: =bivarpdf($E52,AJ$23,$G$6) -> 0.1590877404 | AK52: =bivarpdf($E52,AK$23,$G$6) -> 0.1589221103 | AL52: =bivarpdf($E52,AL$23,$G$6) -> 0.1571115208 | AM52: =bivarpdf($E52,AM$23,$G$6) -> 0.1537120238 | AN52: =bivarpdf($E52,AN$23,$G$6) -> 0.1488276924 | AO52: =bivarpdf($E52,AO$23,$G$6) -> 0.1426053289 | AP52: =bivarpdf($E52,AP$23,$G$6) -> 0.1352271391 | AQ52: =bivarpdf($E52,AQ$23,$G$6) -> 0.1269018826 | AR52: =bivarpdf($E52,AR$23,$G$6) -> 0.1178550968 | AS52: =bivarpdf($E52,AS$23,$G$6) -> 0.1083190324 | AT52: =bivarpdf($E52,AT$23,$G$6) -> 0.09852291984 | AU52: =bivarpdf($E52,AU$23,$G$6) -> 0.08868412298 | AV52: =bivarpdf($E52,AV$23,$G$6) -> 0.0790006339 | AW52: =bivarpdf($E52,AW$23,$G$6) -> 0.06964522981 | AX52: =bivarpdf($E52,AX$23,$G$6) -> 0.06076147034 | AY52: =bivarpdf($E52,AY$23,$G$6) -> 0.05246156869 | AZ52: =bivarpdf($E52,AZ$23,$G$6) -> 0.04482603952 | BA52: =bivarpdf($E52,BA$23,$G$6) -> 0.03790491839 | BB52: =bivarpdf($E52,BB$23,$G$6) -> 0.03172026898 | BC52: =bivarpdf($E52,BC$23,$G$6) -> 0.02626964815 | BD52: =bivarpdf($E52,BD$23,$G$6) -> 0.02153018441 | BE52: =bivarpdf($E52,BE$23,$G$6) -> 0.01746293922 | BF52: =bivarpdf($E52,BF$23,$G$6) -> 0.01401725695 | BG52: =bivarpdf($E52,BG$23,$G$6) -> 0.01113486166 | BH52: =bivarpdf($E52,BH$23,$G$6) -> 0.008753519749 | BI52: =bivarpdf($E52,BI$23,$G$6) -> 0.006810150432 | BJ52: =bivarpdf($E52,BJ$23,$G$6) -> 0.005243325196 | BK52: =bivarpdf($E52,BK$23,$G$6) -> 0.003995149005 | BL52: =bivarpdf($E52,BL$23,$G$6) -> 0.00301255697 | BM52: =bivarpdf($E52,BM$23,$G$6) -> 0.002248089797 | BN52: =bivarpdf($E52,BN$23,$G$6) -> 0.001660229551
E53: 0.1 | F53: =bivarpdf($E53,F$23,$G$6) -> 0.00139805345 | G53: =bivarpdf($E53,G$23,$G$6) -> 0.001904950219 | H53: =bivarpdf($E53,H$23,$G$6) -> 0.00256873667 | I53: =bivarpdf($E53,I$23,$G$6) -> 0.003427927587 | J53: =bivarpdf($E53,J$23,$G$6) -> 0.004527096915 | K53: =bivarpdf($E53,K$23,$G$6) -> 0.005916761231 | L53: =bivarpdf($E53,L$23,$G$6) -> 0.007652871038 | M53: =bivarpdf($E53,M$23,$G$6) -> 0.009795821101 | N53: =bivarpdf($E53,N$23,$G$6) -> 0.01240890314 | O53: =bivarpdf($E53,O$23,$G$6) -> 0.01555614716 | P53: =bivarpdf($E53,P$23,$G$6) -> 0.01929953257 | Q53: =bivarpdf($E53,Q$23,$G$6) -> 0.02369559604 | R53: =bivarpdf($E53,R$23,$G$6) -> 0.02879151934 | S53: =bivarpdf($E53,S$23,$G$6) -> 0.0346208422 | T53: =bivarpdf($E53,T$23,$G$6) -> 0.0411990093 | U53: =bivarpdf($E53,U$23,$G$6) -> 0.04851901954 | V53: =bivarpdf($E53,V$23,$G$6) -> 0.05654749342 | W53: =bivarpdf($E53,W$23,$G$6) -> 0.06522150265 | X53: =bivarpdf($E53,X$23,$G$6) -> 0.07444650967 | Y53: =bivarpdf($E53,Y$23,$G$6) -> 0.08409573704 | Z53: =bivarpdf($E53,Z$23,$G$6) -> 0.09401122686 | AA53: =bivarpdf($E53,AA$23,$G$6) -> 0.1040067579 | AB53: =bivarpdf($E53,AB$23,$G$6) -> 0.113872668 | AC53: =bivarpdf($E53,AC$23,$G$6) -> 0.1233824906 | AD53: =bivarpdf($E53,AD$23,$G$6) -> 0.132301165 | AE53: =bivarpdf($E53,AE$23,$G$6) -> 0.1403944382 | AF53: =bivarpdf($E53,AF$23,$G$6) -> 0.1474389527 | AG53: =bivarpdf($E53,AG$23,$G$6) -> 0.1532324235 | AH53: =bivarpdf($E53,AH$23,$G$6) -> 0.1576032622 | AI53: =bivarpdf($E53,AI$23,$G$6) -> 0.1604190108 | AJ53: =bivarpdf($E53,AJ$23,$G$6) -> 0.1615930078 | AK53: =bivarpdf($E53,AK$23,$G$6) -> 0.1610888178 | AL53: =bivarpdf($E53,AL$23,$G$6) -> 0.1589221103 | AM53: =bivarpdf($E53,AM$23,$G$6) -> 0.1551598501 | AN53: =bivarpdf($E53,AN$23,$G$6) -> 0.1499168604 | AO53: =bivarpdf($E53,AO$23,$G$6) -> 0.1433500025 | AP53: =bivarpdf($E53,AP$23,$G$6) -> 0.1356503849 | AQ53: =bivarpdf($E53,AQ$23,$G$6) -> 0.1270341409 | AR53: =bivarpdf($E53,AR$23,$G$6) -> 0.117732395 | AS53: =bivarpdf($E53,AS$23,$G$6) -> 0.1079810638 | AT53: =bivarpdf($E53,AT$23,$G$6) -> 0.09801111362 | AU53: =bivarpdf($E53,AU$23,$G$6) -> 0.0880398198 | AV53: =bivarpdf($E53,AV$23,$G$6) -> 0.07826346384 | AW53: =bivarpdf($E53,AW$23,$G$6) -> 0.06885176612 | AX53: =bivarpdf($E53,AX$23,$G$6) -> 0.05994420482 | AY53: =bivarpdf($E53,AY$23,$G$6) -> 0.05164822745 | AZ53: =bivarpdf($E53,AZ$23,$G$6) -> 0.04403923215 | BA53: =bivarpdf($E53,BA$23,$G$6) -> 0.03716209201 | BB53: =bivarpdf($E53,BB$23,$G$6) -> 0.03103392238 | BC53: =bivarpdf($E53,BC$23,$G$6) -> 0.02564775072 | BD53: =bivarpdf($E53,BD$23,$G$6) -> 0.02097674011 | BE53: =bivarpdf($E53,BE$23,$G$6) -> 0.01697863649 | BF53: =bivarpdf($E53,BF$23,$G$6) -> 0.01360015074 | BG53: =bivarpdf($E53,BG$23,$G$6) -> 0.01078104188 | BH53: =bivarpdf($E53,BH$23,$G$6) -> 0.008457730511 | BI53: =bivarpdf($E53,BI$23,$G$6) -> 0.006566335252 | BJ53: =bivarpdf($E53,BJ$23,$G$6) -> 0.005045083526 | BK53: =bivarpdf($E53,BK$23,$G$6) -> 0.003836098661 | BL53: =bivarpdf($E53,BL$23,$G$6) -> 0.002886604438 | BM53: =bivarpdf($E53,BM$23,$G$6) -> 0.002149615975 | BN53: =bivarpdf($E53,BN$23,$G$6) -> 0.001584202105
E54: 0 | F54: =bivarpdf($E54,F$23,$G$6) -> 0.001495991518 | G54: =bivarpdf($E54,G$23,$G$6) -> 0.002034155767 | H54: =bivarpdf($E54,H$23,$G$6) -> 0.002737255775 | I54: =bivarpdf($E54,I$23,$G$6) -> 0.003645210849 | J54: =bivarpdf($E54,J$23,$G$6) -> 0.004804033495 | K54: =bivarpdf($E54,K$23,$G$6) -> 0.006265640868 | L54: =bivarpdf($E54,L$23,$G$6) -> 0.008087253739 | M54: =bivarpdf($E54,M$23,$G$6) -> 0.01033029537 | N54: =bivarpdf($E54,N$23,$G$6) -> 0.01305871695 | O54: =bivarpdf($E54,O$23,$G$6) -> 0.01633670162 | P54: =bivarpdf($E54,P$23,$G$6) -> 0.02022573648 | Q54: =bivarpdf($E54,Q$23,$G$6) -> 0.02478109035 | R54: =bivarpdf($E54,R$23,$G$6) -> 0.03004779287 | S54: =bivarpdf($E54,S$23,$G$6) -> 0.03605627371 | T54: =bivarpdf($E54,T$23,$G$6) -> 0.04281788446 | U54: =bivarpdf($E54,U$23,$G$6) -> 0.05032058359 | V54: =bivarpdf($E54,V$23,$G$6) -> 0.05852510904 | W54: =bivarpdf($E54,W$23,$G$6) -> 0.06736198759 | X54: =bivarpdf($E54,X$23,$G$6) -> 0.07672972712 | Y54: =bivarpdf($E54,Y$23,$G$6) -> 0.08649450419 | Z54: =bivarpdf($E54,Z$23,$G$6) -> 0.09649159214 | AA54: =bivarpdf($E54,AA$23,$G$6) -> 0.1065286763 | AB54: =bivarpdf($E54,AB$23,$G$6) -> 0.1163910773 | AC54: =bivarpdf($E54,AC$23,$G$6) -> 0.125848761 | AD54: =bivarpdf($E54,AD$23,$G$6) -> 0.1346648649 | AE54: =bivarpdf($E54,AE$23,$G$6) -> 0.1426053289 | AF54: =bivarpdf($E54,AF$23,$G$6) -> 0.1494491015 | AG54: =bivarpdf($E54,AG$23,$G$6) -> 0.1549983094 | AH54: =bivarpdf($E54,AH$23,$G$6) -> 0.1590877404 | AI54: =bivarpdf($E54,AI$23,$G$6) -> 0.1615930078 | AJ54: =bivarpdf($E54,AJ$23,$G$6) -> 0.1624368336 | AK54: =bivarpdf($E54,AK$23,$G$6) -> 0.1615930078 | AL54: =bivarpdf($E54,AL$23,$G$6) -> 0.1590877404 | AM54: =bivarpdf($E54,AM$23,$G$6) -> 0.1549983094 | AN54: =bivarpdf($E54,AN$23,$G$6) -> 0.1494491015 | AO54: =bivarpdf($E54,AO$23,$G$6) -> 0.1426053289 | AP54: =bivarpdf($E54,AP$23,$G$6) -> 0.1346648649 | AQ54: =bivarpdf($E54,AQ$23,$G$6) -> 0.125848761 | AR54: =bivarpdf($E54,AR$23,$G$6) -> 0.1163910773 | AS54: =bivarpdf($E54,AS$23,$G$6) -> 0.1065286763 | AT54: =bivarpdf($E54,AT$23,$G$6) -> 0.09649159214 | AU54: =bivarpdf($E54,AU$23,$G$6) -> 0.08649450419 | AV54: =bivarpdf($E54,AV$23,$G$6) -> 0.07672972712 | AW54: =bivarpdf($E54,AW$23,$G$6) -> 0.06736198759 | AX54: =bivarpdf($E54,AX$23,$G$6) -> 0.05852510904 | AY54: =bivarpdf($E54,AY$23,$G$6) -> 0.05032058359 | AZ54: =bivarpdf($E54,AZ$23,$G$6) -> 0.04281788446 | BA54: =bivarpdf($E54,BA$23,$G$6) -> 0.03605627371 | BB54: =bivarpdf($E54,BB$23,$G$6) -> 0.03004779287 | BC54: =bivarpdf($E54,BC$23,$G$6) -> 0.02478109035 | BD54: =bivarpdf($E54,BD$23,$G$6) -> 0.02022573648 | BE54: =bivarpdf($E54,BE$23,$G$6) -> 0.01633670162 | BF54: =bivarpdf($E54,BF$23,$G$6) -> 0.01305871695 | BG54: =bivarpdf($E54,BG$23,$G$6) -> 0.01033029537 | BH54: =bivarpdf($E54,BH$23,$G$6) -> 0.008087253739 | BI54: =bivarpdf($E54,BI$23,$G$6) -> 0.006265640868 | BJ54: =bivarpdf($E54,BJ$23,$G$6) -> 0.004804033495 | BK54: =bivarpdf($E54,BK$23,$G$6) -> 0.003645210849 | BL54: =bivarpdf($E54,BL$23,$G$6) -> 0.002737255775 | BM54: =bivarpdf($E54,BM$23,$G$6) -> 0.002034155767 | BN54: =bivarpdf($E54,BN$23,$G$6) -> 0.001495991518
E55: -0.1 | F55: =bivarpdf($E55,F$23,$G$6) -> 0.001584202105 | G55: =bivarpdf($E55,G$23,$G$6) -> 0.002149615975 | H55: =bivarpdf($E55,H$23,$G$6) -> 0.002886604438 | I55: =bivarpdf($E55,I$23,$G$6) -> 0.003836098661 | J55: =bivarpdf($E55,J$23,$G$6) -> 0.005045083526 | K55: =bivarpdf($E55,K$23,$G$6) -> 0.006566335252 | L55: =bivarpdf($E55,L$23,$G$6) -> 0.008457730511 | M55: =bivarpdf($E55,M$23,$G$6) -> 0.01078104188 | N55: =bivarpdf($E55,N$23,$G$6) -> 0.01360015074 | O55: =bivarpdf($E55,O$23,$G$6) -> 0.01697863649 | P55: =bivarpdf($E55,P$23,$G$6) -> 0.02097674011 | Q55: =bivarpdf($E55,Q$23,$G$6) -> 0.02564775072 | R55: =bivarpdf($E55,R$23,$G$6) -> 0.03103392238 | S55: =bivarpdf($E55,S$23,$G$6) -> 0.03716209201 | T55: =bivarpdf($E55,T$23,$G$6) -> 0.04403923215 | U55: =bivarpdf($E55,U$23,$G$6) -> 0.05164822745 | V55: =bivarpdf($E55,V$23,$G$6) -> 0.05994420482 | W55: =bivarpdf($E55,W$23,$G$6) -> 0.06885176612 | X55: =bivarpdf($E55,X$23,$G$6) -> 0.07826346384 | Y55: =bivarpdf($E55,Y$23,$G$6) -> 0.0880398198 | Z55: =bivarpdf($E55,Z$23,$G$6) -> 0.09801111362 | AA55: =bivarpdf($E55,AA$23,$G$6) -> 0.1079810638 | AB55: =bivarpdf($E55,AB$23,$G$6) -> 0.117732395 | AC55: =bivarpdf($E55,AC$23,$G$6) -> 0.1270341409 | AD55: =bivarpdf($E55,AD$23,$G$6) -> 0.1356503849 | AE55: =bivarpdf($E55,AE$23,$G$6) -> 0.1433500025 | AF55: =bivarpdf($E55,AF$23,$G$6) -> 0.1499168604 | AG55: =bivarpdf($E55,AG$23,$G$6) -> 0.1551598501 | AH55: =bivarpdf($E55,AH$23,$G$6) -> 0.1589221103 | AI55: =bivarpdf($E55,AI$23,$G$6) -> 0.1610888178 | AJ55: =bivarpdf($E55,AJ$23,$G$6) -> 0.1615930078 | AK55: =bivarpdf($E55,AK$23,$G$6) -> 0.1604190108 | AL55: =bivarpdf($E55,AL$23,$G$6) -> 0.1576032622 | AM55: =bivarpdf($E55,AM$23,$G$6) -> 0.1532324235 | AN55: =bivarpdf($E55,AN$23,$G$6) -> 0.1474389527 | AO55: =bivarpdf($E55,AO$23,$G$6) -> 0.1403944382 | AP55: =bivarpdf($E55,AP$23,$G$6) -> 0.132301165 | AQ55: =bivarpdf($E55,AQ$23,$G$6) -> 0.1233824906 | AR55: =bivarpdf($E55,AR$23,$G$6) -> 0.113872668 | AS55: =bivarpdf($E55,AS$23,$G$6) -> 0.1040067579 | AT55: =bivarpdf($E55,AT$23,$G$6) -> 0.09401122686 | AU55: =bivarpdf($E55,AU$23,$G$6) -> 0.08409573704 | AV55: =bivarpdf($E55,AV$23,$G$6) -> 0.07444650967 | AW55: =bivarpdf($E55,AW$23,$G$6) -> 0.06522150265 | AX55: =bivarpdf($E55,AX$23,$G$6) -> 0.05654749342 | AY55: =bivarpdf($E55,AY$23,$G$6) -> 0.04851901954 | AZ55: =bivarpdf($E55,AZ$23,$G$6) -> 0.0411990093 | BA55: =bivarpdf($E55,BA$23,$G$6) -> 0.0346208422 | BB55: =bivarpdf($E55,BB$23,$G$6) -> 0.02879151934 | BC55: =bivarpdf($E55,BC$23,$G$6) -> 0.02369559604 | BD55: =bivarpdf($E55,BD$23,$G$6) -> 0.01929953257 | BE55: =bivarpdf($E55,BE$23,$G$6) -> 0.01555614716 | BF55: =bivarpdf($E55,BF$23,$G$6) -> 0.01240890314 | BG55: =bivarpdf($E55,BG$23,$G$6) -> 0.009795821101 | BH55: =bivarpdf($E55,BH$23,$G$6) -> 0.007652871038 | BI55: =bivarpdf($E55,BI$23,$G$6) -> 0.005916761231 | BJ55: =bivarpdf($E55,BJ$23,$G$6) -> 0.004527096915 | BK55: =bivarpdf($E55,BK$23,$G$6) -> 0.003427927587 | BL55: =bivarpdf($E55,BL$23,$G$6) -> 0.00256873667 | BM55: =bivarpdf($E55,BM$23,$G$6) -> 0.001904950219 | BN55: =bivarpdf($E55,BN$23,$G$6) -> 0.00139805345
E56: -0.2 | F56: =bivarpdf($E56,F$23,$G$6) -> 0.001660229551 | G56: =bivarpdf($E56,G$23,$G$6) -> 0.002248089797 | H56: =bivarpdf($E56,H$23,$G$6) -> 0.00301255697 | I56: =bivarpdf($E56,I$23,$G$6) -> 0.003995149005 | J56: =bivarpdf($E56,J$23,$G$6) -> 0.005243325196 | K56: =bivarpdf($E56,K$23,$G$6) -> 0.006810150432 | L56: =bivarpdf($E56,L$23,$G$6) -> 0.008753519749 | M56: =bivarpdf($E56,M$23,$G$6) -> 0.01113486166 | N56: =bivarpdf($E56,N$23,$G$6) -> 0.01401725695 | O56: =bivarpdf($E56,O$23,$G$6) -> 0.01746293922 | P56: =bivarpdf($E56,P$23,$G$6) -> 0.02153018441 | Q56: =bivarpdf($E56,Q$23,$G$6) -> 0.02626964815 | R56: =bivarpdf($E56,R$23,$G$6) -> 0.03172026898 | S56: =bivarpdf($E56,S$23,$G$6) -> 0.03790491839 | T56: =bivarpdf($E56,T$23,$G$6) -> 0.04482603952 | U56: =bivarpdf($E56,U$23,$G$6) -> 0.05246156869 | V56: =bivarpdf($E56,V$23,$G$6) -> 0.06076147034 | W56: =bivarpdf($E56,W$23,$G$6) -> 0.06964522981 | X56: =bivarpdf($E56,X$23,$G$6) -> 0.0790006339 | Y56: =bivarpdf($E56,Y$23,$G$6) -> 0.08868412298 | Z56: =bivarpdf($E56,Z$23,$G$6) -> 0.09852291984 | AA56: =bivarpdf($E56,AA$23,$G$6) -> 0.1083190324 | AB56: =bivarpdf($E56,AB$23,$G$6) -> 0.1178550968 | AC56: =bivarpdf($E56,AC$23,$G$6) -> 0.1269018826 | AD56: =bivarpdf($E56,AD$23,$G$6) -> 0.1352271391 | AE56: =bivarpdf($E56,AE$23,$G$6) -> 0.1426053289 | AF56: =bivarpdf($E56,AF$23,$G$6) -> 0.1488276924 | AG56: =bivarpdf($E56,AG$23,$G$6) -> 0.1537120238 | AH56: =bivarpdf($E56,AH$23,$G$6) -> 0.1571115208 | AI56: =bivarpdf($E56,AI$23,$G$6) -> 0.1589221103 | AJ56: =bivarpdf($E56,AJ$23,$G$6) -> 0.1590877404 | AK56: =bivarpdf($E56,AK$23,$G$6) -> 0.1576032622 | AL56: =bivarpdf($E56,AL$23,$G$6) -> 0.1545146957 | AM56: =bivarpdf($E56,AM$23,$G$6) -> 0.1499168604 | AN56: =bivarpdf($E56,AN$23,$G$6) -> 0.1439485403 | AO56: =bivarpdf($E56,AO$23,$G$6) -> 0.136785528 | AP56: =bivarpdf($E56,AP$23,$G$6) -> 0.1286320337 | AQ56: =bivarpdf($E56,AQ$23,$G$6) -> 0.1197110445 | AR56: =bivarpdf($E56,AR$23,$G$6) -> 0.1102542663 | AS56: =bivarpdf($E56,AS$23,$G$6) -> 0.1004922768 | AT56: =bivarpdf($E56,AT$23,$G$6) -> 0.09064546211 | AU56: =bivarpdf($E56,AU$23,$G$6) -> 0.08091621283 | AV56: =bivarpdf($E56,AV$23,$G$6) -> 0.0714827296 | AW56: =bivarpdf($E56,AW$23,$G$6) -> 0.06249464521 | AX56: =bivarpdf($E56,AX$23,$G$6) -> 0.05407052483 | AY56: =bivarpdf($E56,AY$23,$G$6) -> 0.04629717187 | AZ56: =bivarpdf($E56,AZ$23,$G$6) -> 0.03923055379 | BA56: =bivarpdf($E56,BA$23,$G$6) -> 0.03289807712 | BB56: =bivarpdf($E56,BB$23,$G$6) -> 0.02730188852 | BC56: =bivarpdf($E56,BC$23,$G$6) -> 0.02242285781 | BD56: =bivarpdf($E56,BD$23,$G$6) -> 0.01822490763 | BE56: =bivarpdf($E56,BE$23,$G$6) -> 0.01465938693 | BF56: =bivarpdf($E56,BF$23,$G$6) -> 0.01166923483 | BG56: =bivarpdf($E56,BG$23,$G$6) -> 0.009192741542 | BH56: =bivarpdf($E56,BH$23,$G$6) -> 0.007166775816 | BI56: =bivarpdf($E56,BI$23,$G$6) -> 0.005529408659 | BJ56: =bivarpdf($E56,BJ$23,$G$6) -> 0.00422191666 | BK56: =bivarpdf($E56,BK$23,$G$6) -> 0.003190191277 | BL56: =bivarpdf($E56,BL$23,$G$6) -> 0.002385612433 | BM56: =bivarpdf($E56,BM$23,$G$6) -> 0.001765465173 | BN56: =bivarpdf($E56,BN$23,$G$6) -> 0.001292988074
E57: -0.3 | F57: =bivarpdf($E57,F$23,$G$6) -> 0.001721875683 | G57: =bivarpdf($E57,G$23,$G$6) -> 0.002326711452 | H57: =bivarpdf($E57,H$23,$G$6) -> 0.003111425174 | I57: =bivarpdf($E57,I$23,$G$6) -> 0.004117677167 | J57: =bivarpdf($E57,J$23,$G$6) -> 0.005392887073 | K57: =bivarpdf($E57,K$23,$G$6) -> 0.006989827491 | L57: =bivarpdf($E57,L$23,$G$6) -> 0.008965771945 | M57: =bivarpdf($E57,M$23,$G$6) -> 0.01138112039 | N57: =bivarpdf($E57,N$23,$G$6) -> 0.01429744538 | O57: =bivarpdf($E57,O$23,$G$6) -> 0.01777493306 | P57: =bivarpdf($E57,P$23,$G$6) -> 0.02186923548 | Q57: =bivarpdf($E57,Q$23,$G$6) -> 0.02662780249 | R57: =bivarpdf($E57,R$23,$G$6) -> 0.0320858207 | S57: =bivarpdf($E57,S$23,$G$6) -> 0.03826194796 | T57: =bivarpdf($E57,T$23,$G$6) -> 0.04515409062 | U57: =bivarpdf($E57,U$23,$G$6) -> 0.05273551881 | V57: =bivarpdf($E57,V$23,$G$6) -> 0.06095164693 | W57: =bivarpdf($E57,W$23,$G$6) -> 0.06971781472 | X57: =bivarpdf($E57,X$23,$G$6) -> 0.07891838442 | Y57: =bivarpdf($E57,Y$23,$G$6) -> 0.08840741768 | Z57: =bivarpdf($E57,Z$23,$G$6) -> 0.09801111362 | AA57: =bivarpdf($E57,AA$23,$G$6) -> 0.1075320787 | AB57: =bivarpdf($E57,AB$23,$G$6) -> 0.1167553683 | AC57: =bivarpdf($E57,AC$23,$G$6) -> 0.1254560975 | AD57: =bivarpdf($E57,AD$23,$G$6) -> 0.1334082812 | AE57: =bivarpdf($E57,AE$23,$G$6) -> 0.1403944382 | AF57: =bivarpdf($E57,AF$23,$G$6) -> 0.1462153999 | AG57: =bivarpdf($E57,AG$23,$G$6) -> 0.1506997143 | AH57: =bivarpdf($E57,AH$23,$G$6) -> 0.1537120238 | AI57: =bivarpdf($E57,AI$23,$G$6) -> 0.1551598501 | AJ57: =bivarpdf($E57,AJ$23,$G$6) -> 0.1549983094 | AK57: =bivarpdf($E57,AK$23,$G$6) -> 0.1532324235 | AL57: =bivarpdf($E57,AL$23,$G$6) -> 0.1499168604 | AM57: =bivarpdf($E57,AM$23,$G$6) -> 0.1451531236 | AN57: =bivarpdf($E57,AN$23,$G$6) -> 0.1390843907 | AO57: =bivarpdf($E57,AO$23,$G$6) -> 0.1318883691 | AP57: =bivarpdf($E57,AP$23,$G$6) -> 0.1237686639 | AQ57: =bivarpdf($E57,AQ$23,$G$6) -> 0.1149452441 | AR57: =bivarpdf($E57,AR$23,$G$6) -> 0.105644626 | AS57: =bivarpdf($E57,AS$23,$G$6) -> 0.09609038028 | AT57: =bivarpdf($E57,AT$23,$G$6) -> 0.08649450419 | AU57: =bivarpdf($E57,AU$23,$G$6) -> 0.0770501013 | AV57: =bivarpdf($E57,AV$23,$G$6) -> 0.06792568296 | AW57: =bivarpdf($E57,AW$23,$G$6) -> 0.05926126429 | AX57: =bivarpdf($E57,AX$23,$G$6) -> 0.05116628794 | AY57: =bivarpdf($E57,AY$23,$G$6) -> 0.04371928066 | AZ57: =bivarpdf($E57,AZ$23,$G$6) -> 0.03696904262 | BA57: =bivarpdf($E57,BA$23,$G$6) -> 0.03093709275 | BB57: =bivarpdf($E57,BB$23,$G$6) -> 0.02562104822 | BC57: =bivarpdf($E57,BC$23,$G$6) -> 0.02099860226 | BD57: =bivarpdf($E57,BD$23,$G$6) -> 0.01703177772 | BE57: =bivarpdf($E57,BE$23,$G$6) -> 0.01367116964 | BF57: =bivarpdf($E57,BF$23,$G$6) -> 0.01085994094 | BG57: =bivarpdf($E57,BG$23,$G$6) -> 0.008537394576 | BH57: =bivarpdf($E57,BH$23,$G$6) -> 0.006642007219 | BI57: =bivarpdf($E57,BI$23,$G$6) -> 0.005113867036 | BJ57: =bivarpdf($E57,BJ$23,$G$6) -> 0.003896508425 | BK57: =bivarpdf($E57,BK$23,$G$6) -> 0.002938176673 | BL57: =bivarpdf($E57,BL$23,$G$6) -> 0.002192584262 | BM57: =bivarpdf($E57,BM$23,$G$6) -> 0.001619238337 | BN57: =bivarpdf($E57,BN$23,$G$6) -> 0.001183426696
E58: -0.4 | F58: =bivarpdf($E58,F$23,$G$6) -> 0.001767305157 | G58: =bivarpdf($E58,G$23,$G$6) -> 0.002383128713 | H58: =bivarpdf($E58,H$23,$G$6) -> 0.00318023749 | I58: =bivarpdf($E58,I$23,$G$6) -> 0.004199984675 | J58: =bivarpdf($E58,J$23,$G$6) -> 0.005489236692 | K58: =bivarpdf($E58,K$23,$G$6) -> 0.007099901257 | L58: =bivarpdf($E58,L$23,$G$6) -> 0.00908800922 | M58: =bivarpdf($E58,M$23,$G$6) -> 0.01151227906 | N58: =bivarpdf($E58,N$23,$G$6) -> 0.0144321142 | O58: =bivarpdf($E58,O$23,$G$6) -> 0.01790501563 | P58: =bivarpdf($E58,P$23,$G$6) -> 0.02198343488 | Q58: =bivarpdf($E58,Q$23,$G$6) -> 0.02671114453 | R58: =bivarpdf($E58,R$23,$G$6) -> 0.03211926084 | S58: =bivarpdf($E58,S$23,$G$6) -> 0.03822211252 | T58: =bivarpdf($E58,T$23,$G$6) -> 0.04501320434 | U58: =bivarpdf($E58,U$23,$G$6) -> 0.05246156869 | V58: =bivarpdf($E58,V$23,$G$6) -> 0.06050882425 | W58: =bivarpdf($E58,W$23,$G$6) -> 0.06906726443 | X58: =bivarpdf($E58,X$23,$G$6) -> 0.07801927227 | Y58: =bivarpdf($E58,Y$23,$G$6) -> 0.08721830336 | Z58: =bivarpdf($E58,Z$23,$G$6) -> 0.09649159214 | AA58: =bivarpdf($E58,AA$23,$G$6) -> 0.105644626 | AB58: =bivarpdf($E58,AB$23,$G$6) -> 0.114467302 | AC58: =bivarpdf($E58,AC$23,$G$6) -> 0.122741544 | AD58: =bivarpdf($E58,AD$23,$G$6) -> 0.1302500255 | AE58: =bivarpdf($E58,AE$23,$G$6) -> 0.136785528 | AF58: =bivarpdf($E58,AF$23,$G$6) -> 0.1421603828 | AG58: =bivarpdf($E58,AG$23,$G$6) -> 0.1462153999 | AH58: =bivarpdf($E58,AH$23,$G$6) -> 0.1488276924 | AI58: =bivarpdf($E58,AI$23,$G$6) -> 0.1499168604 | AJ58: =bivarpdf($E58,AJ$23,$G$6) -> 0.1494491015 | AK58: =bivarpdf($E58,AK$23,$G$6) -> 0.1474389527 | AL58: =bivarpdf($E58,AL$23,$G$6) -> 0.1439485403 | AM58: =bivarpdf($E58,AM$23,$G$6) -> 0.1390843907 | AN58: =bivarpdf($E58,AN$23,$G$6) -> 0.1329920311 | AO58: =bivarpdf($E58,AO$23,$G$6) -> 0.125848761 | AP58: =bivarpdf($E58,AP$23,$G$6) -> 0.1178550968 | AQ58: =bivarpdf($E58,AQ$23,$G$6) -> 0.1092254626 | AR58: =bivarpdf($E58,AR$23,$G$6) -> 0.1001787286 | AS58: =bivarpdf($E58,AS$23,$G$6) -> 0.09092917225 | AT58: =bivarpdf($E58,AT$23,$G$6) -> 0.08167836935 | AU58: =bivarpdf($E58,AU$23,$G$6) -> 0.0726084188 | AV58: =bivarpdf($E58,AV$23,$G$6) -> 0.06387677754 | AW58: =bivarpdf($E58,AW$23,$G$6) -> 0.05561284556 | AX58: =bivarpdf($E58,AX$23,$G$6) -> 0.0479163066 | AY58: =bivarpdf($E58,AY$23,$G$6) -> 0.04085711077 | AZ58: =bivarpdf($E58,AZ$23,$G$6) -> 0.0344768888 | BA58: =bivarpdf($E58,BA$23,$G$6) -> 0.02879151934 | BB58: =bivarpdf($E58,BB$23,$G$6) -> 0.02379453367 | BC58: =bivarpdf($E58,BC$23,$G$6) -> 0.019461034 | BD58: =bivarpdf($E58,BD$23,$G$6) -> 0.01575181941 | BE58: =bivarpdf($E58,BE$23,$G$6) -> 0.01261745126 | BF58: =bivarpdf($E58,BF$23,$G$6) -> 0.01000204138 | BG58: =bivarpdf($E58,BG$23,$G$6) -> 0.007846604391 | BH58: =bivarpdf($E58,BH$23,$G$6) -> 0.006091874759 | BI58: =bivarpdf($E58,BI$23,$G$6) -> 0.004680543379 | BJ58: =bivarpdf($E58,BJ$23,$G$6) -> 0.003558915546 | BK58: =bivarpdf($E58,BK$23,$G$6) -> 0.002678028465 | BL58: =bivarpdf($E58,BL$23,$G$6) -> 0.001994292219 | BM58: =bivarpdf($E58,BM$23,$G$6) -> 0.001469733184 | BN58: =bivarpdf($E58,BN$23,$G$6) -> 0.001071924763
E59: -0.5 | F59: =bivarpdf($E59,F$23,$G$6) -> 0.001795136164 | G59: =bivarpdf($E59,G$23,$G$6) -> 0.002415619743 | H59: =bivarpdf($E59,H$23,$G$6) -> 0.003216887283 | I59: =bivarpdf($E59,I$23,$G$6) -> 0.004239544679 | J59: =bivarpdf($E59,J$23,$G$6) -> 0.005529408659 | K59: =bivarpdf($E59,K$23,$G$6) -> 0.007136976375 | L59: =bivarpdf($E59,L$23,$G$6) -> 0.00911645367 | M59: =bivarpdf($E59,M$23,$G$6) -> 0.01152427726 | N59: =bivarpdf($E59,N$23,$G$6) -> 0.01441708858 | O59: =bivarpdf($E59,O$23,$G$6) -> 0.01784914979 | P59: =bivarpdf($E59,P$23,$G$6) -> 0.02186923548 | Q59: =bivarpdf($E59,Q$23,$G$6) -> 0.02651708414 | R59: =bivarpdf($E59,R$23,$G$6) -> 0.03181954986 | S59: =bivarpdf($E59,S$23,$G$6) -> 0.03778665041 | T59: =bivarpdf($E59,T$23,$G$6) -> 0.04440775915 | U59: =bivarpdf($E59,U$23,$G$6) -> 0.05164822745 | V59: =bivarpdf($E59,V$23,$G$6) -> 0.0594467454 | W59: =bivarpdf($E59,W$23,$G$6) -> 0.06771374652 | X59: =bivarpdf($E59,X$23,$G$6) -> 0.07633113203 | Y59: =bivarpdf($E59,Y$23,$G$6) -> 0.08515353119 | Z59: =bivarpdf($E59,Z$23,$G$6) -> 0.09401122686 | AA59: =bivarpdf($E59,AA$23,$G$6) -> 0.1027147652 | AB59: =bivarpdf($E59,AB$23,$G$6) -> 0.1110611418 | AC59: =bivarpdf($E59,AC$23,$G$6) -> 0.1188413262 | AD59: =bivarpdf($E59,AD$23,$G$6) -> 0.125848761 | AE59: =bivarpdf($E59,AE$23,$G$6) -> 0.1318883691 | AF59: =bivarpdf($E59,AF$23,$G$6) -> 0.136785528 | AG59: =bivarpdf($E59,AG$23,$G$6) -> 0.1403944382 | AH59: =bivarpdf($E59,AH$23,$G$6) -> 0.1426053289 | AI59: =bivarpdf($E59,AI$23,$G$6) -> 0.1433500025 | AJ59: =bivarpdf($E59,AJ$23,$G$6) -> 0.1426053289 | AK59: =bivarpdf($E59,AK$23,$G$6) -> 0.1403944382 | AL59: =bivarpdf($E59,AL$23,$G$6) -> 0.136785528 | AM59: =bivarpdf($E59,AM$23,$G$6) -> 0.1318883691 | AN59: =bivarpdf($E59,AN$23,$G$6) -> 0.125848761 | AO59: =bivarpdf($E59,AO$23,$G$6) -> 0.1188413262 | AP59: =bivarpdf($E59,AP$23,$G$6) -> 0.1110611418 | AQ59: =bivarpdf($E59,AQ$23,$G$6) -> 0.1027147652 | AR59: =bivarpdf($E59,AR$23,$G$6) -> 0.09401122686 | AS59: =bivarpdf($E59,AS$23,$G$6) -> 0.08515353119 | AT59: =bivarpdf($E59,AT$23,$G$6) -> 0.07633113203 | AU59: =bivarpdf($E59,AU$23,$G$6) -> 0.06771374652 | AV59: =bivarpdf($E59,AV$23,$G$6) -> 0.0594467454 | AW59: =bivarpdf($E59,AW$23,$G$6) -> 0.05164822745 | AX59: =bivarpdf($E59,AX$23,$G$6) -> 0.04440775915 | AY59: =bivarpdf($E59,AY$23,$G$6) -> 0.03778665041 | AZ59: =bivarpdf($E59,AZ$23,$G$6) -> 0.03181954986 | BA59: =bivarpdf($E59,BA$23,$G$6) -> 0.02651708414 | BB59: =bivarpdf($E59,BB$23,$G$6) -> 0.02186923548 | BC59: =bivarpdf($E59,BC$23,$G$6) -> 0.01784914979 | BD59: =bivarpdf($E59,BD$23,$G$6) -> 0.01441708858 | BE59: =bivarpdf($E59,BE$23,$G$6) -> 0.01152427726 | BF59: =bivarpdf($E59,BF$23,$G$6) -> 0.00911645367 | BG59: =bivarpdf($E59,BG$23,$G$6) -> 0.007136976375 | BH59: =bivarpdf($E59,BH$23,$G$6) -> 0.005529408659 | BI59: =bivarpdf($E59,BI$23,$G$6) -> 0.004239544679 | BJ59: =bivarpdf($E59,BJ$23,$G$6) -> 0.003216887283 | BK59: =bivarpdf($E59,BK$23,$G$6) -> 0.002415619743 | BL59: =bivarpdf($E59,BL$23,$G$6) -> 0.001795136164 | BM59: =bivarpdf($E59,BM$23,$G$6) -> 0.001320207881 | BN59: =bivarpdf($E59,BN$23,$G$6) -> 0.0009608671476
E60: -0.6 | F60: =bivarpdf($E60,F$23,$G$6) -> 0.001804510222 | G60: =bivarpdf($E60,G$23,$G$6) -> 0.002423180362 | H60: =bivarpdf($E60,H$23,$G$6) -> 0.003220239953 | I60: =bivarpdf($E60,I$23,$G$6) -> 0.004235130786 | J60: =bivarpdf($E60,J$23,$G$6) -> 0.005512156228 | K60: =bivarpdf($E60,K$23,$G$6) -> 0.007099901257 | L60: =bivarpdf($E60,L$23,$G$6) -> 0.009050221294 | M60: =bivarpdf($E60,M$23,$G$6) -> 0.01141674202 | N60: =bivarpdf($E60,N$23,$G$6) -> 0.0142528356 | O60: =bivarpdf($E60,O$23,$G$6) -> 0.01760907175 | P60: =bivarpdf($E60,P$23,$G$6) -> 0.02153018441 | Q60: =bivarpdf($E60,Q$23,$G$6) -> 0.02605164402 | R60: =bivarpdf($E60,R$23,$G$6) -> 0.03119597905 | S60: =bivarpdf($E60,S$23,$G$6) -> 0.03696904262 | T60: =bivarpdf($E60,T$23,$G$6) -> 0.04335646714 | U60: =bivarpdf($E60,U$23,$G$6) -> 0.05032058359 | V60: =bivarpdf($E60,V$23,$G$6) -> 0.05779809846 | W60: =bivarpdf($E60,W$23,$G$6) -> 0.06569881419 | X60: =bivarpdf($E60,X$23,$G$6) -> 0.07390564484 | Y60: =bivarpdf($E60,Y$23,$G$6) -> 0.08227611744 | Z60: =bivarpdf($E60,Z$23,$G$6) -> 0.09064546211 | AA60: =bivarpdf($E60,AA$23,$G$6) -> 0.09883128553 | AB60: =bivarpdf($E60,AB$23,$G$6) -> 0.1066397015 | AC60: =bivarpdf($E60,AC$23,$G$6) -> 0.113872668 | AD60: =bivarpdf($E60,AD$23,$G$6) -> 0.120336166 | AE60: =bivarpdf($E60,AE$23,$G$6) -> 0.125848761 | AF60: =bivarpdf($E60,AF$23,$G$6) -> 0.1302500255 | AG60: =bivarpdf($E60,AG$23,$G$6) -> 0.1334082812 | AH60: =bivarpdf($E60,AH$23,$G$6) -> 0.1352271391 | AI60: =bivarpdf($E60,AI$23,$G$6) -> 0.1356503849 | AJ60: =bivarpdf($E60,AJ$23,$G$6) -> 0.1346648649 | AK60: =bivarpdf($E60,AK$23,$G$6) -> 0.132301165 | AL60: =bivarpdf($E60,AL$23,$G$6) -> 0.1286320337 | AM60: =bivarpdf($E60,AM$23,$G$6) -> 0.1237686639 | AN60: =bivarpdf($E60,AN$23,$G$6) -> 0.1178550968 | AO60: =bivarpdf($E60,AO$23,$G$6) -> 0.1110611418 | AP60: =bivarpdf($E60,AP$23,$G$6) -> 0.103574298 | AQ60: =bivarpdf($E60,AQ$23,$G$6) -> 0.0955912106 | AR60: =bivarpdf($E60,AR$23,$G$6) -> 0.0873092031 | AS60: =bivarpdf($E60,AS$23,$G$6) -> 0.07891838442 | AT60: =bivarpdf($E60,AT$23,$G$6) -> 0.07059475687 | AU60: =bivarpdf($E60,AU$23,$G$6) -> 0.06249464521 | AV60: =bivarpdf($E60,AV$23,$G$6) -> 0.05475064831 | AW60: =bivarpdf($E60,AW$23,$G$6) -> 0.04746919036 | AX60: =bivarpdf($E60,AX$23,$G$6) -> 0.04072963159 | AY60: =bivarpdf($E60,AY$23,$G$6) -> 0.0345847976 | AZ60: =bivarpdf($E60,AZ$23,$G$6) -> 0.02906270905 | BA60: =bivarpdf($E60,BA$23,$G$6) -> 0.02416924305 | BB60: =bivarpdf($E60,BB$23,$G$6) -> 0.01989143446 | BC60: =bivarpdf($E60,BC$23,$G$6) -> 0.01620112811 | BD60: =bivarpdf($E60,BD$23,$G$6) -> 0.01305871695 | BE60: =bivarpdf($E60,BE$23,$G$6) -> 0.01041674086 | BF60: =bivarpdf($E60,BF$23,$G$6) -> 0.008223170798 | BG60: =bivarpdf($E60,BG$23,$G$6) -> 0.006424256322 | BH60: =bivarpdf($E60,BH$23,$G$6) -> 0.004966866756 | BI60: =bivarpdf($E60,BI$23,$G$6) -> 0.003800303289 | BJ60: =bivarpdf($E60,BJ$23,$G$6) -> 0.002877597879 | BK60: =bivarpdf($E60,BK$23,$G$6) -> 0.002156344032 | BL60: =bivarpdf($E60,BL$23,$G$6) -> 0.001599123836 | BM60: =bivarpdf($E60,BM$23,$G$6) -> 0.001173605784 | BN60: =bivarpdf($E60,BN$23,$G$6) -> 0.000852390273
E61: -0.7 | F61: =bivarpdf($E61,F$23,$G$6) -> 0.001795136164 | G61: =bivarpdf($E61,G$23,$G$6) -> 0.0024055756 | H61: =bivarpdf($E61,H$23,$G$6) -> 0.003190191277 | I61: =bivarpdf($E61,I$23,$G$6) -> 0.004186880209 | J61: =bivarpdf($E61,J$23,$G$6) -> 0.005438015572 | K61: =bivarpdf($E61,K$23,$G$6) -> 0.006989827491 | L61: =bivarpdf($E61,L$23,$G$6) -> 0.008891367627 | M61: =bivarpdf($E61,M$23,$G$6) -> 0.01119300702 | N61: =bivarpdf($E61,N$23,$G$6) -> 0.0139444402 | O61: =bivarpdf($E61,O$23,$G$6) -> 0.01719220144 | P61: =bivarpdf($E61,P$23,$G$6) -> 0.02097674011 | Q61: =bivarpdf($E61,Q$23,$G$6) -> 0.02532914924 | R61: =bivarpdf($E61,R$23,$G$6) -> 0.03026769211 | S61: =bivarpdf($E61,S$23,$G$6) -> 0.03579431958 | T61: =bivarpdf($E61,T$23,$G$6) -> 0.04189141346 | U61: =bivarpdf($E61,U$23,$G$6) -> 0.04851901954 | V61: =bivarpdf($E61,V$23,$G$6) -> 0.05561284556 | W61: =bivarpdf($E61,W$23,$G$6) -> 0.06308328746 | X61: =bivarpdf($E61,X$23,$G$6) -> 0.07081571055 | Y61: =bivarpdf($E61,Y$23,$G$6) -> 0.07867214941 | Z61: =bivarpdf($E61,Z$23,$G$6) -> 0.08649450419 | AA61: =bivarpdf($E61,AA$23,$G$6) -> 0.09410920624 | AB61: =bivarpdf($E61,AB$23,$G$6) -> 0.1013332114 | AC61: =bivarpdf($E61,AC$23,$G$6) -> 0.1079810638 | AD61: =bivarpdf($E61,AD$23,$G$6) -> 0.113872668 | AE61: =bivarpdf($E61,AE$23,$G$6) -> 0.1188413262 | AF61: =bivarpdf($E61,AF$23,$G$6) -> 0.122741544 | AG61: =bivarpdf($E61,AG$23,$G$6) -> 0.1254560975 | AH61: =bivarpdf($E61,AH$23,$G$6) -> 0.1269018826 | AI61: =bivarpdf($E61,AI$23,$G$6) -> 0.1270341409 | AJ61: =bivarpdf($E61,AJ$23,$G$6) -> 0.125848761 | AK61: =bivarpdf($E61,AK$23,$G$6) -> 0.1233824906 | AL61: =bivarpdf($E61,AL$23,$G$6) -> 0.1197110445 | AM61: =bivarpdf($E61,AM$23,$G$6) -> 0.1149452441 | AN61: =bivarpdf($E61,AN$23,$G$6) -> 0.1092254626 | AO61: =bivarpdf($E61,AO$23,$G$6) -> 0.1027147652 | AP61: =bivarpdf($E61,AP$23,$G$6) -> 0.0955912106 | AQ61: =bivarpdf($E61,AQ$23,$G$6) -> 0.0880398198 | AR61: =bivarpdf($E61,AR$23,$G$6) -> 0.08024471286 | AS61: =bivarpdf($E61,AS$23,$G$6) -> 0.07238187165 | AT61: =bivarpdf($E61,AT$23,$G$6) -> 0.06461290831 | AU61: =bivarpdf($E61,AU$23,$G$6) -> 0.05708011895 | AV61: =bivarpdf($E61,AV$23,$G$6) -> 0.04990298779 | AW61: =bivarpdf($E61,AW$23,$G$6) -> 0.04317619103 | AX61: =bivarpdf($E61,AX$23,$G$6) -> 0.03696904262 | AY61: =bivarpdf($E61,AY$23,$G$6) -> 0.03132623347 | AZ61: =bivarpdf($E61,AZ$23,$G$6) -> 0.02626964815 | BA61: =bivarpdf($E61,BA$23,$G$6) -> 0.02180100079 | BB61: =bivarpdf($E61,BB$23,$G$6) -> 0.01790501563 | BC61: =bivarpdf($E61,BC$23,$G$6) -> 0.01455288433 | BD61: =bivarpdf($E61,BD$23,$G$6) -> 0.01170575822 | BE61: =bivarpdf($E61,BE$23,$G$6) -> 0.009318073269 | BF61: =bivarpdf($E61,BF$23,$G$6) -> 0.007340553216 | BG61: =bivarpdf($E61,BG$23,$G$6) -> 0.005722786725 | BH61: =bivarpdf($E61,BH$23,$G$6) -> 0.004415322494 | BI61: =bivarpdf($E61,BI$23,$G$6) -> 0.003371268927 | BJ61: =bivarpdf($E61,BJ$23,$G$6) -> 0.002547419476 | BK61: =bivarpdf($E61,BK$23,$G$6) -> 0.001904950219 | BL61: =bivarpdf($E61,BL$23,$G$6) -> 0.001409752574 | BM61: =bivarpdf($E61,BM$23,$G$6) -> 0.001032471948 | BN61: =bivarpdf($E61,BN$23,$G$6) -> 0.000748324087
E62: -0.8 | F62: =bivarpdf($E62,F$23,$G$6) -> 0.001767305157 | G62: =bivarpdf($E62,G$23,$G$6) -> 0.002363351826 | H62: =bivarpdf($E62,H$23,$G$6) -> 0.003127672788 | I62: =bivarpdf($E62,I$23,$G$6) -> 0.004096286684 | J62: =bivarpdf($E62,J$23,$G$6) -> 0.005309278108 | K62: =bivarpdf($E62,K$23,$G$6) -> 0.006810150432 | L62: =bivarpdf($E62,L$23,$G$6) -> 0.00864478178 | M62: =bivarpdf($E62,M$23,$G$6) -> 0.01085994094 | N62: =bivarpdf($E62,N$23,$G$6) -> 0.01350134365 | O62: =bivarpdf($E62,O$23,$G$6) -> 0.01661126163 | P62: =bivarpdf($E62,P$23,$G$6) -> 0.02022573648 | Q62: =bivarpdf($E62,Q$23,$G$6) -> 0.02437149496 | R62: =bivarpdf($E62,R$23,$G$6) -> 0.02906270905 | S62: =bivarpdf($E62,S$23,$G$6) -> 0.03429778849 | T62: =bivarpdf($E62,T$23,$G$6) -> 0.04005643 | U62: =bivarpdf($E62,U$23,$G$6) -> 0.04629717187 | V62: =bivarpdf($E62,V$23,$G$6) -> 0.05295570855 | W62: =bivarpdf($E62,W$23,$G$6) -> 0.05994420482 | X62: =bivarpdf($E62,X$23,$G$6) -> 0.06715180995 | Y62: =bivarpdf($E62,Y$23,$G$6) -> 0.07444650967 | Z62: =bivarpdf($E62,Z$23,$G$6) -> 0.08167836935 | AA62: =bivarpdf($E62,AA$23,$G$6) -> 0.08868412298 | AB62: =bivarpdf($E62,AB$23,$G$6) -> 0.09529295433 | AC62: =bivarpdf($E62,AC$23,$G$6) -> 0.1013332114 | AD62: =bivarpdf($E62,AD$23,$G$6) -> 0.1066397015 | AE62: =bivarpdf($E62,AE$23,$G$6) -> 0.1110611418 | AF62: =bivarpdf($E62,AF$23,$G$6) -> 0.114467302 | AG62: =bivarpdf($E62,AG$23,$G$6) -> 0.1167553683 | AH62: =bivarpdf($E62,AH$23,$G$6) -> 0.1178550968 | AI62: =bivarpdf($E62,AI$23,$G$6) -> 0.117732395 | AJ62: =bivarpdf($E62,AJ$23,$G$6) -> 0.1163910773 | AK62: =bivarpdf($E62,AK$23,$G$6) -> 0.113872668 | AL62: =bivarpdf($E62,AL$23,$G$6) -> 0.1102542663 | AM62: =bivarpdf($E62,AM$23,$G$6) -> 0.105644626 | AN62: =bivarpdf($E62,AN$23,$G$6) -> 0.1001787286 | AO62: =bivarpdf($E62,AO$23,$G$6) -> 0.09401122686 | AP62: =bivarpdf($E62,AP$23,$G$6) -> 0.0873092031 | AQ62: =bivarpdf($E62,AQ$23,$G$6) -> 0.08024471286 | AR62: =bivarpdf($E62,AR$23,$G$6) -> 0.07298757417 | AS62: =bivarpdf($E62,AS$23,$G$6) -> 0.06569881419 | AT62: =bivarpdf($E62,AT$23,$G$6) -> 0.05852510904 | AU62: =bivarpdf($E62,AU$23,$G$6) -> 0.05159445522 | AV62: =bivarpdf($E62,AV$23,$G$6) -> 0.04501320434 | AW62: =bivarpdf($E62,AW$23,$G$6) -> 0.03886448597 | AX62: =bivarpdf($E62,AX$23,$G$6) -> 0.03320794684 | AY62: =bivarpdf($E62,AY$23,$G$6) -> 0.0280806542 | AZ62: =bivarpdf($E62,AZ$23,$G$6) -> 0.02349895322 | BA62: =bivarpdf($E62,BA$23,$G$6) -> 0.019461034 | BB62: =bivarpdf($E62,BB$23,$G$6) -> 0.0159499529 | BC62: =bivarpdf($E62,BC$23,$G$6) -> 0.01293686356 | BD62: =bivarpdf($E62,BD$23,$G$6) -> 0.01038423935 | BE62: =bivarpdf($E62,BE$23,$G$6) -> 0.0082489084 | BF62: =bivarpdf($E62,BF$23,$G$6) -> 0.006484766925 | BG62: =bivarpdf($E62,BG$23,$G$6) -> 0.005045083526 | BH62: =bivarpdf($E62,BH$23,$G$6) -> 0.003884350842 | BI62: =bivarpdf($E62,BI$23,$G$6) -> 0.002959679178 | BJ62: =bivarpdf($E62,BJ$23,$G$6) -> 0.002231757094 | BK62: =bivarpdf($E62,BK$23,$G$6) -> 0.001665425883 | BL62: =bivarpdf($E62,BL$23,$G$6) -> 0.001229928302 | BM62: =bivarpdf($E62,BM$23,$G$6) -> 0.0008988979282 | BN62: =bivarpdf($E62,BN$23,$G$6) -> 0.0006501552337
E63: -0.9 | F63: =bivarpdf($E63,F$23,$G$6) -> 0.001721875683 | G63: =bivarpdf($E63,G$23,$G$6) -> 0.002297808578 | H63: =bivarpdf($E63,H$23,$G$6) -> 0.003034603813 | I63: =bivarpdf($E63,I$23,$G$6) -> 0.003966123661 | J63: =bivarpdf($E63,J$23,$G$6) -> 0.005129872866 | K63: =bivarpdf($E63,K$23,$G$6) -> 0.006566335252 | L63: =bivarpdf($E63,L$23,$G$6) -> 0.008317936522 | M63: =bivarpdf($E63,M$23,$G$6) -> 0.01042759728 | N63: =bivarpdf($E63,N$23,$G$6) -> 0.01293686356 | O63: =bivarpdf($E63,O$23,$G$6) -> 0.01588363303 | P63: =bivarpdf($E63,P$23,$G$6) -> 0.01929953257 | Q63: =bivarpdf($E63,Q$23,$G$6) -> 0.02320704454 | R63: =bivarpdf($E63,R$23,$G$6) -> 0.02761652181 | S63: =bivarpdf($E63,S$23,$G$6) -> 0.03252327141 | T63: =bivarpdf($E63,T$23,$G$6) -> 0.03790491839 | U63: =bivarpdf($E63,U$23,$G$6) -> 0.04371928066 | V63: =bivarpdf($E63,V$23,$G$6) -> 0.04990298779 | W63: =bivarpdf($E63,W$23,$G$6) -> 0.05637105832 | X63: =bivarpdf($E63,X$23,$G$6) -> 0.06301760992 | Y63: =bivarpdf($E63,Y$23,$G$6) -> 0.06971781472 | Z63: =bivarpdf($E63,Z$23,$G$6) -> 0.07633113203 | AA63: =bivarpdf($E63,AA$23,$G$6) -> 0.08270575677 | AB63: =bivarpdf($E63,AB$23,$G$6) -> 0.08868412298 | AC63: =bivarpdf($E63,AC$23,$G$6) -> 0.09410920624 | AD63: =bivarpdf($E63,AD$23,$G$6) -> 0.09883128553 | AE63: =bivarpdf($E63,AE$23,$G$6) -> 0.1027147652 | AF63: =bivarpdf($E63,AF$23,$G$6) -> 0.105644626 | AG63: =bivarpdf($E63,AG$23,$G$6) -> 0.1075320787 | AH63: =bivarpdf($E63,AH$23,$G$6) -> 0.1083190324 | AI63: =bivarpdf($E63,AI$23,$G$6) -> 0.1079810638 | AJ63: =bivarpdf($E63,AJ$23,$G$6) -> 0.1065286763 | AK63: =bivarpdf($E63,AK$23,$G$6) -> 0.1040067579 | AL63: =bivarpdf($E63,AL$23,$G$6) -> 0.1004922768 | AM63: =bivarpdf($E63,AM$23,$G$6) -> 0.09609038028 | AN63: =bivarpdf($E63,AN$23,$G$6) -> 0.09092917225 | AO63: =bivarpdf($E63,AO$23,$G$6) -> 0.08515353119 | AP63: =bivarpdf($E63,AP$23,$G$6) -> 0.07891838442 | AQ63: =bivarpdf($E63,AQ$23,$G$6) -> 0.07238187165 | AR63: =bivarpdf($E63,AR$23,$G$6) -> 0.06569881419 | AS63: =bivarpdf($E63,AS$23,$G$6) -> 0.05901485606 | AT63: =bivarpdf($E63,AT$23,$G$6) -> 0.05246156869 | AU63: =bivarpdf($E63,AU$23,$G$6) -> 0.04615271903 | AV63: =bivarpdf($E63,AV$23,$G$6) -> 0.04018180213 | AW63: =bivarpdf($E63,AW$23,$G$6) -> 0.0346208422 | AX63: =bivarpdf($E63,AX$23,$G$6) -> 0.02952038012 | AY63: =bivarpdf($E63,AY$23,$G$6) -> 0.02491049523 | AZ63: =bivarpdf($E63,AZ$23,$G$6) -> 0.02080266028 | BA63: =bivarpdf($E63,BA$23,$G$6) -> 0.01719220144 | BB63: =bivarpdf($E63,BB$23,$G$6) -> 0.01406112939 | BC63: =bivarpdf($E63,BC$23,$G$6) -> 0.01138112039 | BD63: =bivarpdf($E63,BD$23,$G$6) -> 0.00911645367 | BE63: =bivarpdf($E63,BE$23,$G$6) -> 0.007226748487 | BF63: =bivarpdf($E63,BF$23,$G$6) -> 0.005669386305 | BG63: =bivarpdf($E63,BG$23,$G$6) -> 0.004401546148 | BH63: =bivarpdf($E63,BH$23,$G$6) -> 0.003381820621 | BI63: =bivarpdf($E63,BI$23,$G$6) -> 0.002571413831 | BJ63: =bivarpdf($E63,BJ$23,$G$6) -> 0.00193494882 | BK63: =bivarpdf($E63,BK$23,$G$6) -> 0.001440930679 | BL63: =bivarpdf($E63,BL$23,$G$6) -> 0.001061922428 | BM63: =bivarpdf($E63,BM$23,$G$6) -> 0.0007744949624 | BN63: =bivarpdf($E63,BN$23,$G$6) -> 0.0005590111889
E64: -1 | F64: =bivarpdf($E64,F$23,$G$6) -> 0.001660229551 | G64: =bivarpdf($E64,G$23,$G$6) -> 0.002210932141 | H64: =bivarpdf($E64,H$23,$G$6) -> 0.002913793605 | I64: =bivarpdf($E64,I$23,$G$6) -> 0.003800303289 | J64: =bivarpdf($E64,J$23,$G$6) -> 0.004905167346 | K64: =bivarpdf($E64,K$23,$G$6) -> 0.006265640868 | L64: =bivarpdf($E64,L$23,$G$6) -> 0.007920512208 | M64: =bivarpdf($E64,M$23,$G$6) -> 0.009908710411 | N64: =bivarpdf($E64,N$23,$G$6) -> 0.01226752929 | O64: =bivarpdf($E64,O$23,$G$6) -> 0.01503049108 | P64: =bivarpdf($E64,P$23,$G$6) -> 0.01822490763 | Q64: =bivarpdf($E64,Q$23,$G$6) -> 0.02186923548 | R64: =bivarpdf($E64,R$23,$G$6) -> 0.02597035971 | S64: =bivarpdf($E64,S$23,$G$6) -> 0.03052097676 | T64: =bivarpdf($E64,T$23,$G$6) -> 0.035497273 | U64: =bivarpdf($E64,U$23,$G$6) -> 0.04085711077 | V64: =bivarpdf($E64,V$23,$G$6) -> 0.04653893201 | W64: =bivarpdf($E64,W$23,$G$6) -> 0.05246156869 | X64: =bivarpdf($E64,X$23,$G$6) -> 0.05852510904 | Y64: =bivarpdf($E64,Y$23,$G$6) -> 0.06461290831 | Z64: =bivarpdf($E64,Z$23,$G$6) -> 0.07059475687 | AA64: =bivarpdf($E64,AA$23,$G$6) -> 0.07633113203 | AB64: =bivarpdf($E64,AB$23,$G$6) -> 0.08167836935 | AC64: =bivarpdf($E64,AC$23,$G$6) -> 0.08649450419 | AD64: =bivarpdf($E64,AD$23,$G$6) -> 0.09064546211 | AE64: =bivarpdf($E64,AE$23,$G$6) -> 0.09401122686 | AF64: =bivarpdf($E64,AF$23,$G$6) -> 0.09649159214 | AG64: =bivarpdf($E64,AG$23,$G$6) -> 0.09801111362 | AH64: =bivarpdf($E64,AH$23,$G$6) -> 0.09852291984 | AI64: =bivarpdf($E64,AI$23,$G$6) -> 0.09801111362 | AJ64: =bivarpdf($E64,AJ$23,$G$6) -> 0.09649159214 | AK64: =bivarpdf($E64,AK$23,$G$6) -> 0.09401122686 | AL64: =bivarpdf($E64,AL$23,$G$6) -> 0.09064546211 | AM64: =bivarpdf($E64,AM$23,$G$6) -> 0.08649450419 | AN64: =bivarpdf($E64,AN$23,$G$6) -> 0.08167836935 | AO64: =bivarpdf($E64,AO$23,$G$6) -> 0.07633113203 | AP64: =bivarpdf($E64,AP$23,$G$6) -> 0.07059475687 | AQ64: =bivarpdf($E64,AQ$23,$G$6) -> 0.06461290831 | AR64: =bivarpdf($E64,AR$23,$G$6) -> 0.05852510904 | AS64: =bivarpdf($E64,AS$23,$G$6) -> 0.05246156869 | AT64: =bivarpdf($E64,AT$23,$G$6) -> 0.04653893201 | AU64: =bivarpdf($E64,AU$23,$G$6) -> 0.04085711077 | AV64: =bivarpdf($E64,AV$23,$G$6) -> 0.035497273 | AW64: =bivarpdf($E64,AW$23,$G$6) -> 0.03052097676 | AX64: =bivarpdf($E64,AX$23,$G$6) -> 0.02597035971 | AY64: =bivarpdf($E64,AY$23,$G$6) -> 0.02186923548 | AZ64: =bivarpdf($E64,AZ$23,$G$6) -> 0.01822490763 | BA64: =bivarpdf($E64,BA$23,$G$6) -> 0.01503049108 | BB64: =bivarpdf($E64,BB$23,$G$6) -> 0.01226752929 | BC64: =bivarpdf($E64,BC$23,$G$6) -> 0.009908710411 | BD64: =bivarpdf($E64,BD$23,$G$6) -> 0.007920512208 | BE64: =bivarpdf($E64,BE$23,$G$6) -> 0.006265640868 | BF64: =bivarpdf($E64,BF$23,$G$6) -> 0.004905167346 | BG64: =bivarpdf($E64,BG$23,$G$6) -> 0.003800303289 | BH64: =bivarpdf($E64,BH$23,$G$6) -> 0.002913793605 | BI64: =bivarpdf($E64,BI$23,$G$6) -> 0.002210932141 | BJ64: =bivarpdf($E64,BJ$23,$G$6) -> 0.001660229551 | BK64: =bivarpdf($E64,BK$23,$G$6) -> 0.00123377784 | BL64: =bivarpdf($E64,BL$23,$G$6) -> 0.0009073647224 | BM64: =bivarpdf($E64,BM$23,$G$6) -> 0.0006603936889 | BN64: =bivarpdf($E64,BN$23,$G$6) -> 0.0004756637302
E65: -1.1 | F65: =bivarpdf($E65,F$23,$G$6) -> 0.001584202105 | G65: =bivarpdf($E65,G$23,$G$6) -> 0.002105295582 | H65: =bivarpdf($E65,H$23,$G$6) -> 0.002768800544 | I65: =bivarpdf($E65,I$23,$G$6) -> 0.003603681193 | J65: =bivarpdf($E65,J$23,$G$6) -> 0.004641700919 | K65: =bivarpdf($E65,K$23,$G$6) -> 0.005916761231 | L65: =bivarpdf($E65,L$23,$G$6) -> 0.007463920979 | M65: =bivarpdf($E65,M$23,$G$6) -> 0.009318073269 | N65: =bivarpdf($E65,N$23,$G$6) -> 0.01151227906 | O65: =bivarpdf($E65,O$23,$G$6) -> 0.01407578403 | P65: =bivarpdf($E65,P$23,$G$6) -> 0.01703177772 | Q65: =bivarpdf($E65,Q$23,$G$6) -> 0.02039498852 | R65: =bivarpdf($E65,R$23,$G$6) -> 0.02416924305 | S65: =bivarpdf($E65,S$23,$G$6) -> 0.02834514821 | T65: =bivarpdf($E65,T$23,$G$6) -> 0.03289807712 | U65: =bivarpdf($E65,U$23,$G$6) -> 0.03778665041 | V65: =bivarpdf($E65,V$23,$G$6) -> 0.04295189964 | W65: =bivarpdf($E65,W$23,$G$6) -> 0.04831727754 | X65: =bivarpdf($E65,X$23,$G$6) -> 0.05378963962 | Y65: =bivarpdf($E65,Y$23,$G$6) -> 0.05926126429 | Z65: =bivarpdf($E65,Z$23,$G$6) -> 0.06461290831 | AA65: =bivarpdf($E65,AA$23,$G$6) -> 0.06971781472 | AB65: =bivarpdf($E65,AB$23,$G$6) -> 0.07444650967 | AC65: =bivarpdf($E65,AC$23,$G$6) -> 0.07867214941 | AD65: =bivarpdf($E65,AD$23,$G$6) -> 0.08227611744 | AE65: =bivarpdf($E65,AE$23,$G$6) -> 0.08515353119 | AF65: =bivarpdf($E65,AF$23,$G$6) -> 0.08721830336 | AG65: =bivarpdf($E65,AG$23,$G$6) -> 0.08840741768 | AH65: =bivarpdf($E65,AH$23,$G$6) -> 0.08868412298 | AI65: =bivarpdf($E65,AI$23,$G$6) -> 0.0880398198 | AJ65: =bivarpdf($E65,AJ$23,$G$6) -> 0.08649450419 | AK65: =bivarpdf($E65,AK$23,$G$6) -> 0.08409573704 | AL65: =bivarpdf($E65,AL$23,$G$6) -> 0.08091621283 | AM65: =bivarpdf($E65,AM$23,$G$6) -> 0.0770501013 | AN65: =bivarpdf($E65,AN$23,$G$6) -> 0.0726084188 | AO65: =bivarpdf($E65,AO$23,$G$6) -> 0.06771374652 | AP65: =bivarpdf($E65,AP$23,$G$6) -> 0.06249464521 | AQ65: =bivarpdf($E65,AQ$23,$G$6) -> 0.05708011895 | AR65: =bivarpdf($E65,AR$23,$G$6) -> 0.05159445522 | AS65: =bivarpdf($E65,AS$23,$G$6) -> 0.04615271903 | AT65: =bivarpdf($E65,AT$23,$G$6) -> 0.04085711077 | AU65: =bivarpdf($E65,AU$23,$G$6) -> 0.03579431958 | AV65: =bivarpdf($E65,AV$23,$G$6) -> 0.03103392238 | AW65: =bivarpdf($E65,AW$23,$G$6) -> 0.02662780249 | AX65: =bivarpdf($E65,AX$23,$G$6) -> 0.0226104957 | AY65: =bivarpdf($E65,AY$23,$G$6) -> 0.01900032105 | AZ65: =bivarpdf($E65,AZ$23,$G$6) -> 0.01580112084 | BA65: =bivarpdf($E65,BA$23,$G$6) -> 0.01300441883 | BB65: =bivarpdf($E65,BB$23,$G$6) -> 0.01059180805 | BC65: =bivarpdf($E65,BC$23,$G$6) -> 0.008537394576 | BD65: =bivarpdf($E65,BD$23,$G$6) -> 0.006810150432 | BE65: =bivarpdf($E65,BE$23,$G$6) -> 0.005376060605 | BF65: =bivarpdf($E65,BF$23,$G$6) -> 0.004199984675 | BG65: =bivarpdf($E65,BG$23,$G$6) -> 0.003247187412 | BH65: =bivarpdf($E65,BH$23,$G$6) -> 0.002484523465 | BI65: =bivarpdf($E65,BI$23,$G$6) -> 0.001881286547 | BJ65: =bivarpdf($E65,BJ$23,$G$6) -> 0.001409752574 | BK65: =bivarpdf($E65,BK$23,$G$6) -> 0.001045458846 | BL65: =bivarpdf($E65,BL$23,$G$6) -> 0.0007672680014 | BM65: =bivarpdf($E65,BM$23,$G$6) -> 0.0005572670056 | BN65: =bivarpdf($E65,BN$23,$G$6) -> 0.0004005490198
E66: -1.2 | F66: =bivarpdf($E66,F$23,$G$6) -> 0.001495991518 | G66: =bivarpdf($E66,G$23,$G$6) -> 0.001983932283 | H66: =bivarpdf($E66,H$23,$G$6) -> 0.002603758235 | I66: =bivarpdf($E66,I$23,$G$6) -> 0.003381820621 | J66: =bivarpdf($E66,J$23,$G$6) -> 0.004346869264 | K66: =bivarpdf($E66,K$23,$G$6) -> 0.005529408659 | L66: =bivarpdf($E66,L$23,$G$6) -> 0.006960763801 | M66: =bivarpdf($E66,M$23,$G$6) -> 0.008671838978 | N66: =bivarpdf($E66,N$23,$G$6) -> 0.01069157316 | O66: =bivarpdf($E66,O$23,$G$6) -> 0.0130451212 | P66: =bivarpdf($E66,P$23,$G$6) -> 0.01575181941 | Q66: =bivarpdf($E66,Q$23,$G$6) -> 0.01882302541 | R66: =bivarpdf($E66,R$23,$G$6) -> 0.02225995245 | S66: =bivarpdf($E66,S$23,$G$6) -> 0.02605164402 | T66: =bivarpdf($E66,T$23,$G$6) -> 0.03017325321 | U66: =bivarpdf($E66,U$23,$G$6) -> 0.0345847976 | V66: =bivarpdf($E66,V$23,$G$6) -> 0.03923055379 | W66: =bivarpdf($E66,W$23,$G$6) -> 0.04403923215 | X66: =bivarpdf($E66,X$23,$G$6) -> 0.04892503408 | Y66: =bivarpdf($E66,Y$23,$G$6) -> 0.05378963962 | Z66: =bivarpdf($E66,Z$23,$G$6) -> 0.05852510904 | AA66: =bivarpdf($E66,AA$23,$G$6) -> 0.06301760992 | AB66: =bivarpdf($E66,AB$23,$G$6) -> 0.06715180995 | AC66: =bivarpdf($E66,AC$23,$G$6) -> 0.07081571055 | AD66: =bivarpdf($E66,AD$23,$G$6) -> 0.07390564484 | AE66: =bivarpdf($E66,AE$23,$G$6) -> 0.07633113203 | AF66: =bivarpdf($E66,AF$23,$G$6) -> 0.07801927227 | AG66: =bivarpdf($E66,AG$23,$G$6) -> 0.07891838442 | AH66: =bivarpdf($E66,AH$23,$G$6) -> 0.0790006339 | AI66: =bivarpdf($E66,AI$23,$G$6) -> 0.07826346384 | AJ66: =bivarpdf($E66,AJ$23,$G$6) -> 0.07672972712 | AK66: =bivarpdf($E66,AK$23,$G$6) -> 0.07444650967 | AL66: =bivarpdf($E66,AL$23,$G$6) -> 0.0714827296 | AM66: =bivarpdf($E66,AM$23,$G$6) -> 0.06792568296 | AN66: =bivarpdf($E66,AN$23,$G$6) -> 0.06387677754 | AO66: =bivarpdf($E66,AO$23,$G$6) -> 0.0594467454 | AP66: =bivarpdf($E66,AP$23,$G$6) -> 0.05475064831 | AQ66: =bivarpdf($E66,AQ$23,$G$6) -> 0.04990298779 | AR66: =bivarpdf($E66,AR$23,$G$6) -> 0.04501320434 | AS66: =bivarpdf($E66,AS$23,$G$6) -> 0.04018180213 | AT66: =bivarpdf($E66,AT$23,$G$6) -> 0.035497273 | AU66: =bivarpdf($E66,AU$23,$G$6) -> 0.03103392238 | AV66: =bivarpdf($E66,AV$23,$G$6) -> 0.026850628 | AW66: =bivarpdf($E66,AW$23,$G$6) -> 0.02299049516 | AX66: =bivarpdf($E66,AX$23,$G$6) -> 0.01948131647 | AY66: =bivarpdf($E66,AY$23,$G$6) -> 0.01633670162 | AZ66: =bivarpdf($E66,AZ$23,$G$6) -> 0.01355771661 | BA66: =bivarpdf($E66,BA$23,$G$6) -> 0.01113486166 | BB66: =bivarpdf($E66,BB$23,$G$6) -> 0.009050221294 | BC66: =bivarpdf($E66,BC$23,$G$6) -> 0.007279636113 | BD66: =bivarpdf($E66,BD$23,$G$6) -> 0.005794770521 | BE66: =bivarpdf($E66,BE$23,$G$6) -> 0.004564980351 | BF66: =bivarpdf($E66,BF$23,$G$6) -> 0.003558915546 | BG66: =bivarpdf($E66,BG$23,$G$6) -> 0.002745823079 | BH66: =bivarpdf($E66,BH$23,$G$6) -> 0.002096541767 | BI66: =bivarpdf($E66,BI$23,$G$6) -> 0.001584202105 | BJ66: =bivarpdf($E66,BJ$23,$G$6) -> 0.001184660075 | BK66: =bivarpdf($E66,BK$23,$G$6) -> 0.0008767040593 | BL66: =bivarpdf($E66,BL$23,$G$6) -> 0.0006420788757 | BM66: =bivarpdf($E66,BM$23,$G$6) -> 0.0004653715671 | BN66: =bivarpdf($E66,BN$23,$G$6) -> 0.000333800827
E67: -1.3 | F67: =bivarpdf($E67,F$23,$G$6) -> 0.00139805345 | G67: =bivarpdf($E67,G$23,$G$6) -> 0.001850191616 | H67: =bivarpdf($E67,H$23,$G$6) -> 0.002423180362 | I67: =bivarpdf($E67,I$23,$G$6) -> 0.003140731946 | J67: =bivarpdf($E67,J$23,$G$6) -> 0.00402858102 | K67: =bivarpdf($E67,K$23,$G$6) -> 0.005113867036 | L67: =bivarpdf($E67,L$23,$G$6) -> 0.006424256322 | M67: =bivarpdf($E67,M$23,$G$6) -> 0.00798679226 | N67: =bivarpdf($E67,N$23,$G$6) -> 0.009826480923 | O67: =bivarpdf($E67,O$23,$G$6) -> 0.01196464291 | P67: =bivarpdf($E67,P$23,$G$6) -> 0.01441708858 | Q67: =bivarpdf($E67,Q$23,$G$6) -> 0.01719220144 | R67: =bivarpdf($E67,R$23,$G$6) -> 0.02028904077 | S67: =bivarpdf($E67,S$23,$G$6) -> 0.02369559604 | T67: =bivarpdf($E67,T$23,$G$6) -> 0.02738734037 | U67: =bivarpdf($E67,U$23,$G$6) -> 0.03132623347 | V67: =bivarpdf($E67,V$23,$G$6) -> 0.03546031592 | W67: =bivarpdf($E67,W$23,$G$6) -> 0.03972401341 | X67: =bivarpdf($E67,X$23,$G$6) -> 0.04403923215 | Y67: =bivarpdf($E67,Y$23,$G$6) -> 0.04831727754 | Z67: =bivarpdf($E67,Z$23,$G$6) -> 0.05246156869 | AA67: =bivarpdf($E67,AA$23,$G$6) -> 0.05637105832 | AB67: =bivarpdf($E67,AB$23,$G$6) -> 0.05994420482 | AC67: =bivarpdf($E67,AC$23,$G$6) -> 0.06308328746 | AD67: =bivarpdf($E67,AD$23,$G$6) -> 0.06569881419 | AE67: =bivarpdf($E67,AE$23,$G$6) -> 0.06771374652 | AF67: =bivarpdf($E67,AF$23,$G$6) -> 0.06906726443 | AG67: =bivarpdf($E67,AG$23,$G$6) -> 0.06971781472 | AH67: =bivarpdf($E67,AH$23,$G$6) -> 0.06964522981 | AI67: =bivarpdf($E67,AI$23,$G$6) -> 0.06885176612 | AJ67: =bivarpdf($E67,AJ$23,$G$6) -> 0.06736198759 | AK67: =bivarpdf($E67,AK$23,$G$6) -> 0.06522150265 | AL67: =bivarpdf($E67,AL$23,$G$6) -> 0.06249464521 | AM67: =bivarpdf($E67,AM$23,$G$6) -> 0.05926126429 | AN67: =bivarpdf($E67,AN$23,$G$6) -> 0.05561284556 | AO67: =bivarpdf($E67,AO$23,$G$6) -> 0.05164822745 | AP67: =bivarpdf($E67,AP$23,$G$6) -> 0.04746919036 | AQ67: =bivarpdf($E67,AQ$23,$G$6) -> 0.04317619103 | AR67: =bivarpdf($E67,AR$23,$G$6) -> 0.03886448597 | AS67: =bivarpdf($E67,AS$23,$G$6) -> 0.0346208422 | AT67: =bivarpdf($E67,AT$23,$G$6) -> 0.03052097676 | AU67: =bivarpdf($E67,AU$23,$G$6) -> 0.02662780249 | AV67: =bivarpdf($E67,AV$23,$G$6) -> 0.02299049516 | AW67: =bivarpdf($E67,AW$23,$G$6) -> 0.01964433909 | AX67: =bivarpdf($E67,AX$23,$G$6) -> 0.01661126163 | AY67: =bivarpdf($E67,AY$23,$G$6) -> 0.01390093184 | AZ67: =bivarpdf($E67,AZ$23,$G$6) -> 0.01151227906 | BA67: =bivarpdf($E67,BA$23,$G$6) -> 0.009435280202 | BB67: =bivarpdf($E67,BB$23,$G$6) -> 0.007652871038 | BC67: =bivarpdf($E67,BC$23,$G$6) -> 0.006142852494 | BD67: =bivarpdf($E67,BD$23,$G$6) -> 0.004879686014 | BE67: =bivarpdf($E67,BE$23,$G$6) -> 0.003836098661 | BF67: =bivarpdf($E67,BF$23,$G$6) -> 0.002984446223 | BG67: =bivarpdf($E67,BG$23,$G$6) -> 0.002297808578 | BH67: =bivarpdf($E67,BH$23,$G$6) -> 0.001750814094 | BI67: =bivarpdf($E67,BI$23,$G$6) -> 0.001320207881 | BJ67: =bivarpdf($E67,BJ$23,$G$6) -> 0.0009851916152 | BK67: =bivarpdf($E67,BK$23,$G$6) -> 0.0007275706847 | BL67: =bivarpdf($E67,BL$23,$G$6) -> 0.0005317478915 | BM67: =bivarpdf($E67,BM$23,$G$6) -> 0.0003846028162 | BN67: =bivarpdf($E67,BN$23,$G$6) -> 0.0002752930469
E68: -1.4 | F68: =bivarpdf($E68,F$23,$G$6) -> 0.001292988074 | G68: =bivarpdf($E68,G$23,$G$6) -> 0.00170758634 | H68: =bivarpdf($E68,H$23,$G$6) -> 0.002231757094 | I68: =bivarpdf($E68,I$23,$G$6) -> 0.002886604438 | J68: =bivarpdf($E68,J$23,$G$6) -> 0.003694908816 | K68: =bivarpdf($E68,K$23,$G$6) -> 0.004680543379 | L68: =bivarpdf($E68,L$23,$G$6) -> 0.005867659761 | M68: =bivarpdf($E68,M$23,$G$6) -> 0.007279636113 | N68: =bivarpdf($E68,N$23,$G$6) -> 0.00893779764 | O68: =bivarpdf($E68,O$23,$G$6) -> 0.01085994094 | P68: =bivarpdf($E68,P$23,$G$6) -> 0.01305871695 | Q68: =bivarpdf($E68,Q$23,$G$6) -> 0.01553995128 | R68: =bivarpdf($E68,R$23,$G$6) -> 0.01830100317 | S68: =bivarpdf($E68,S$23,$G$6) -> 0.02132928213 | T68: =bivarpdf($E68,T$23,$G$6) -> 0.02460105209 | U68: =bivarpdf($E68,U$23,$G$6) -> 0.0280806542 | V68: =bivarpdf($E68,V$23,$G$6) -> 0.03172026898 | W68: =bivarpdf($E68,W$23,$G$6) -> 0.03546031592 | X68: =bivarpdf($E68,X$23,$G$6) -> 0.03923055379 | Y68: =bivarpdf($E68,Y$23,$G$6) -> 0.04295189964 | Z68: =bivarpdf($E68,Z$23,$G$6) -> 0.04653893201 | AA68: =bivarpdf($E68,AA$23,$G$6) -> 0.04990298779 | AB68: =bivarpdf($E68,AB$23,$G$6) -> 0.05295570855 | AC68: =bivarpdf($E68,AC$23,$G$6) -> 0.05561284556 | AD68: =bivarpdf($E68,AD$23,$G$6) -> 0.05779809846 | AE68: =bivarpdf($E68,AE$23,$G$6) -> 0.0594467454 | AF68: =bivarpdf($E68,AF$23,$G$6) -> 0.06050882425 | AG68: =bivarpdf($E68,AG$23,$G$6) -> 0.06095164693 | AH68: =bivarpdf($E68,AH$23,$G$6) -> 0.06076147034 | AI68: =bivarpdf($E68,AI$23,$G$6) -> 0.05994420482 | AJ68: =bivarpdf($E68,AJ$23,$G$6) -> 0.05852510904 | AK68: =bivarpdf($E68,AK$23,$G$6) -> 0.05654749342 | AL68: =bivarpdf($E68,AL$23,$G$6) -> 0.05407052483 | AM68: =bivarpdf($E68,AM$23,$G$6) -> 0.05116628794 | AN68: =bivarpdf($E68,AN$23,$G$6) -> 0.0479163066 | AO68: =bivarpdf($E68,AO$23,$G$6) -> 0.04440775915 | AP68: =bivarpdf($E68,AP$23,$G$6) -> 0.04072963159 | AQ68: =bivarpdf($E68,AQ$23,$G$6) -> 0.03696904262 | AR68: =bivarpdf($E68,AR$23,$G$6) -> 0.03320794684 | AS68: =bivarpdf($E68,AS$23,$G$6) -> 0.02952038012 | AT68: =bivarpdf($E68,AT$23,$G$6) -> 0.02597035971 | AU68: =bivarpdf($E68,AU$23,$G$6) -> 0.0226104957 | AV68: =bivarpdf($E68,AV$23,$G$6) -> 0.01948131647 | AW68: =bivarpdf($E68,AW$23,$G$6) -> 0.01661126163 | AX68: =bivarpdf($E68,AX$23,$G$6) -> 0.01401725695 | AY68: =bivarpdf($E68,AY$23,$G$6) -> 0.01170575822 | AZ68: =bivarpdf($E68,AZ$23,$G$6) -> 0.009674135457 | BA68: =bivarpdf($E68,BA$23,$G$6) -> 0.00791226597 | BB68: =bivarpdf($E68,BB$23,$G$6) -> 0.006404211857 | BC68: =bivarpdf($E68,BC$23,$G$6) -> 0.005129872866 | BD68: =bivarpdf($E68,BD$23,$G$6) -> 0.004066526559 | BE68: =bivarpdf($E68,BE$23,$G$6) -> 0.003190191277 | BF68: =bivarpdf($E68,BF$23,$G$6) -> 0.002476771448 | BG68: =bivarpdf($E68,BG$23,$G$6) -> 0.001902966929 | BH68: =bivarpdf($E68,BH$23,$G$6) -> 0.001446947083 | BI68: =bivarpdf($E68,BI$23,$G$6) -> 0.001088805122 | BJ68: =bivarpdf($E68,BJ$23,$G$6) -> 0.0008108187088 | BK68: =bivarpdf($E68,BK$23,$G$6) -> 0.0005975489203 | BL68: =bivarpdf($E68,BL$23,$G$6) -> 0.0004358120862 | BM68: =bivarpdf($E68,BM$23,$G$6) -> 0.0003145583177 | BN68: =bivarpdf($E68,BN$23,$G$6) -> 0.0002246876365
E69: -1.5 | F69: =bivarpdf($E69,F$23,$G$6) -> 0.001183426696 | G69: =bivarpdf($E69,G$23,$G$6) -> 0.001559641327 | H69: =bivarpdf($E69,H$23,$G$6) -> 0.002034155767 | I69: =bivarpdf($E69,I$23,$G$6) -> 0.002625546881 | J69: =bivarpdf($E69,J$23,$G$6) -> 0.003353755882 | K69: =bivarpdf($E69,K$23,$G$6) -> 0.004239544679 | L69: =bivarpdf($E69,L$23,$G$6) -> 0.00530375049 | M69: =bivarpdf($E69,M$23,$G$6) -> 0.006566335252 | N69: =bivarpdf($E69,N$23,$G$6) -> 0.008045242126 | O69: =bivarpdf($E69,O$23,$G$6) -> 0.009755090095 | P69: =bivarpdf($E69,P$23,$G$6) -> 0.01170575822 | Q69: =bivarpdf($E69,Q$23,$G$6) -> 0.01390093184 | R69: =bivarpdf($E69,R$23,$G$6) -> 0.01633670162 | S69: =bivarpdf($E69,S$23,$G$6) -> 0.01900032105 | T69: =bivarpdf($E69,T$23,$G$6) -> 0.02186923548 | U69: =bivarpdf($E69,U$23,$G$6) -> 0.02491049523 | V69: =bivarpdf($E69,V$23,$G$6) -> 0.0280806542 | W69: =bivarpdf($E69,W$23,$G$6) -> 0.03132623347 | X69: =bivarpdf($E69,X$23,$G$6) -> 0.0345847976 | Y69: =bivarpdf($E69,Y$23,$G$6) -> 0.03778665041 | Z69: =bivarpdf($E69,Z$23,$G$6) -> 0.04085711077 | AA69: =bivarpdf($E69,AA$23,$G$6) -> 0.04371928066 | AB69: =bivarpdf($E69,AB$23,$G$6) -> 0.04629717187 | AC69: =bivarpdf($E69,AC$23,$G$6) -> 0.04851901954 | AD69: =bivarpdf($E69,AD$23,$G$6) -> 0.05032058359 | AE69: =bivarpdf($E69,AE$23,$G$6) -> 0.05164822745 | AF69: =bivarpdf($E69,AF$23,$G$6) -> 0.05246156869 | AG69: =bivarpdf($E69,AG$23,$G$6) -> 0.05273551881 | AH69: =bivarpdf($E69,AH$23,$G$6) -> 0.05246156869 | AI69: =bivarpdf($E69,AI$23,$G$6) -> 0.05164822745 | AJ69: =bivarpdf($E69,AJ$23,$G$6) -> 0.05032058359 | AK69: =bivarpdf($E69,AK$23,$G$6) -> 0.04851901954 | AL69: =bivarpdf($E69,AL$23,$G$6) -> 0.04629717187 | AM69: =bivarpdf($E69,AM$23,$G$6) -> 0.04371928066 | AN69: =bivarpdf($E69,AN$23,$G$6) -> 0.04085711077 | AO69: =bivarpdf($E69,AO$23,$G$6) -> 0.03778665041 | AP69: =bivarpdf($E69,AP$23,$G$6) -> 0.0345847976 | AQ69: =bivarpdf($E69,AQ$23,$G$6) -> 0.03132623347 | AR69: =bivarpdf($E69,AR$23,$G$6) -> 0.0280806542 | AS69: =bivarpdf($E69,AS$23,$G$6) -> 0.02491049523 | AT69: =bivarpdf($E69,AT$23,$G$6) -> 0.02186923548 | AU69: =bivarpdf($E69,AU$23,$G$6) -> 0.01900032105 | AV69: =bivarpdf($E69,AV$23,$G$6) -> 0.01633670162 | AW69: =bivarpdf($E69,AW$23,$G$6) -> 0.01390093184 | AX69: =bivarpdf($E69,AX$23,$G$6) -> 0.01170575822 | AY69: =bivarpdf($E69,AY$23,$G$6) -> 0.009755090095 | AZ69: =bivarpdf($E69,AZ$23,$G$6) -> 0.008045242126 | BA69: =bivarpdf($E69,BA$23,$G$6) -> 0.006566335252 | BB69: =bivarpdf($E69,BB$23,$G$6) -> 0.00530375049 | BC69: =bivarpdf($E69,BC$23,$G$6) -> 0.004239544679 | BD69: =bivarpdf($E69,BD$23,$G$6) -> 0.003353755882 | BE69: =bivarpdf($E69,BE$23,$G$6) -> 0.002625546881 | BF69: =bivarpdf($E69,BF$23,$G$6) -> 0.002034155767 | BG69: =bivarpdf($E69,BG$23,$G$6) -> 0.001559641327 | BH69: =bivarpdf($E69,BH$23,$G$6) -> 0.001183426696 | BI69: =bivarpdf($E69,BI$23,$G$6) -> 0.0008886568411 | BJ69: =bivarpdf($E69,BJ$23,$G$6) -> 0.0006603936889 | BK69: =bivarpdf($E69,BK$23,$G$6) -> 0.0004856773375 | BL69: =bivarpdf($E69,BL$23,$G$6) -> 0.0003534832693 | BM69: =bivarpdf($E69,BM$23,$G$6) -> 0.0002546044477 | BN69: =bivarpdf($E69,BN$23,$G$6) -> 0.0001814843617
E70: -1.6 | F70: =bivarpdf($E70,F$23,$G$6) -> 0.001071924763 | G70: =bivarpdf($E70,G$23,$G$6) -> 0.001409752574 | H70: =bivarpdf($E70,H$23,$G$6) -> 0.001834837417 | I70: =bivarpdf($E70,I$23,$G$6) -> 0.002363351826 | J70: =bivarpdf($E70,J$23,$G$6) -> 0.00301255697 | K70: =bivarpdf($E70,K$23,$G$6) -> 0.003800303289 | L70: =bivarpdf($E70,L$23,$G$6) -> 0.004744356832 | M70: =bivarpdf($E70,M$23,$G$6) -> 0.005861550798 | N70: =bivarpdf($E70,N$23,$G$6) -> 0.007166775816 | O70: =bivarpdf($E70,O$23,$G$6) -> 0.008671838978 | P70: =bivarpdf($E70,P$23,$G$6) -> 0.01038423935 | Q70: =bivarpdf($E70,Q$23,$G$6) -> 0.01230592528 | R70: =bivarpdf($E70,R$23,$G$6) -> 0.0144321142 | S70: =bivarpdf($E70,S$23,$G$6) -> 0.01675026719 | T70: =bivarpdf($E70,T$23,$G$6) -> 0.01923931567 | U70: =bivarpdf($E70,U$23,$G$6) -> 0.02186923548 | V70: =bivarpdf($E70,V$23,$G$6) -> 0.02460105209 | W70: =bivarpdf($E70,W$23,$G$6) -> 0.02738734037 | X70: =bivarpdf($E70,X$23,$G$6) -> 0.03017325321 | Y70: =bivarpdf($E70,Y$23,$G$6) -> 0.03289807712 | Z70: =bivarpdf($E70,Z$23,$G$6) -> 0.035497273 | AA70: =bivarpdf($E70,AA$23,$G$6) -> 0.03790491839 | AB70: =bivarpdf($E70,AB$23,$G$6) -> 0.04005643 | AC70: =bivarpdf($E70,AC$23,$G$6) -> 0.04189141346 | AD70: =bivarpdf($E70,AD$23,$G$6) -> 0.04335646714 | AE70: =bivarpdf($E70,AE$23,$G$6) -> 0.04440775915 | AF70: =bivarpdf($E70,AF$23,$G$6) -> 0.04501320434 | AG70: =bivarpdf($E70,AG$23,$G$6) -> 0.04515409062 | AH70: =bivarpdf($E70,AH$23,$G$6) -> 0.04482603952 | AI70: =bivarpdf($E70,AI$23,$G$6) -> 0.04403923215 | AJ70: =bivarpdf($E70,AJ$23,$G$6) -> 0.04281788446 | AK70: =bivarpdf($E70,AK$23,$G$6) -> 0.0411990093 | AL70: =bivarpdf($E70,AL$23,$G$6) -> 0.03923055379 | AM70: =bivarpdf($E70,AM$23,$G$6) -> 0.03696904262 | AN70: =bivarpdf($E70,AN$23,$G$6) -> 0.0344768888 | AO70: =bivarpdf($E70,AO$23,$G$6) -> 0.03181954986 | AP70: =bivarpdf($E70,AP$23,$G$6) -> 0.02906270905 | AQ70: =bivarpdf($E70,AQ$23,$G$6) -> 0.02626964815 | AR70: =bivarpdf($E70,AR$23,$G$6) -> 0.02349895322 | AS70: =bivarpdf($E70,AS$23,$G$6) -> 0.02080266028 | AT70: =bivarpdf($E70,AT$23,$G$6) -> 0.01822490763 | AU70: =bivarpdf($E70,AU$23,$G$6) -> 0.01580112084 | AV70: =bivarpdf($E70,AV$23,$G$6) -> 0.01355771661 | AW70: =bivarpdf($E70,AW$23,$G$6) -> 0.01151227906 | AX70: =bivarpdf($E70,AX$23,$G$6) -> 0.009674135457 | AY70: =bivarpdf($E70,AY$23,$G$6) -> 0.008045242126 | AZ70: =bivarpdf($E70,AZ$23,$G$6) -> 0.006621283344 | BA70: =bivarpdf($E70,BA$23,$G$6) -> 0.005392887073 | BB70: =bivarpdf($E70,BB$23,$G$6) -> 0.004346869264 | BC70: =bivarpdf($E70,BC$23,$G$6) -> 0.003467431818 | BD70: =bivarpdf($E70,BD$23,$G$6) -> 0.002737255775 | BE70: =bivarpdf($E70,BE$23,$G$6) -> 0.002138449164 | BF70: =bivarpdf($E70,BF$23,$G$6) -> 0.00165332632 | BG70: =bivarpdf($E70,BG$23,$G$6) -> 0.001265011074 | BH70: =bivarpdf($E70,BH$23,$G$6) -> 0.0009578691246 | BI70: =bivarpdf($E70,BI$23,$G$6) -> 0.0007177845747 | BJ70: =bivarpdf($E70,BJ$23,$G$6) -> 0.0005323020841 | BK70: =bivarpdf($E70,BK$23,$G$6) -> 0.0003906594292 | BL70: =bivarpdf($E70,BL$23,$G$6) -> 0.0002837360739 | BM70: =bivarpdf($E70,BM$23,$G$6) -> 0.0002039421052 | BN70: =bivarpdf($E70,BN$23,$G$6) -> 0.0001450692414
E71: -1.7 | F71: =bivarpdf($E71,F$23,$G$6) -> 0.0009608671476 | G71: =bivarpdf($E71,G$23,$G$6) -> 0.001261064085 | H71: =bivarpdf($E71,H$23,$G$6) -> 0.001637898815 | I71: =bivarpdf($E71,I$23,$G$6) -> 0.002105295582 | J71: =bivarpdf($E71,J$23,$G$6) -> 0.002678028465 | K71: =bivarpdf($E71,K$23,$G$6) -> 0.003371268927 | L71: =bivarpdf($E71,L$23,$G$6) -> 0.004199984675 | M71: =bivarpdf($E71,M$23,$G$6) -> 0.005178191565 | N71: =bivarpdf($E71,N$23,$G$6) -> 0.006318072705 | O71: =bivarpdf($E71,O$23,$G$6) -> 0.007628993145 | P71: =bivarpdf($E71,P$23,$G$6) -> 0.00911645367 | Q71: =bivarpdf($E71,Q$23,$G$6) -> 0.01078104188 | R71: =bivarpdf($E71,R$23,$G$6) -> 0.01261745126 | S71: =bivarpdf($E71,S$23,$G$6) -> 0.01461364785 | T71: =bivarpdf($E71,T$23,$G$6) -> 0.01675026719 | U71: =bivarpdf($E71,U$23,$G$6) -> 0.01900032105 | V71: =bivarpdf($E71,V$23,$G$6) -> 0.02132928213 | W71: =bivarpdf($E71,W$23,$G$6) -> 0.02369559604 | X71: =bivarpdf($E71,X$23,$G$6) -> 0.02605164402 | Y71: =bivarpdf($E71,Y$23,$G$6) -> 0.02834514821 | Z71: =bivarpdf($E71,Z$23,$G$6) -> 0.03052097676 | AA71: =bivarpdf($E71,AA$23,$G$6) -> 0.03252327141 | AB71: =bivarpdf($E71,AB$23,$G$6) -> 0.03429778849 | AC71: =bivarpdf($E71,AC$23,$G$6) -> 0.03579431958 | AD71: =bivarpdf($E71,AD$23,$G$6) -> 0.03696904262 | AE71: =bivarpdf($E71,AE$23,$G$6) -> 0.03778665041 | AF71: =bivarpdf($E71,AF$23,$G$6) -> 0.03822211252 | AG71: =bivarpdf($E71,AG$23,$G$6) -> 0.03826194796 | AH71: =bivarpdf($E71,AH$23,$G$6) -> 0.03790491839 | AI71: =bivarpdf($E71,AI$23,$G$6) -> 0.03716209201 | AJ71: =bivarpdf($E71,AJ$23,$G$6) -> 0.03605627371 | AK71: =bivarpdf($E71,AK$23,$G$6) -> 0.0346208422 | AL71: =bivarpdf($E71,AL$23,$G$6) -> 0.03289807712 | AM71: =bivarpdf($E71,AM$23,$G$6) -> 0.03093709275 | AN71: =bivarpdf($E71,AN$23,$G$6) -> 0.02879151934 | AO71: =bivarpdf($E71,AO$23,$G$6) -> 0.02651708414 | AP71: =bivarpdf($E71,AP$23,$G$6) -> 0.02416924305 | AQ71: =bivarpdf($E71,AQ$23,$G$6) -> 0.02180100079 | AR71: =bivarpdf($E71,AR$23,$G$6) -> 0.019461034 | AS71: =bivarpdf($E71,AS$23,$G$6) -> 0.01719220144 | AT71: =bivarpdf($E71,AT$23,$G$6) -> 0.01503049108 | AU71: =bivarpdf($E71,AU$23,$G$6) -> 0.01300441883 | AV71: =bivarpdf($E71,AV$23,$G$6) -> 0.01113486166 | AW71: =bivarpdf($E71,AW$23,$G$6) -> 0.009435280202 | AX71: =bivarpdf($E71,AX$23,$G$6) -> 0.00791226597 | AY71: =bivarpdf($E71,AY$23,$G$6) -> 0.006566335252 | AZ71: =bivarpdf($E71,AZ$23,$G$6) -> 0.005392887073 | BA71: =bivarpdf($E71,BA$23,$G$6) -> 0.004383244527 | BB71: =bivarpdf($E71,BB$23,$G$6) -> 0.003525706623 | BC71: =bivarpdf($E71,BC$23,$G$6) -> 0.002806549735 | BD71: =bivarpdf($E71,BD$23,$G$6) -> 0.002210932141 | BE71: =bivarpdf($E71,BE$23,$G$6) -> 0.001723670238 | BF71: =bivarpdf($E71,BF$23,$G$6) -> 0.001329869579 | BG71: =bivarpdf($E71,BG$23,$G$6) -> 0.001015406688 | BH71: =bivarpdf($E71,BH$23,$G$6) -> 0.0007672680014 | BI71: =bivarpdf($E71,BI$23,$G$6) -> 0.00057375998 | BJ71: =bivarpdf($E71,BJ$23,$G$6) -> 0.0004246093156 | BK71: =bivarpdf($E71,BK$23,$G$6) -> 0.0003109745747 | BL71: =bivarpdf($E71,BL$23,$G$6) -> 0.0002253908836 | BM71: =bivarpdf($E71,BM$23,$G$6) -> 0.0001616679417 | BN71: =bivarpdf($E71,BN$23,$G$6) -> 0.0001147592155
E72: -1.8 | F72: =bivarpdf($E72,F$23,$G$6) -> 0.000852390273 | G72: =bivarpdf($E72,G$23,$G$6) -> 0.001116368355 | H72: =bivarpdf($E72,H$23,$G$6) -> 0.001446947083 | I72: =bivarpdf($E72,I$23,$G$6) -> 0.001855982508 | J72: =bivarpdf($E72,J$23,$G$6) -> 0.002355977879 | K72: =bivarpdf($E72,K$23,$G$6) -> 0.002959679178 | L72: =bivarpdf($E72,L$23,$G$6) -> 0.003679545392 | M72: =bivarpdf($E72,M$23,$G$6) -> 0.004527096915 | N72: =bivarpdf($E72,N$23,$G$6) -> 0.005512156228 | O72: =bivarpdf($E72,O$23,$G$6) -> 0.006642007219 | P72: =bivarpdf($E72,P$23,$G$6) -> 0.007920512208 | Q72: =bivarpdf($E72,Q$23,$G$6) -> 0.009347237794 | R72: =bivarpdf($E72,R$23,$G$6) -> 0.01091665069 | S72: =bivarpdf($E72,S$23,$G$6) -> 0.01261745126 | T72: =bivarpdf($E72,T$23,$G$6) -> 0.0144321142 | U72: =bivarpdf($E72,U$23,$G$6) -> 0.01633670162 | V72: =bivarpdf($E72,V$23,$G$6) -> 0.01830100317 | W72: =bivarpdf($E72,W$23,$G$6) -> 0.02028904077 | X72: =bivarpdf($E72,X$23,$G$6) -> 0.02225995245 | Y72: =bivarpdf($E72,Y$23,$G$6) -> 0.02416924305 | Z72: =bivarpdf($E72,Z$23,$G$6) -> 0.02597035971 | AA72: =bivarpdf($E72,AA$23,$G$6) -> 0.02761652181 | AB72: =bivarpdf($E72,AB$23,$G$6) -> 0.02906270905 | AC72: =bivarpdf($E72,AC$23,$G$6) -> 0.03026769211 | AD72: =bivarpdf($E72,AD$23,$G$6) -> 0.03119597905 | AE72: =bivarpdf($E72,AE$23,$G$6) -> 0.03181954986 | AF72: =bivarpdf($E72,AF$23,$G$6) -> 0.03211926084 | AG72: =bivarpdf($E72,AG$23,$G$6) -> 0.0320858207 | AH72: =bivarpdf($E72,AH$23,$G$6) -> 0.03172026898 | AI72: =bivarpdf($E72,AI$23,$G$6) -> 0.03103392238 | AJ72: =bivarpdf($E72,AJ$23,$G$6) -> 0.03004779287 | AK72: =bivarpdf($E72,AK$23,$G$6) -> 0.02879151934 | AL72: =bivarpdf($E72,AL$23,$G$6) -> 0.02730188852 | AM72: =bivarpdf($E72,AM$23,$G$6) -> 0.02562104822 | AN72: =bivarpdf($E72,AN$23,$G$6) -> 0.02379453367 | AO72: =bivarpdf($E72,AO$23,$G$6) -> 0.02186923548 | AP72: =bivarpdf($E72,AP$23,$G$6) -> 0.01989143446 | AQ72: =bivarpdf($E72,AQ$23,$G$6) -> 0.01790501563 | AR72: =bivarpdf($E72,AR$23,$G$6) -> 0.0159499529 | AS72: =bivarpdf($E72,AS$23,$G$6) -> 0.01406112939 | AT72: =bivarpdf($E72,AT$23,$G$6) -> 0.01226752929 | AU72: =bivarpdf($E72,AU$23,$G$6) -> 0.01059180805 | AV72: =bivarpdf($E72,AV$23,$G$6) -> 0.009050221294 | AW72: =bivarpdf($E72,AW$23,$G$6) -> 0.007652871038 | AX72: =bivarpdf($E72,AX$23,$G$6) -> 0.006404211857 | AY72: =bivarpdf($E72,AY$23,$G$6) -> 0.00530375049 | AZ72: =bivarpdf($E72,AZ$23,$G$6) -> 0.004346869264 | BA72: =bivarpdf($E72,BA$23,$G$6) -> 0.003525706623 | BB72: =bivarpdf($E72,BB$23,$G$6) -> 0.00283003537 | BC72: =bivarpdf($E72,BC$23,$G$6) -> 0.002248089797 | BD72: =bivarpdf($E72,BD$23,$G$6) -> 0.001767305157 | BE72: =bivarpdf($E72,BE$23,$G$6) -> 0.001374945659 | BF72: =bivarpdf($E72,BF$23,$G$6) -> 0.0010586091 | BG72: =bivarpdf($E72,BG$23,$G$6) -> 0.0008066066731 | BH72: =bivarpdf($E72,BH$23,$G$6) -> 0.0006082247625 | BI72: =bivarpdf($E72,BI$23,$G$6) -> 0.0004538815021 | BJ72: =bivarpdf($E72,BJ$23,$G$6) -> 0.0003351945654 | BK72: =bivarpdf($E72,BK$23,$G$6) -> 0.0002449782641 | BL72: =bivarpdf($E72,BL$23,$G$6) -> 0.0001771879716 | BM72: =bivarpdf($E72,BM$23,$G$6) -> 0.0001268285476 | BN72: =bivarpdf($E72,BN$23,$G$6) -> 8.98412738e-05
E73: -1.9 | F73: =bivarpdf($E73,F$23,$G$6) -> 0.000748324087 | G73: =bivarpdf($E73,G$23,$G$6) -> 0.0009780340534 | H73: =bivarpdf($E73,H$23,$G$6) -> 0.001265011074 | I73: =bivarpdf($E73,I$23,$G$6) -> 0.001619238337 | J73: =bivarpdf($E73,J$23,$G$6) -> 0.002051177892 | K73: =bivarpdf($E73,K$23,$G$6) -> 0.002571413831 | L73: =bivarpdf($E73,L$23,$G$6) -> 0.003190191277 | M73: =bivarpdf($E73,M$23,$G$6) -> 0.003916855681 | N73: =bivarpdf($E73,N$23,$G$6) -> 0.004759206138 | O73: =bivarpdf($E73,O$23,$G$6) -> 0.005722786725 | P73: =bivarpdf($E73,P$23,$G$6) -> 0.006810150432 | Q73: =bivarpdf($E73,Q$23,$G$6) -> 0.008020139987 | R73: =bivarpdf($E73,R$23,$G$6) -> 0.009347237794 | S73: =bivarpdf($E73,S$23,$G$6) -> 0.01078104188 | T73: =bivarpdf($E73,T$23,$G$6) -> 0.01230592528 | U73: =bivarpdf($E73,U$23,$G$6) -> 0.01390093184 | V73: =bivarpdf($E73,V$23,$G$6) -> 0.01553995128 | W73: =bivarpdf($E73,W$23,$G$6) -> 0.01719220144 | X73: =bivarpdf($E73,X$23,$G$6) -> 0.01882302541 | Y73: =bivarpdf($E73,Y$23,$G$6) -> 0.02039498852 | Z73: =bivarpdf($E73,Z$23,$G$6) -> 0.02186923548 | AA73: =bivarpdf($E73,AA$23,$G$6) -> 0.02320704454 | AB73: =bivarpdf($E73,AB$23,$G$6) -> 0.02437149496 | AC73: =bivarpdf($E73,AC$23,$G$6) -> 0.02532914924 | AD73: =bivarpdf($E73,AD$23,$G$6) -> 0.02605164402 | AE73: =bivarpdf($E73,AE$23,$G$6) -> 0.02651708414 | AF73: =bivarpdf($E73,AF$23,$G$6) -> 0.02671114453 | AG73: =bivarpdf($E73,AG$23,$G$6) -> 0.02662780249 | AH73: =bivarpdf($E73,AH$23,$G$6) -> 0.02626964815 | AI73: =bivarpdf($E73,AI$23,$G$6) -> 0.02564775072 | AJ73: =bivarpdf($E73,AJ$23,$G$6) -> 0.02478109035 | AK73: =bivarpdf($E73,AK$23,$G$6) -> 0.02369559604 | AL73: =bivarpdf($E73,AL$23,$G$6) -> 0.02242285781 | AM73: =bivarpdf($E73,AM$23,$G$6) -> 0.02099860226 | AN73: =bivarpdf($E73,AN$23,$G$6) -> 0.019461034 | AO73: =bivarpdf($E73,AO$23,$G$6) -> 0.01784914979 | AP73: =bivarpdf($E73,AP$23,$G$6) -> 0.01620112811 | AQ73: =bivarpdf($E73,AQ$23,$G$6) -> 0.01455288433 | AR73: =bivarpdf($E73,AR$23,$G$6) -> 0.01293686356 | AS73: =bivarpdf($E73,AS$23,$G$6) -> 0.01138112039 | AT73: =bivarpdf($E73,AT$23,$G$6) -> 0.009908710411 | AU73: =bivarpdf($E73,AU$23,$G$6) -> 0.008537394576 | AV73: =bivarpdf($E73,AV$23,$G$6) -> 0.007279636113 | AW73: =bivarpdf($E73,AW$23,$G$6) -> 0.006142852494 | AX73: =bivarpdf($E73,AX$23,$G$6) -> 0.005129872866 | AY73: =bivarpdf($E73,AY$23,$G$6) -> 0.004239544679 | AZ73: =bivarpdf($E73,AZ$23,$G$6) -> 0.003467431818 | BA73: =bivarpdf($E73,BA$23,$G$6) -> 0.002806549735 | BB73: =bivarpdf($E73,BB$23,$G$6) -> 0.002248089797 | BC73: =bivarpdf($E73,BC$23,$G$6) -> 0.001782094236 | BD73: =bivarpdf($E73,BD$23,$G$6) -> 0.00139805345 | BE73: =bivarpdf($E73,BE$23,$G$6) -> 0.001085407917 | BF73: =bivarpdf($E73,BF$23,$G$6) -> 0.0008339466978 | BG73: =bivarpdf($E73,BG$23,$G$6) -> 0.0006341028438 | BH73: =bivarpdf($E73,BH$23,$G$6) -> 0.0004771525044 | BI73: =bivarpdf($E73,BI$23,$G$6) -> 0.0003553291307 | BJ73: =bivarpdf($E73,BJ$23,$G$6) -> 0.0002618668466 | BK73: =bivarpdf($E73,BK$23,$G$6) -> 0.0001909881063 | BL73: =bivarpdf($E73,BL$23,$G$6) -> 0.000137850462 | BM73: =bivarpdf($E73,BM$23,$G$6) -> 9.846598469e-05 | BN73: =bivarpdf($E73,BN$23,$G$6) -> 6.960498271e-05
E74: -2 | F74: =bivarpdf($E74,F$23,$G$6) -> 0.0006501552337 | G74: =bivarpdf($E74,G$23,$G$6) -> 0.0008479622815 | H74: =bivarpdf($E74,H$23,$G$6) -> 0.001094490775 | I74: =bivarpdf($E74,I$23,$G$6) -> 0.00139805345 | J74: =bivarpdf($E74,J$23,$G$6) -> 0.001767305157 | K74: =bivarpdf($E74,K$23,$G$6) -> 0.002210932141 | L74: =bivarpdf($E74,L$23,$G$6) -> 0.002737255775 | M74: =bivarpdf($E74,M$23,$G$6) -> 0.003353755882 | N74: =bivarpdf($E74,N$23,$G$6) -> 0.004066526559 | O74: =bivarpdf($E74,O$23,$G$6) -> 0.004879686014 | P74: =bivarpdf($E74,P$23,$G$6) -> 0.005794770521 | Q74: =bivarpdf($E74,Q$23,$G$6) -> 0.006810150432 | R74: =bivarpdf($E74,R$23,$G$6) -> 0.007920512208 | S74: =bivarpdf($E74,S$23,$G$6) -> 0.00911645367 | T74: =bivarpdf($E74,T$23,$G$6) -> 0.01038423935 | U74: =bivarpdf($E74,U$23,$G$6) -> 0.01170575822 | V74: =bivarpdf($E74,V$23,$G$6) -> 0.01305871695 | W74: =bivarpdf($E74,W$23,$G$6) -> 0.01441708858 | X74: =bivarpdf($E74,X$23,$G$6) -> 0.01575181941 | Y74: =bivarpdf($E74,Y$23,$G$6) -> 0.01703177772 | Z74: =bivarpdf($E74,Z$23,$G$6) -> 0.01822490763 | AA74: =bivarpdf($E74,AA$23,$G$6) -> 0.01929953257 | AB74: =bivarpdf($E74,AB$23,$G$6) -> 0.02022573648 | AC74: =bivarpdf($E74,AC$23,$G$6) -> 0.02097674011 | AD74: =bivarpdf($E74,AD$23,$G$6) -> 0.02153018441 | AE74: =bivarpdf($E74,AE$23,$G$6) -> 0.02186923548 | AF74: =bivarpdf($E74,AF$23,$G$6) -> 0.02198343488 | AG74: =bivarpdf($E74,AG$23,$G$6) -> 0.02186923548 | AH74: =bivarpdf($E74,AH$23,$G$6) -> 0.02153018441 | AI74: =bivarpdf($E74,AI$23,$G$6) -> 0.02097674011 | AJ74: =bivarpdf($E74,AJ$23,$G$6) -> 0.02022573648 | AK74: =bivarpdf($E74,AK$23,$G$6) -> 0.01929953257 | AL74: =bivarpdf($E74,AL$23,$G$6) -> 0.01822490763 | AM74: =bivarpdf($E74,AM$23,$G$6) -> 0.01703177772 | AN74: =bivarpdf($E74,AN$23,$G$6) -> 0.01575181941 | AO74: =bivarpdf($E74,AO$23,$G$6) -> 0.01441708858 | AP74: =bivarpdf($E74,AP$23,$G$6) -> 0.01305871695 | AQ74: =bivarpdf($E74,AQ$23,$G$6) -> 0.01170575822 | AR74: =bivarpdf($E74,AR$23,$G$6) -> 0.01038423935 | AS74: =bivarpdf($E74,AS$23,$G$6) -> 0.00911645367 | AT74: =bivarpdf($E74,AT$23,$G$6) -> 0.007920512208 | AU74: =bivarpdf($E74,AU$23,$G$6) -> 0.006810150432 | AV74: =bivarpdf($E74,AV$23,$G$6) -> 0.005794770521 | AW74: =bivarpdf($E74,AW$23,$G$6) -> 0.004879686014 | AX74: =bivarpdf($E74,AX$23,$G$6) -> 0.004066526559 | AY74: =bivarpdf($E74,AY$23,$G$6) -> 0.003353755882 | AZ74: =bivarpdf($E74,AZ$23,$G$6) -> 0.002737255775 | BA74: =bivarpdf($E74,BA$23,$G$6) -> 0.002210932141 | BB74: =bivarpdf($E74,BB$23,$G$6) -> 0.001767305157 | BC74: =bivarpdf($E74,BC$23,$G$6) -> 0.00139805345 | BD74: =bivarpdf($E74,BD$23,$G$6) -> 0.001094490775 | BE74: =bivarpdf($E74,BE$23,$G$6) -> 0.0008479622815 | BF74: =bivarpdf($E74,BF$23,$G$6) -> 0.0006501552337 | BG74: =bivarpdf($E74,BG$23,$G$6) -> 0.0004933256427 | BH74: =bivarpdf($E74,BH$23,$G$6) -> 0.0003704472856 | BI74: =bivarpdf($E74,BI$23,$G$6) -> 0.0002752930469 | BJ74: =bivarpdf($E74,BJ$23,$G$6) -> 0.0002024604358 | BK74: =bivarpdf($E74,BK$23,$G$6) -> 0.0001473537496 | BL74: =bivarpdf($E74,BL$23,$G$6) -> 0.0001061349243 | BM74: =bivarpdf($E74,BM$23,$G$6) -> 7.565393758e-05 | BN74: =bivarpdf($E74,BN$23,$G$6) -> 5.336799147e-05
E75: -2.1 | F75: =bivarpdf($E75,F$23,$G$6) -> 0.0005590111889 | G75: =bivarpdf($E75,G$23,$G$6) -> 0.0007275706847 | H75: =bivarpdf($E75,H$23,$G$6) -> 0.0009371432532 | I75: =bivarpdf($E75,I$23,$G$6) -> 0.00119457349 | J75: =bivarpdf($E75,J$23,$G$6) -> 0.001506939656 | K75: =bivarpdf($E75,K$23,$G$6) -> 0.001881286547 | L75: =bivarpdf($E75,L$23,$G$6) -> 0.002324289056 | M75: =bivarpdf($E75,M$23,$G$6) -> 0.002841851785 | N75: =bivarpdf($E75,N$23,$G$6) -> 0.003438656616 | O75: =bivarpdf($E75,O$23,$G$6) -> 0.004117677167 | P75: =bivarpdf($E75,P$23,$G$6) -> 0.004879686014 | Q75: =bivarpdf($E75,Q$23,$G$6) -> 0.005722786725 | R75: =bivarpdf($E75,R$23,$G$6) -> 0.006642007219 | S75: =bivarpdf($E75,S$23,$G$6) -> 0.007628993145 | T75: =bivarpdf($E75,T$23,$G$6) -> 0.008671838978 | U75: =bivarpdf($E75,U$23,$G$6) -> 0.009755090095 | V75: =bivarpdf($E75,V$23,$G$6) -> 0.01085994094 | W75: =bivarpdf($E75,W$23,$G$6) -> 0.01196464291 | X75: =bivarpdf($E75,X$23,$G$6) -> 0.0130451212 | Y75: =bivarpdf($E75,Y$23,$G$6) -> 0.01407578403 | Z75: =bivarpdf($E75,Z$23,$G$6) -> 0.01503049108 | AA75: =bivarpdf($E75,AA$23,$G$6) -> 0.01588363303 | AB75: =bivarpdf($E75,AB$23,$G$6) -> 0.01661126163 | AC75: =bivarpdf($E75,AC$23,$G$6) -> 0.01719220144 | AD75: =bivarpdf($E75,AD$23,$G$6) -> 0.01760907175 | AE75: =bivarpdf($E75,AE$23,$G$6) -> 0.01784914979 | AF75: =bivarpdf($E75,AF$23,$G$6) -> 0.01790501563 | AG75: =bivarpdf($E75,AG$23,$G$6) -> 0.01777493306 | AH75: =bivarpdf($E75,AH$23,$G$6) -> 0.01746293922 | AI75: =bivarpdf($E75,AI$23,$G$6) -> 0.01697863649 | AJ75: =bivarpdf($E75,AJ$23,$G$6) -> 0.01633670162 | AK75: =bivarpdf($E75,AK$23,$G$6) -> 0.01555614716 | AL75: =bivarpdf($E75,AL$23,$G$6) -> 0.01465938693 | AM75: =bivarpdf($E75,AM$23,$G$6) -> 0.01367116964 | AN75: =bivarpdf($E75,AN$23,$G$6) -> 0.01261745126 | AO75: =bivarpdf($E75,AO$23,$G$6) -> 0.01152427726 | AP75: =bivarpdf($E75,AP$23,$G$6) -> 0.01041674086 | AQ75: =bivarpdf($E75,AQ$23,$G$6) -> 0.009318073269 | AR75: =bivarpdf($E75,AR$23,$G$6) -> 0.0082489084 | AS75: =bivarpdf($E75,AS$23,$G$6) -> 0.007226748487 | AT75: =bivarpdf($E75,AT$23,$G$6) -> 0.006265640868 | AU75: =bivarpdf($E75,AU$23,$G$6) -> 0.005376060605 | AV75: =bivarpdf($E75,AV$23,$G$6) -> 0.004564980351 | AW75: =bivarpdf($E75,AW$23,$G$6) -> 0.003836098661 | AX75: =bivarpdf($E75,AX$23,$G$6) -> 0.003190191277 | AY75: =bivarpdf($E75,AY$23,$G$6) -> 0.002625546881 | AZ75: =bivarpdf($E75,AZ$23,$G$6) -> 0.002138449164 | BA75: =bivarpdf($E75,BA$23,$G$6) -> 0.001723670238 | BB75: =bivarpdf($E75,BB$23,$G$6) -> 0.001374945659 | BC75: =bivarpdf($E75,BC$23,$G$6) -> 0.001085407917 | BD75: =bivarpdf($E75,BD$23,$G$6) -> 0.0008479622815 | BE75: =bivarpdf($E75,BE$23,$G$6) -> 0.0006555958317 | BF75: =bivarpdf($E75,BF$23,$G$6) -> 0.0005016166364 | BG75: =bivarpdf($E75,BG$23,$G$6) -> 0.0003798252033 | BH75: =bivarpdf($E75,BH$23,$G$6) -> 0.000284624136 | BI75: =bivarpdf($E75,BI$23,$G$6) -> 0.0002110745008 | BJ75: =bivarpdf($E75,BJ$23,$G$6) -> 0.0001549087379 | BK75: =bivarpdf($E75,BK$23,$G$6) -> 0.000112510268 | BL75: =bivarpdf($E75,BL$23,$G$6) -> 8.086945238e-05 | BM75: =bivarpdf($E75,BM$23,$G$6) -> 5.752451216e-05 | BN75: =bivarpdf($E75,BN$23,$G$6) -> 4.04946347e-05
E76: -2.2 | F76: =bivarpdf($E76,F$23,$G$6) -> 0.0004756637302 | G76: =bivarpdf($E76,G$23,$G$6) -> 0.0006178029088 | H76: =bivarpdf($E76,H$23,$G$6) -> 0.0007941013957 | I76: =bivarpdf($E76,I$23,$G$6) -> 0.00101013186 | J76: =bivarpdf($E76,J$23,$G$6) -> 0.001271616861 | K76: =bivarpdf($E76,K$23,$G$6) -> 0.001584202105 | L76: =bivarpdf($E76,L$23,$G$6) -> 0.001953174263 | M76: =bivarpdf($E76,M$23,$G$6) -> 0.002383128713 | N76: =bivarpdf($E76,N$23,$G$6) -> 0.002877597879 | O76: =bivarpdf($E76,O$23,$G$6) -> 0.003438656616 | P76: =bivarpdf($E76,P$23,$G$6) -> 0.004066526559 | Q76: =bivarpdf($E76,Q$23,$G$6) -> 0.004759206138 | R76: =bivarpdf($E76,R$23,$G$6) -> 0.005512156228 | S76: =bivarpdf($E76,S$23,$G$6) -> 0.006318072705 | T76: =bivarpdf($E76,T$23,$G$6) -> 0.007166775816 | U76: =bivarpdf($E76,U$23,$G$6) -> 0.008045242126 | V76: =bivarpdf($E76,V$23,$G$6) -> 0.00893779764 | W76: =bivarpdf($E76,W$23,$G$6) -> 0.009826480923 | X76: =bivarpdf($E76,X$23,$G$6) -> 0.01069157316 | Y76: =bivarpdf($E76,Y$23,$G$6) -> 0.01151227906 | Z76: =bivarpdf($E76,Z$23,$G$6) -> 0.01226752929 | AA76: =bivarpdf($E76,AA$23,$G$6) -> 0.01293686356 | AB76: =bivarpdf($E76,AB$23,$G$6) -> 0.01350134365 | AC76: =bivarpdf($E76,AC$23,$G$6) -> 0.0139444402 | AD76: =bivarpdf($E76,AD$23,$G$6) -> 0.0142528356 | AE76: =bivarpdf($E76,AE$23,$G$6) -> 0.01441708858 | AF76: =bivarpdf($E76,AF$23,$G$6) -> 0.0144321142 | AG76: =bivarpdf($E76,AG$23,$G$6) -> 0.01429744538 | AH76: =bivarpdf($E76,AH$23,$G$6) -> 0.01401725695 | AI76: =bivarpdf($E76,AI$23,$G$6) -> 0.01360015074 | AJ76: =bivarpdf($E76,AJ$23,$G$6) -> 0.01305871695 | AK76: =bivarpdf($E76,AK$23,$G$6) -> 0.01240890314 | AL76: =bivarpdf($E76,AL$23,$G$6) -> 0.01166923483 | AM76: =bivarpdf($E76,AM$23,$G$6) -> 0.01085994094 | AN76: =bivarpdf($E76,AN$23,$G$6) -> 0.01000204138 | AO76: =bivarpdf($E76,AO$23,$G$6) -> 0.00911645367 | AP76: =bivarpdf($E76,AP$23,$G$6) -> 0.008223170798 | AQ76: =bivarpdf($E76,AQ$23,$G$6) -> 0.007340553216 | AR76: =bivarpdf($E76,AR$23,$G$6) -> 0.006484766925 | AS76: =bivarpdf($E76,AS$23,$G$6) -> 0.005669386305 | AT76: =bivarpdf($E76,AT$23,$G$6) -> 0.004905167346 | AU76: =bivarpdf($E76,AU$23,$G$6) -> 0.004199984675 | AV76: =bivarpdf($E76,AV$23,$G$6) -> 0.003558915546 | AW76: =bivarpdf($E76,AW$23,$G$6) -> 0.002984446223 | AX76: =bivarpdf($E76,AX$23,$G$6) -> 0.002476771448 | AY76: =bivarpdf($E76,AY$23,$G$6) -> 0.002034155767 | AZ76: =bivarpdf($E76,AZ$23,$G$6) -> 0.00165332632 | BA76: =bivarpdf($E76,BA$23,$G$6) -> 0.001329869579 | BB76: =bivarpdf($E76,BB$23,$G$6) -> 0.0010586091 | BC76: =bivarpdf($E76,BC$23,$G$6) -> 0.0008339466978 | BD76: =bivarpdf($E76,BD$23,$G$6) -> 0.0006501552337 | BE76: =bivarpdf($E76,BE$23,$G$6) -> 0.0005016166364 | BF76: =bivarpdf($E76,BF$23,$G$6) -> 0.0003830036384 | BG76: =bivarpdf($E76,BG$23,$G$6) -> 0.0002894076233 | BH76: =bivarpdf($E76,BH$23,$G$6) -> 0.0002164178772 | BI76: =bivarpdf($E76,BI$23,$G$6) -> 0.0001601593871 | BJ76: =bivarpdf($E76,BJ$23,$G$6) -> 0.0001172972317 | BK76: =bivarpdf($E76,BK$23,$G$6) -> 8.501571787e-05 | BL76: =bivarpdf($E76,BL$23,$G$6) -> 6.097991141e-05 | BM76: =bivarpdf($E76,BM$23,$G$6) -> 4.32862986e-05 | BN76: =bivarpdf($E76,BN$23,$G$6) -> 3.040816493e-05
E77: -2.3 | F77: =bivarpdf($E77,F$23,$G$6) -> 0.0004005490198 | G77: =bivarpdf($E77,G$23,$G$6) -> 0.0005191594988 | H77: =bivarpdf($E77,H$23,$G$6) -> 0.0006659199638 | I77: =bivarpdf($E77,I$23,$G$6) -> 0.0008453165355 | J77: =bivarpdf($E77,J$23,$G$6) -> 0.001061922428 | K77: =bivarpdf($E77,K$23,$G$6) -> 0.001320207881 | L77: =bivarpdf($E77,L$23,$G$6) -> 0.001624306372 | M77: =bivarpdf($E77,M$23,$G$6) -> 0.001977742171 | N77: =bivarpdf($E77,N$23,$G$6) -> 0.002383128713 | O77: =bivarpdf($E77,O$23,$G$6) -> 0.002841851785 | P77: =bivarpdf($E77,P$23,$G$6) -> 0.003353755882 | Q77: =bivarpdf($E77,Q$23,$G$6) -> 0.003916855681 | R77: =bivarpdf($E77,R$23,$G$6) -> 0.004527096915 | S77: =bivarpdf($E77,S$23,$G$6) -> 0.005178191565 | T77: =bivarpdf($E77,T$23,$G$6) -> 0.005861550798 | U77: =bivarpdf($E77,U$23,$G$6) -> 0.006566335252 | V77: =bivarpdf($E77,V$23,$G$6) -> 0.007279636113 | W77: =bivarpdf($E77,W$23,$G$6) -> 0.00798679226 | X77: =bivarpdf($E77,X$23,$G$6) -> 0.008671838978 | Y77: =bivarpdf($E77,Y$23,$G$6) -> 0.009318073269 | Z77: =bivarpdf($E77,Z$23,$G$6) -> 0.009908710411 | AA77: =bivarpdf($E77,AA$23,$G$6) -> 0.01042759728 | AB77: =bivarpdf($E77,AB$23,$G$6) -> 0.01085994094 | AC77: =bivarpdf($E77,AC$23,$G$6) -> 0.01119300702 | AD77: =bivarpdf($E77,AD$23,$G$6) -> 0.01141674202 | AE77: =bivarpdf($E77,AE$23,$G$6) -> 0.01152427726 | AF77: =bivarpdf($E77,AF$23,$G$6) -> 0.01151227906 | AG77: =bivarpdf($E77,AG$23,$G$6) -> 0.01138112039 | AH77: =bivarpdf($E77,AH$23,$G$6) -> 0.01113486166 | AI77: =bivarpdf($E77,AI$23,$G$6) -> 0.01078104188 | AJ77: =bivarpdf($E77,AJ$23,$G$6) -> 0.01033029537 | AK77: =bivarpdf($E77,AK$23,$G$6) -> 0.009795821101 | AL77: =bivarpdf($E77,AL$23,$G$6) -> 0.009192741542 | AM77: =bivarpdf($E77,AM$23,$G$6) -> 0.008537394576 | AN77: =bivarpdf($E77,AN$23,$G$6) -> 0.007846604391 | AO77: =bivarpdf($E77,AO$23,$G$6) -> 0.007136976375 | AP77: =bivarpdf($E77,AP$23,$G$6) -> 0.006424256322 | AQ77: =bivarpdf($E77,AQ$23,$G$6) -> 0.005722786725 | AR77: =bivarpdf($E77,AR$23,$G$6) -> 0.005045083526 | AS77: =bivarpdf($E77,AS$23,$G$6) -> 0.004401546148 | AT77: =bivarpdf($E77,AT$23,$G$6) -> 0.003800303289 | AU77: =bivarpdf($E77,AU$23,$G$6) -> 0.003247187412 | AV77: =bivarpdf($E77,AV$23,$G$6) -> 0.002745823079 | AW77: =bivarpdf($E77,AW$23,$G$6) -> 0.002297808578 | AX77: =bivarpdf($E77,AX$23,$G$6) -> 0.001902966929 | AY77: =bivarpdf($E77,AY$23,$G$6) -> 0.001559641327 | AZ77: =bivarpdf($E77,AZ$23,$G$6) -> 0.001265011074 | BA77: =bivarpdf($E77,BA$23,$G$6) -> 0.001015406688 | BB77: =bivarpdf($E77,BB$23,$G$6) -> 0.0008066066731 | BC77: =bivarpdf($E77,BC$23,$G$6) -> 0.0006341028438 | BD77: =bivarpdf($E77,BD$23,$G$6) -> 0.0004933256427 | BE77: =bivarpdf($E77,BE$23,$G$6) -> 0.0003798252033 | BF77: =bivarpdf($E77,BF$23,$G$6) -> 0.0002894076233 | BG77: =bivarpdf($E77,BG$23,$G$6) -> 0.000218228895 | BH77: =bivarpdf($E77,BH$23,$G$6) -> 0.0001628510787 | BI77: =bivarpdf($E77,BI$23,$G$6) -> 0.0001202666253 | BJ77: =bivarpdf($E77,BJ$23,$G$6) -> 8.789733527e-05 | BK77: =bivarpdf($E77,BK$23,$G$6) -> 6.357441792e-05 | BL77: =bivarpdf($E77,BL$23,$G$6) -> 4.550563459e-05 | BM77: =bivarpdf($E77,BM$23,$G$6) -> 3.223473149e-05 | BN77: =bivarpdf($E77,BN$23,$G$6) -> 2.259742938e-05
E78: -2.4 | F78: =bivarpdf($E78,F$23,$G$6) -> 0.000333800827 | G78: =bivarpdf($E78,G$23,$G$6) -> 0.0004317454401 | H78: =bivarpdf($E78,H$23,$G$6) -> 0.0005526424098 | I78: =bivarpdf($E78,I$23,$G$6) -> 0.0007000624104 | J78: =bivarpdf($E78,J$23,$G$6) -> 0.0008776177685 | K78: =bivarpdf($E78,K$23,$G$6) -> 0.001088805122 | L78: =bivarpdf($E78,L$23,$G$6) -> 0.001336814052 | M78: =bivarpdf($E78,M$23,$G$6) -> 0.001624306372 | N78: =bivarpdf($E78,N$23,$G$6) -> 0.001953174263 | O78: =bivarpdf($E78,O$23,$G$6) -> 0.002324289056 | P78: =bivarpdf($E78,P$23,$G$6) -> 0.002737255775 | Q78: =bivarpdf($E78,Q$23,$G$6) -> 0.003190191277 | R78: =bivarpdf($E78,R$23,$G$6) -> 0.003679545392 | S78: =bivarpdf($E78,S$23,$G$6) -> 0.004199984675 | T78: =bivarpdf($E78,T$23,$G$6) -> 0.004744356832 | U78: =bivarpdf($E78,U$23,$G$6) -> 0.00530375049 | V78: =bivarpdf($E78,V$23,$G$6) -> 0.005867659761 | W78: =bivarpdf($E78,W$23,$G$6) -> 0.006424256322 | X78: =bivarpdf($E78,X$23,$G$6) -> 0.006960763801 | Y78: =bivarpdf($E78,Y$23,$G$6) -> 0.007463920979 | Z78: =bivarpdf($E78,Z$23,$G$6) -> 0.007920512208 | AA78: =bivarpdf($E78,AA$23,$G$6) -> 0.008317936522 | AB78: =bivarpdf($E78,AB$23,$G$6) -> 0.00864478178 | AC78: =bivarpdf($E78,AC$23,$G$6) -> 0.008891367627 | AD78: =bivarpdf($E78,AD$23,$G$6) -> 0.009050221294 | AE78: =bivarpdf($E78,AE$23,$G$6) -> 0.00911645367 | AF78: =bivarpdf($E78,AF$23,$G$6) -> 0.00908800922 | AG78: =bivarpdf($E78,AG$23,$G$6) -> 0.008965771945 | AH78: =bivarpdf($E78,AH$23,$G$6) -> 0.008753519749 | AI78: =bivarpdf($E78,AI$23,$G$6) -> 0.008457730511 | AJ78: =bivarpdf($E78,AJ$23,$G$6) -> 0.008087253739 | AK78: =bivarpdf($E78,AK$23,$G$6) -> 0.007652871038 | AL78: =bivarpdf($E78,AL$23,$G$6) -> 0.007166775816 | AM78: =bivarpdf($E78,AM$23,$G$6) -> 0.006642007219 | AN78: =bivarpdf($E78,AN$23,$G$6) -> 0.006091874759 | AO78: =bivarpdf($E78,AO$23,$G$6) -> 0.005529408659 | AP78: =bivarpdf($E78,AP$23,$G$6) -> 0.004966866756 | AQ78: =bivarpdf($E78,AQ$23,$G$6) -> 0.004415322494 | AR78: =bivarpdf($E78,AR$23,$G$6) -> 0.003884350842 | AS78: =bivarpdf($E78,AS$23,$G$6) -> 0.003381820621 | AT78: =bivarpdf($E78,AT$23,$G$6) -> 0.002913793605 | AU78: =bivarpdf($E78,AU$23,$G$6) -> 0.002484523465 | AV78: =bivarpdf($E78,AV$23,$G$6) -> 0.002096541767 | AW78: =bivarpdf($E78,AW$23,$G$6) -> 0.001750814094 | AX78: =bivarpdf($E78,AX$23,$G$6) -> 0.001446947083 | AY78: =bivarpdf($E78,AY$23,$G$6) -> 0.001183426696 | AZ78: =bivarpdf($E78,AZ$23,$G$6) -> 0.0009578691246 | BA78: =bivarpdf($E78,BA$23,$G$6) -> 0.0007672680014 | BB78: =bivarpdf($E78,BB$23,$G$6) -> 0.0006082247625 | BC78: =bivarpdf($E78,BC$23,$G$6) -> 0.0004771525044 | BD78: =bivarpdf($E78,BD$23,$G$6) -> 0.0003704472856 | BE78: =bivarpdf($E78,BE$23,$G$6) -> 0.000284624136 | BF78: =bivarpdf($E78,BF$23,$G$6) -> 0.0002164178772 | BG78: =bivarpdf($E78,BG$23,$G$6) -> 0.0001628510787 | BH78: =bivarpdf($E78,BH$23,$G$6) -> 0.0001212730347 | BI78: =bivarpdf($E78,BI$23,$G$6) -> 8.937456693e-05 | BJ78: =bivarpdf($E78,BJ$23,$G$6) -> 6.518381197e-05 | BK78: =bivarpdf($E78,BK$23,$G$6) -> 4.704805324e-05 | BL78: =bivarpdf($E78,BL$23,$G$6) -> 3.360621955e-05 | BM78: =bivarpdf($E78,BM$23,$G$6) -> 2.375602436e-05 | BN78: =bivarpdf($E78,BN$23,$G$6) -> 1.66189646e-05
E79: -2.5 | F79: =bivarpdf($E79,F$23,$G$6) -> 0.0002752930469 | G79: =bivarpdf($E79,G$23,$G$6) -> 0.0003553291307 | H79: =bivarpdf($E79,H$23,$G$6) -> 0.0004538815021 | I79: =bivarpdf($E79,I$23,$G$6) -> 0.00057375998 | J79: =bivarpdf($E79,J$23,$G$6) -> 0.0007177845747 | K79: =bivarpdf($E79,K$23,$G$6) -> 0.0008886568411 | L79: =bivarpdf($E79,L$23,$G$6) -> 0.001088805122 | M79: =bivarpdf($E79,M$23,$G$6) -> 0.001320207881 | N79: =bivarpdf($E79,N$23,$G$6) -> 0.001584202105 | O79: =bivarpdf($E79,O$23,$G$6) -> 0.001881286547 | P79: =bivarpdf($E79,P$23,$G$6) -> 0.002210932141 | Q79: =bivarpdf($E79,Q$23,$G$6) -> 0.002571413831 | R79: =bivarpdf($E79,R$23,$G$6) -> 0.002959679178 | S79: =bivarpdf($E79,S$23,$G$6) -> 0.003371268927 | T79: =bivarpdf($E79,T$23,$G$6) -> 0.003800303289 | U79: =bivarpdf($E79,U$23,$G$6) -> 0.004239544679 | V79: =bivarpdf($E79,V$23,$G$6) -> 0.004680543379 | W79: =bivarpdf($E79,W$23,$G$6) -> 0.005113867036 | X79: =bivarpdf($E79,X$23,$G$6) -> 0.005529408659 | Y79: =bivarpdf($E79,Y$23,$G$6) -> 0.005916761231 | Z79: =bivarpdf($E79,Z$23,$G$6) -> 0.006265640868 | AA79: =bivarpdf($E79,AA$23,$G$6) -> 0.006566335252 | AB79: =bivarpdf($E79,AB$23,$G$6) -> 0.006810150432 | AC79: =bivarpdf($E79,AC$23,$G$6) -> 0.006989827491 | AD79: =bivarpdf($E79,AD$23,$G$6) -> 0.007099901257 | AE79: =bivarpdf($E79,AE$23,$G$6) -> 0.007136976375 | AF79: =bivarpdf($E79,AF$23,$G$6) -> 0.007099901257 | AG79: =bivarpdf($E79,AG$23,$G$6) -> 0.006989827491 | AH79: =bivarpdf($E79,AH$23,$G$6) -> 0.006810150432 | AI79: =bivarpdf($E79,AI$23,$G$6) -> 0.006566335252 | AJ79: =bivarpdf($E79,AJ$23,$G$6) -> 0.006265640868 | AK79: =bivarpdf($E79,AK$23,$G$6) -> 0.005916761231 | AL79: =bivarpdf($E79,AL$23,$G$6) -> 0.005529408659 | AM79: =bivarpdf($E79,AM$23,$G$6) -> 0.005113867036 | AN79: =bivarpdf($E79,AN$23,$G$6) -> 0.004680543379 | AO79: =bivarpdf($E79,AO$23,$G$6) -> 0.004239544679 | AP79: =bivarpdf($E79,AP$23,$G$6) -> 0.003800303289 | AQ79: =bivarpdf($E79,AQ$23,$G$6) -> 0.003371268927 | AR79: =bivarpdf($E79,AR$23,$G$6) -> 0.002959679178 | AS79: =bivarpdf($E79,AS$23,$G$6) -> 0.002571413831 | AT79: =bivarpdf($E79,AT$23,$G$6) -> 0.002210932141 | AU79: =bivarpdf($E79,AU$23,$G$6) -> 0.001881286547 | AV79: =bivarpdf($E79,AV$23,$G$6) -> 0.001584202105 | AW79: =bivarpdf($E79,AW$23,$G$6) -> 0.001320207881 | AX79: =bivarpdf($E79,AX$23,$G$6) -> 0.001088805122 | AY79: =bivarpdf($E79,AY$23,$G$6) -> 0.0008886568411 | AZ79: =bivarpdf($E79,AZ$23,$G$6) -> 0.0007177845747 | BA79: =bivarpdf($E79,BA$23,$G$6) -> 0.00057375998 | BB79: =bivarpdf($E79,BB$23,$G$6) -> 0.0004538815021 | BC79: =bivarpdf($E79,BC$23,$G$6) -> 0.0003553291307 | BD79: =bivarpdf($E79,BD$23,$G$6) -> 0.0002752930469 | BE79: =bivarpdf($E79,BE$23,$G$6) -> 0.0002110745008 | BF79: =bivarpdf($E79,BF$23,$G$6) -> 0.0001601593871 | BG79: =bivarpdf($E79,BG$23,$G$6) -> 0.0001202666253 | BH79: =bivarpdf($E79,BH$23,$G$6) -> 8.937456693e-05 | BI79: =bivarpdf($E79,BI$23,$G$6) -> 6.572928003e-05 | BJ79: =bivarpdf($E79,BJ$23,$G$6) -> 4.783875837e-05 | BK79: =bivarpdf($E79,BK$23,$G$6) -> 3.445696505e-05 | BL79: =bivarpdf($E79,BL$23,$G$6) -> 2.45612375e-05 | BM79: =bivarpdf($E79,BM$23,$G$6) -> 1.732605011e-05 | BN79: =bivarpdf($E79,BN$23,$G$6) -> 1.209553233e-05
E80: -2.6 | F80: =bivarpdf($E80,F$23,$G$6) -> 0.0002246876365 | G80: =bivarpdf($E80,G$23,$G$6) -> 0.0002894076233 | H80: =bivarpdf($E80,H$23,$G$6) -> 0.0003689069665 | I80: =bivarpdf($E80,I$23,$G$6) -> 0.0004653715671 | J80: =bivarpdf($E80,J$23,$G$6) -> 0.0005809769921 | K80: =bivarpdf($E80,K$23,$G$6) -> 0.0007177845747 | L80: =bivarpdf($E80,L$23,$G$6) -> 0.0008776177685 | M80: =bivarpdf($E80,M$23,$G$6) -> 0.001061922428 | N80: =bivarpdf($E80,N$23,$G$6) -> 0.001271616861 | O80: =bivarpdf($E80,O$23,$G$6) -> 0.001506939656 | P80: =bivarpdf($E80,P$23,$G$6) -> 0.001767305157 | Q80: =bivarpdf($E80,Q$23,$G$6) -> 0.002051177892 | R80: =bivarpdf($E80,R$23,$G$6) -> 0.002355977879 | S80: =bivarpdf($E80,S$23,$G$6) -> 0.002678028465 | T80: =bivarpdf($E80,T$23,$G$6) -> 0.00301255697 | U80: =bivarpdf($E80,U$23,$G$6) -> 0.003353755882 | V80: =bivarpdf($E80,V$23,$G$6) -> 0.003694908816 | W80: =bivarpdf($E80,W$23,$G$6) -> 0.00402858102 | X80: =bivarpdf($E80,X$23,$G$6) -> 0.004346869264 | Y80: =bivarpdf($E80,Y$23,$G$6) -> 0.004641700919 | Z80: =bivarpdf($E80,Z$23,$G$6) -> 0.004905167346 | AA80: =bivarpdf($E80,AA$23,$G$6) -> 0.005129872866 | AB80: =bivarpdf($E80,AB$23,$G$6) -> 0.005309278108 | AC80: =bivarpdf($E80,AC$23,$G$6) -> 0.005438015572 | AD80: =bivarpdf($E80,AD$23,$G$6) -> 0.005512156228 | AE80: =bivarpdf($E80,AE$23,$G$6) -> 0.005529408659 | AF80: =bivarpdf($E80,AF$23,$G$6) -> 0.005489236692 | AG80: =bivarpdf($E80,AG$23,$G$6) -> 0.005392887073 | AH80: =bivarpdf($E80,AH$23,$G$6) -> 0.005243325196 | AI80: =bivarpdf($E80,AI$23,$G$6) -> 0.005045083526 | AJ80: =bivarpdf($E80,AJ$23,$G$6) -> 0.004804033495 | AK80: =bivarpdf($E80,AK$23,$G$6) -> 0.004527096915 | AL80: =bivarpdf($E80,AL$23,$G$6) -> 0.00422191666 | AM80: =bivarpdf($E80,AM$23,$G$6) -> 0.003896508425 | AN80: =bivarpdf($E80,AN$23,$G$6) -> 0.003558915546 | AO80: =bivarpdf($E80,AO$23,$G$6) -> 0.003216887283 | AP80: =bivarpdf($E80,AP$23,$G$6) -> 0.002877597879 | AQ80: =bivarpdf($E80,AQ$23,$G$6) -> 0.002547419476 | AR80: =bivarpdf($E80,AR$23,$G$6) -> 0.002231757094 | AS80: =bivarpdf($E80,AS$23,$G$6) -> 0.00193494882 | AT80: =bivarpdf($E80,AT$23,$G$6) -> 0.001660229551 | AU80: =bivarpdf($E80,AU$23,$G$6) -> 0.001409752574 | AV80: =bivarpdf($E80,AV$23,$G$6) -> 0.001184660075 | AW80: =bivarpdf($E80,AW$23,$G$6) -> 0.0009851916152 | AX80: =bivarpdf($E80,AX$23,$G$6) -> 0.0008108187088 | AY80: =bivarpdf($E80,AY$23,$G$6) -> 0.0006603936889 | AZ80: =bivarpdf($E80,AZ$23,$G$6) -> 0.0005323020841 | BA80: =bivarpdf($E80,BA$23,$G$6) -> 0.0004246093156 | BB80: =bivarpdf($E80,BB$23,$G$6) -> 0.0003351945654 | BC80: =bivarpdf($E80,BC$23,$G$6) -> 0.0002618668466 | BD80: =bivarpdf($E80,BD$23,$G$6) -> 0.0002024604358 | BE80: =bivarpdf($E80,BE$23,$G$6) -> 0.0001549087379 | BF80: =bivarpdf($E80,BF$23,$G$6) -> 0.0001172972317 | BG80: =bivarpdf($E80,BG$23,$G$6) -> 8.789733527e-05 | BH80: =bivarpdf($E80,BH$23,$G$6) -> 6.518381197e-05 | BI80: =bivarpdf($E80,BI$23,$G$6) -> 4.783875837e-05 | BJ80: =bivarpdf($E80,BJ$23,$G$6) -> 3.474530618e-05 | BK80: =bivarpdf($E80,BK$23,$G$6) -> 2.497402177e-05 | BL80: =bivarpdf($E80,BL$23,$G$6) -> 1.776466115e-05 | BM80: =bivarpdf($E80,BM$23,$G$6) -> 1.250551177e-05 | BN80: =bivarpdf($E80,BN$23,$G$6) -> 8.712085115e-06
E81: -2.7 | F81: =bivarpdf($E81,F$23,$G$6) -> 0.0001814843617 | G81: =bivarpdf($E81,G$23,$G$6) -> 0.0002332733998 | H81: =bivarpdf($E81,H$23,$G$6) -> 0.0002967340121 | I81: =bivarpdf($E81,I$23,$G$6) -> 0.0003735472449 | J81: =bivarpdf($E81,J$23,$G$6) -> 0.0004653715671 | K81: =bivarpdf($E81,K$23,$G$6) -> 0.00057375998 | L81: =bivarpdf($E81,L$23,$G$6) -> 0.0007000624104 | M81: =bivarpdf($E81,M$23,$G$6) -> 0.0008453165355 | N81: =bivarpdf($E81,N$23,$G$6) -> 0.00101013186 | O81: =bivarpdf($E81,O$23,$G$6) -> 0.00119457349 | P81: =bivarpdf($E81,P$23,$G$6) -> 0.00139805345 | Q81: =bivarpdf($E81,Q$23,$G$6) -> 0.001619238337 | R81: =bivarpdf($E81,R$23,$G$6) -> 0.001855982508 | S81: =bivarpdf($E81,S$23,$G$6) -> 0.002105295582 | T81: =bivarpdf($E81,T$23,$G$6) -> 0.002363351826 | U81: =bivarpdf($E81,U$23,$G$6) -> 0.002625546881 | V81: =bivarpdf($E81,V$23,$G$6) -> 0.002886604438 | W81: =bivarpdf($E81,W$23,$G$6) -> 0.003140731946 | X81: =bivarpdf($E81,X$23,$G$6) -> 0.003381820621 | Y81: =bivarpdf($E81,Y$23,$G$6) -> 0.003603681193 | Z81: =bivarpdf($E81,Z$23,$G$6) -> 0.003800303289 | AA81: =bivarpdf($E81,AA$23,$G$6) -> 0.003966123661 | AB81: =bivarpdf($E81,AB$23,$G$6) -> 0.004096286684 | AC81: =bivarpdf($E81,AC$23,$G$6) -> 0.004186880209 | AD81: =bivarpdf($E81,AD$23,$G$6) -> 0.004235130786 | AE81: =bivarpdf($E81,AE$23,$G$6) -> 0.004239544679 | AF81: =bivarpdf($E81,AF$23,$G$6) -> 0.004199984675 | AG81: =bivarpdf($E81,AG$23,$G$6) -> 0.004117677167 | AH81: =bivarpdf($E81,AH$23,$G$6) -> 0.003995149005 | AI81: =bivarpdf($E81,AI$23,$G$6) -> 0.003836098661 | AJ81: =bivarpdf($E81,AJ$23,$G$6) -> 0.003645210849 | AK81: =bivarpdf($E81,AK$23,$G$6) -> 0.003427927587 | AL81: =bivarpdf($E81,AL$23,$G$6) -> 0.003190191277 | AM81: =bivarpdf($E81,AM$23,$G$6) -> 0.002938176673 | AN81: =bivarpdf($E81,AN$23,$G$6) -> 0.002678028465 | AO81: =bivarpdf($E81,AO$23,$G$6) -> 0.002415619743 | AP81: =bivarpdf($E81,AP$23,$G$6) -> 0.002156344032 | AQ81: =bivarpdf($E81,AQ$23,$G$6) -> 0.001904950219 | AR81: =bivarpdf($E81,AR$23,$G$6) -> 0.001665425883 | AS81: =bivarpdf($E81,AS$23,$G$6) -> 0.001440930679 | AT81: =bivarpdf($E81,AT$23,$G$6) -> 0.00123377784 | AU81: =bivarpdf($E81,AU$23,$G$6) -> 0.001045458846 | AV81: =bivarpdf($E81,AV$23,$G$6) -> 0.0008767040593 | AW81: =bivarpdf($E81,AW$23,$G$6) -> 0.0007275706847 | AX81: =bivarpdf($E81,AX$23,$G$6) -> 0.0005975489203 | AY81: =bivarpdf($E81,AY$23,$G$6) -> 0.0004856773375 | AZ81: =bivarpdf($E81,AZ$23,$G$6) -> 0.0003906594292 | BA81: =bivarpdf($E81,BA$23,$G$6) -> 0.0003109745747 | BB81: =bivarpdf($E81,BB$23,$G$6) -> 0.0002449782641 | BC81: =bivarpdf($E81,BC$23,$G$6) -> 0.0001909881063 | BD81: =bivarpdf($E81,BD$23,$G$6) -> 0.0001473537496 | BE81: =bivarpdf($E81,BE$23,$G$6) -> 0.000112510268 | BF81: =bivarpdf($E81,BF$23,$G$6) -> 8.501571787e-05 | BG81: =bivarpdf($E81,BG$23,$G$6) -> 6.357441792e-05 | BH81: =bivarpdf($E81,BH$23,$G$6) -> 4.704805324e-05 | BI81: =bivarpdf($E81,BI$23,$G$6) -> 3.445696505e-05 | BJ81: =bivarpdf($E81,BJ$23,$G$6) -> 2.497402177e-05 | BK81: =bivarpdf($E81,BK$23,$G$6) -> 1.791331854e-05 | BL81: =bivarpdf($E81,BL$23,$G$6) -> 1.271568353e-05 | BM81: =bivarpdf($E81,BM$23,$G$6) -> 8.9326326e-06 | BN81: =bivarpdf($E81,BN$23,$G$6) -> 6.210053362e-06
E82: -2.8 | F82: =bivarpdf($E82,F$23,$G$6) -> 0.0001450692414 | G82: =bivarpdf($E82,G$23,$G$6) -> 0.0001860786602 | H82: =bivarpdf($E82,H$23,$G$6) -> 0.000236207618 | I82: =bivarpdf($E82,I$23,$G$6) -> 0.0002967340121 | J82: =bivarpdf($E82,J$23,$G$6) -> 0.0003689069665 | K82: =bivarpdf($E82,K$23,$G$6) -> 0.0004538815021 | L82: =bivarpdf($E82,L$23,$G$6) -> 0.0005526424098 | M82: =bivarpdf($E82,M$23,$G$6) -> 0.0006659199638 | N82: =bivarpdf($E82,N$23,$G$6) -> 0.0007941013957 | O82: =bivarpdf($E82,O$23,$G$6) -> 0.0009371432532 | P82: =bivarpdf($E82,P$23,$G$6) -> 0.001094490775 | Q82: =bivarpdf($E82,Q$23,$G$6) -> 0.001265011074 | R82: =bivarpdf($E82,R$23,$G$6) -> 0.001446947083 | S82: =bivarpdf($E82,S$23,$G$6) -> 0.001637898815 | T82: =bivarpdf($E82,T$23,$G$6) -> 0.001834837417 | U82: =bivarpdf($E82,U$23,$G$6) -> 0.002034155767 | V82: =bivarpdf($E82,V$23,$G$6) -> 0.002231757094 | W82: =bivarpdf($E82,W$23,$G$6) -> 0.002423180362 | X82: =bivarpdf($E82,X$23,$G$6) -> 0.002603758235 | Y82: =bivarpdf($E82,Y$23,$G$6) -> 0.002768800544 | Z82: =bivarpdf($E82,Z$23,$G$6) -> 0.002913793605 | AA82: =bivarpdf($E82,AA$23,$G$6) -> 0.003034603813 | AB82: =bivarpdf($E82,AB$23,$G$6) -> 0.003127672788 | AC82: =bivarpdf($E82,AC$23,$G$6) -> 0.003190191277 | AD82: =bivarpdf($E82,AD$23,$G$6) -> 0.003220239953 | AE82: =bivarpdf($E82,AE$23,$G$6) -> 0.003216887283 | AF82: =bivarpdf($E82,AF$23,$G$6) -> 0.00318023749 | AG82: =bivarpdf($E82,AG$23,$G$6) -> 0.003111425174 | AH82: =bivarpdf($E82,AH$23,$G$6) -> 0.00301255697 | AI82: =bivarpdf($E82,AI$23,$G$6) -> 0.002886604438 | AJ82: =bivarpdf($E82,AJ$23,$G$6) -> 0.002737255775 | AK82: =bivarpdf($E82,AK$23,$G$6) -> 0.00256873667 | AL82: =bivarpdf($E82,AL$23,$G$6) -> 0.002385612433 | AM82: =bivarpdf($E82,AM$23,$G$6) -> 0.002192584262 | AN82: =bivarpdf($E82,AN$23,$G$6) -> 0.001994292219 | AO82: =bivarpdf($E82,AO$23,$G$6) -> 0.001795136164 | AP82: =bivarpdf($E82,AP$23,$G$6) -> 0.001599123836 | AQ82: =bivarpdf($E82,AQ$23,$G$6) -> 0.001409752574 | AR82: =bivarpdf($E82,AR$23,$G$6) -> 0.001229928302 | AS82: =bivarpdf($E82,AS$23,$G$6) -> 0.001061922428 | AT82: =bivarpdf($E82,AT$23,$G$6) -> 0.0009073647224 | AU82: =bivarpdf($E82,AU$23,$G$6) -> 0.0007672680014 | AV82: =bivarpdf($E82,AV$23,$G$6) -> 0.0006420788757 | AW82: =bivarpdf($E82,AW$23,$G$6) -> 0.0005317478915 | AX82: =bivarpdf($E82,AX$23,$G$6) -> 0.0004358120862 | AY82: =bivarpdf($E82,AY$23,$G$6) -> 0.0003534832693 | AZ82: =bivarpdf($E82,AZ$23,$G$6) -> 0.0002837360739 | BA82: =bivarpdf($E82,BA$23,$G$6) -> 0.0002253908836 | BB82: =bivarpdf($E82,BB$23,$G$6) -> 0.0001771879716 | BC82: =bivarpdf($E82,BC$23,$G$6) -> 0.000137850462 | BD82: =bivarpdf($E82,BD$23,$G$6) -> 0.0001061349243 | BE82: =bivarpdf($E82,BE$23,$G$6) -> 8.086945238e-05 | BF82: =bivarpdf($E82,BF$23,$G$6) -> 6.097991141e-05 | BG82: =bivarpdf($E82,BG$23,$G$6) -> 4.550563459e-05 | BH82: =bivarpdf($E82,BH$23,$G$6) -> 3.360621955e-05 | BI82: =bivarpdf($E82,BI$23,$G$6) -> 2.45612375e-05 | BJ82: =bivarpdf($E82,BJ$23,$G$6) -> 1.776466115e-05 | BK82: =bivarpdf($E82,BK$23,$G$6) -> 1.271568353e-05 | BL82: =bivarpdf($E82,BL$23,$G$6) -> 9.007382229e-06 | BM82: =bivarpdf($E82,BM$23,$G$6) -> 6.31442157e-06 | BN82: =bivarpdf($E82,BN$23,$G$6) -> 4.380711506e-06
E83: -2.9 | F83: =bivarpdf($E83,F$23,$G$6) -> 0.0001147592155 | G83: =bivarpdf($E83,G$23,$G$6) -> 0.0001468939878 | H83: =bivarpdf($E83,H$23,$G$6) -> 0.0001860786602 | I83: =bivarpdf($E83,I$23,$G$6) -> 0.0002332733998 | J83: =bivarpdf($E83,J$23,$G$6) -> 0.0002894076233 | K83: =bivarpdf($E83,K$23,$G$6) -> 0.0003553291307 | L83: =bivarpdf($E83,L$23,$G$6) -> 0.0004317454401 | M83: =bivarpdf($E83,M$23,$G$6) -> 0.0005191594988 | N83: =bivarpdf($E83,N$23,$G$6) -> 0.0006178029088 | O83: =bivarpdf($E83,O$23,$G$6) -> 0.0007275706847 | P83: =bivarpdf($E83,P$23,$G$6) -> 0.0008479622815 | Q83: =bivarpdf($E83,Q$23,$G$6) -> 0.0009780340534 | R83: =bivarpdf($E83,R$23,$G$6) -> 0.001116368355 | S83: =bivarpdf($E83,S$23,$G$6) -> 0.001261064085 | T83: =bivarpdf($E83,T$23,$G$6) -> 0.001409752574 | U83: =bivarpdf($E83,U$23,$G$6) -> 0.001559641327 | V83: =bivarpdf($E83,V$23,$G$6) -> 0.00170758634 | W83: =bivarpdf($E83,W$23,$G$6) -> 0.001850191616 | X83: =bivarpdf($E83,X$23,$G$6) -> 0.001983932283 | Y83: =bivarpdf($E83,Y$23,$G$6) -> 0.002105295582 | Z83: =bivarpdf($E83,Z$23,$G$6) -> 0.002210932141 | AA83: =bivarpdf($E83,AA$23,$G$6) -> 0.002297808578 | AB83: =bivarpdf($E83,AB$23,$G$6) -> 0.002363351826 | AC83: =bivarpdf($E83,AC$23,$G$6) -> 0.0024055756 | AD83: =bivarpdf($E83,AD$23,$G$6) -> 0.002423180362 | AE83: =bivarpdf($E83,AE$23,$G$6) -> 0.002415619743 | AF83: =bivarpdf($E83,AF$23,$G$6) -> 0.002383128713 | AG83: =bivarpdf($E83,AG$23,$G$6) -> 0.002326711452 | AH83: =bivarpdf($E83,AH$23,$G$6) -> 0.002248089797 | AI83: =bivarpdf($E83,AI$23,$G$6) -> 0.002149615975 | AJ83: =bivarpdf($E83,AJ$23,$G$6) -> 0.002034155767 | AK83: =bivarpdf($E83,AK$23,$G$6) -> 0.001904950219 | AL83: =bivarpdf($E83,AL$23,$G$6) -> 0.001765465173 | AM83: =bivarpdf($E83,AM$23,$G$6) -> 0.001619238337 | AN83: =bivarpdf($E83,AN$23,$G$6) -> 0.001469733184 | AO83: =bivarpdf($E83,AO$23,$G$6) -> 0.001320207881 | AP83: =bivarpdf($E83,AP$23,$G$6) -> 0.001173605784 | AQ83: =bivarpdf($E83,AQ$23,$G$6) -> 0.001032471948 | AR83: =bivarpdf($E83,AR$23,$G$6) -> 0.0008988979282 | AS83: =bivarpdf($E83,AS$23,$G$6) -> 0.0007744949624 | AT83: =bivarpdf($E83,AT$23,$G$6) -> 0.0006603936889 | AU83: =bivarpdf($E83,AU$23,$G$6) -> 0.0005572670056 | AV83: =bivarpdf($E83,AV$23,$G$6) -> 0.0004653715671 | AW83: =bivarpdf($E83,AW$23,$G$6) -> 0.0003846028162 | AX83: =bivarpdf($E83,AX$23,$G$6) -> 0.0003145583177 | AY83: =bivarpdf($E83,AY$23,$G$6) -> 0.0002546044477 | AZ83: =bivarpdf($E83,AZ$23,$G$6) -> 0.0002039421052 | BA83: =bivarpdf($E83,BA$23,$G$6) -> 0.0001616679417 | BB83: =bivarpdf($E83,BB$23,$G$6) -> 0.0001268285476 | BC83: =bivarpdf($E83,BC$23,$G$6) -> 9.846598469e-05 | BD83: =bivarpdf($E83,BD$23,$G$6) -> 7.565393758e-05 | BE83: =bivarpdf($E83,BE$23,$G$6) -> 5.752451216e-05 | BF83: =bivarpdf($E83,BF$23,$G$6) -> 4.32862986e-05 | BG83: =bivarpdf($E83,BG$23,$G$6) -> 3.223473149e-05 | BH83: =bivarpdf($E83,BH$23,$G$6) -> 2.375602436e-05 | BI83: =bivarpdf($E83,BI$23,$G$6) -> 1.732605011e-05 | BJ83: =bivarpdf($E83,BJ$23,$G$6) -> 1.250551177e-05 | BK83: =bivarpdf($E83,BK$23,$G$6) -> 8.9326326e-06 | BL83: =bivarpdf($E83,BL$23,$G$6) -> 6.31442157e-06 | BM83: =bivarpdf($E83,BM$23,$G$6) -> 4.417369967e-06 | BN83: =bivarpdf($E83,BN$23,$G$6) -> 3.058229505e-06
E84: -3 | F84: =bivarpdf($E84,F$23,$G$6) -> 8.98412738e-05 | G84: =bivarpdf($E84,G$23,$G$6) -> 0.0001147592155 | H84: =bivarpdf($E84,H$23,$G$6) -> 0.0001450692414 | I84: =bivarpdf($E84,I$23,$G$6) -> 0.0001814843617 | J84: =bivarpdf($E84,J$23,$G$6) -> 0.0002246876365 | K84: =bivarpdf($E84,K$23,$G$6) -> 0.0002752930469 | L84: =bivarpdf($E84,L$23,$G$6) -> 0.000333800827 | M84: =bivarpdf($E84,M$23,$G$6) -> 0.0004005490198 | N84: =bivarpdf($E84,N$23,$G$6) -> 0.0004756637302 | O84: =bivarpdf($E84,O$23,$G$6) -> 0.0005590111889 | P84: =bivarpdf($E84,P$23,$G$6) -> 0.0006501552337 | Q84: =bivarpdf($E84,Q$23,$G$6) -> 0.000748324087 | R84: =bivarpdf($E84,R$23,$G$6) -> 0.000852390273 | S84: =bivarpdf($E84,S$23,$G$6) -> 0.0009608671476 | T84: =bivarpdf($E84,T$23,$G$6) -> 0.001071924763 | U84: =bivarpdf($E84,U$23,$G$6) -> 0.001183426696 | V84: =bivarpdf($E84,V$23,$G$6) -> 0.001292988074 | W84: =bivarpdf($E84,W$23,$G$6) -> 0.00139805345 | X84: =bivarpdf($E84,X$23,$G$6) -> 0.001495991518 | Y84: =bivarpdf($E84,Y$23,$G$6) -> 0.001584202105 | Z84: =bivarpdf($E84,Z$23,$G$6) -> 0.001660229551 | AA84: =bivarpdf($E84,AA$23,$G$6) -> 0.001721875683 | AB84: =bivarpdf($E84,AB$23,$G$6) -> 0.001767305157 | AC84: =bivarpdf($E84,AC$23,$G$6) -> 0.001795136164 | AD84: =bivarpdf($E84,AD$23,$G$6) -> 0.001804510222 | AE84: =bivarpdf($E84,AE$23,$G$6) -> 0.001795136164 | AF84: =bivarpdf($E84,AF$23,$G$6) -> 0.001767305157 | AG84: =bivarpdf($E84,AG$23,$G$6) -> 0.001721875683 | AH84: =bivarpdf($E84,AH$23,$G$6) -> 0.001660229551 | AI84: =bivarpdf($E84,AI$23,$G$6) -> 0.001584202105 | AJ84: =bivarpdf($E84,AJ$23,$G$6) -> 0.001495991518 | AK84: =bivarpdf($E84,AK$23,$G$6) -> 0.00139805345 | AL84: =bivarpdf($E84,AL$23,$G$6) -> 0.001292988074 | AM84: =bivarpdf($E84,AM$23,$G$6) -> 0.001183426696 | AN84: =bivarpdf($E84,AN$23,$G$6) -> 0.001071924763 | AO84: =bivarpdf($E84,AO$23,$G$6) -> 0.0009608671476 | AP84: =bivarpdf($E84,AP$23,$G$6) -> 0.000852390273 | AQ84: =bivarpdf($E84,AQ$23,$G$6) -> 0.000748324087 | AR84: =bivarpdf($E84,AR$23,$G$6) -> 0.0006501552337 | AS84: =bivarpdf($E84,AS$23,$G$6) -> 0.0005590111889 | AT84: =bivarpdf($E84,AT$23,$G$6) -> 0.0004756637302 | AU84: =bivarpdf($E84,AU$23,$G$6) -> 0.0004005490198 | AV84: =bivarpdf($E84,AV$23,$G$6) -> 0.000333800827 | AW84: =bivarpdf($E84,AW$23,$G$6) -> 0.0002752930469 | AX84: =bivarpdf($E84,AX$23,$G$6) -> 0.0002246876365 | AY84: =bivarpdf($E84,AY$23,$G$6) -> 0.0001814843617 | AZ84: =bivarpdf($E84,AZ$23,$G$6) -> 0.0001450692414 | BA84: =bivarpdf($E84,BA$23,$G$6) -> 0.0001147592155 | BB84: =bivarpdf($E84,BB$23,$G$6) -> 8.98412738e-05 | BC84: =bivarpdf($E84,BC$23,$G$6) -> 6.960498271e-05 | BD84: =bivarpdf($E84,BD$23,$G$6) -> 5.336799147e-05 | BE84: =bivarpdf($E84,BE$23,$G$6) -> 4.04946347e-05 | BF84: =bivarpdf($E84,BF$23,$G$6) -> 3.040816493e-05 | BG84: =bivarpdf($E84,BG$23,$G$6) -> 2.259742938e-05 | BH84: =bivarpdf($E84,BH$23,$G$6) -> 1.66189646e-05 | BI84: =bivarpdf($E84,BI$23,$G$6) -> 1.209553233e-05 | BJ84: =bivarpdf($E84,BJ$23,$G$6) -> 8.712085115e-06 | BK84: =bivarpdf($E84,BK$23,$G$6) -> 6.210053362e-06 | BL84: =bivarpdf($E84,BL$23,$G$6) -> 4.380711506e-06 | BM84: =bivarpdf($E84,BM$23,$G$6) -> 3.058229505e-06 | BN84: =bivarpdf($E84,BN$23,$G$6) -> 2.112864244e-06
